Workbook

Sheet SMSF Servicing Calculator (hidden)
C4: SMSF Servicing Calculator V1.2 | F4: =TODAY() -> 2025-12-04
C5: Application Details
C6: Applicant / SMSF Name | D6: Enter Name Here
C7: Loan Value | E7: Loan Term
C8: Security Value | E8: Interest Rate
C9: LVR | D9: =D7/D8 ->  | E9: Assessment Rate | G9: =IF(G8<3.75%,5.75%,G8+2%) -> 0.0575
C11: Annual income | E11: Funds To Complete
C12: Mandatory contributions | E12: Purchase Price
C13: Additional contributions | E13: Refinance Amount
C14: Total Rental income | E14: Government Charges
C15: CMA Balance | E15: Solicitor Fees / Other Costs
C16: Other Asset Balance(Share,Term Deposit etc.) | E16: Deposit Paid
C17: Other income from the fund | E17: Total Surplus Funds | G17: =G16+D15+D16+D7-(G12+G13+G14+G15) -> 0
C19: Annual fund expenses | E19: Additional SMSF Commitment No.
C21: =IF(OR(ISBLANK(G19),G19=0,G19=1),"Existing Commitments","Existing Commitments (Existing SMSF Investment 1)") -> Existing Commitments | E21: Existing Commitments (Existing SMSF Investment 2)
C22: Property Value | E22: Property Value
C23: Other Investment loan balances | E23: Other Investment loan balances
C24: Other Investment loan Interest rate | E24: Other Investment loan Interest rate
C25: Monthly repayment | E25: Monthly repayment
C27: Existing Commitments (Existing SMSF Investment 3) | E27: Existing Commitments (Existing SMSF Investment 4)
C28: Property Value | E28: Property Value
C29: Other Investment loan balances | E29: Other Investment loan balances
C30: Other Investment loan Interest rate | E30: Other Investment loan Interest rate
C31: Monthly repayment | E31: Monthly repayment
C33: Results
C34: Total Gross Income | D34: ='Calculations breakdown'!C7 -> 0 | E34: NDI | G34: ='Calculations breakdown'!C28 -> 
C35: Less Annual fund expenses | D35: ='Calculations breakdown'!C13 -> 2000
C36: Less Investment loan interest add back | D36: =SUM('Calculations breakdown'!C8:C12) -> 0
C37: Taxable Income | D37: ='Calculations breakdown'!C14 -> 0 | E37: NSI per month | G37: ='Calculations breakdown'!C26 -> 
C38: Less Tax | D38: ='Calculations breakdown'!C15 -> 0
C39: Net Annual Income | D39: ='Calculations breakdown'!C16 -> 0 | E39: Servicebility Outcome | G39: =IF(AND(G37>41.67,G34>1),"Pass","Fail") -> 
C40: Less other commitments | D40: ='Calculations breakdown'!C17 -> 0
C41: Less fund expenses | D41: ='Calculations breakdown'!C18 -> 2000
C42: Annual Surplus income | D42: ='Calculations breakdown'!C21 -> -2000
C43: Actual Proposed Monthly Repayments | D43: ='Calculations breakdown'!D22 ->  | E43: Actual Liquidity Test - 7.50% | G43: =G17/D7 -> 
C44: Assessed Proposed Monthly Repayments | D44: ='Calculations breakdown'!D23 ->  | E44: Net Asset Test >= $120,000 | G44: =(D8+D22+D28+G22+G28+G17)-(D7+D23+G23+D29+G29) -> 0
C47: Personal Details
C48: Household Status | D48: Household | E48: Status | F48: Dependents (only enter once for each household)
C49: SMSF Member 1 | N49: 0
C50: SMSF Member 2
C51: SMSF Member 3
C52: SMSF Member 4
C54: HEM Status | D54: Dependents | E54: Long Description | F54: Household HEM | M54: Status | N54: Income for HEM
C55: Household 1 | D55: =SUMIF($D$49:$D$52,C55,$F$49:$F$52) -> 0 | E55: =M55&" with "&D55&" children" -> N/A with 0 children | F55: =_xlfn.IFNA(VLOOKUP(E55,'HEM2'!$B$12:$P$34,O55,FALSE),0)*52/12 -> 0 | M55: =_xlfn.IFNA(VLOOKUP(C55,$D$49:$E$52,2,FALSE),"N/A") -> N/A | N55: =SUMIF($M$63:$M$66,C55,$D$63:$D$66)+SUMIF($M$63:$M$66,C55,$E$63:$E$66)+SUMIF($M$70:$M$73,C55,$O$70:$O$73) -> 0 | O55: =LOOKUP(N55,'HEM2'!$C$9:$P$9,'HEM2'!$C$7:$P$7) -> 2
C56: Household 2 | D56: =SUMIF($D$49:$D$52,C56,$F$49:$F$52) -> 0 | E56: =M56&" with "&D56&" children" -> N/A with 0 children | F56: =_xlfn.IFNA(VLOOKUP(E56,'HEM2'!$B$12:$P$34,O56,FALSE),0)*52/12 -> 0 | M56: =_xlfn.IFNA(VLOOKUP(C56,$D$49:$E$52,2,FALSE),"N/A") -> N/A | N56: =SUMIF($M$63:$M$66,C56,$D$63:$D$66)+SUMIF($M$63:$M$66,C56,$E$63:$E$66)+SUMIF($M$70:$M$73,C56,$O$70:$O$73) -> 0 | O56: =LOOKUP(N56,'HEM2'!$C$9:$K$9,'HEM2'!$C$7:$K$7) -> 2
C57: Household 3 | D57: =SUMIF($D$49:$D$52,C57,$F$49:$F$52) -> 0 | E57: =M57&" with "&D57&" children" -> N/A with 0 children | F57: =_xlfn.IFNA(VLOOKUP(E57,'HEM2'!$B$12:$P$34,O57,FALSE),0)*52/12 -> 0 | M57: =_xlfn.IFNA(VLOOKUP(C57,$D$49:$E$52,2,FALSE),"N/A") -> N/A | N57: =SUMIF($M$63:$M$66,C57,$D$63:$D$66)+SUMIF($M$63:$M$66,C57,$E$63:$E$66)+SUMIF($M$70:$M$73,C57,$O$70:$O$73) -> 0 | O57: =LOOKUP(N57,'HEM2'!$C$9:$K$9,'HEM2'!$C$7:$K$7) -> 2
C58: Household 4 | D58: =SUMIF($D$49:$D$52,C58,$F$49:$F$52) -> 0 | E58: =M58&" with "&D58&" children" -> N/A with 0 children | F58: =_xlfn.IFNA(VLOOKUP(E58,'HEM2'!$B$12:$P$34,O58,FALSE),0)*52/12 -> 0 | M58: =_xlfn.IFNA(VLOOKUP(C58,$D$49:$E$52,2,FALSE),"N/A") -> N/A | N58: =SUMIF($M$63:$M$66,C58,$D$63:$D$66)+SUMIF($M$63:$M$66,C58,$E$63:$E$66)+SUMIF($M$70:$M$73,C58,$O$70:$O$73) -> 0 | O58: =LOOKUP(N58,'HEM2'!$C$9:$K$9,'HEM2'!$C$7:$K$7) -> 2
C59: Total | F59: =SUM(F55:F58) -> 0
C62: Income | D62: Gross Taxable Income | E62: Gross Non-Taxable Income | F62: Net Monthly Income | N62: Gross Income - Taxable | O62: Gross Income - Non-taxable
C63: SMSF Member 1 - (Taxable) Income | F63: ='Tax Scales'!Y14+(O63/12) -> 0 | M63: =D49 -> 0 | N63: =D63+O70 -> 0 | O63: =(E70*12)+E63 -> 0
C64: SMSF Member 2 - (Taxable) Income | F64: ='Tax Scales'!Y27+(O64/12) -> 0 | M64: =D50 -> 0 | N64: =D64+O71 -> 0 | O64: =(E71*12)+E64 -> 0
C65: SMSF Member 3 - (Taxable) Income | F65: ='Tax Scales'!Y40+(O65/12) -> 0 | M65: =D51 -> 0 | N65: =D65+O72 -> 0 | O65: =(E72*12)+E65 -> 0
C66: SMSF Member 4 - (Taxable) Income | F66: ='Tax Scales'!Y53+(O66/12) -> 0 | M66: =D52 -> 0 | N66: =D66+O73 -> 0 | O66: =(E73*12)+E66 -> 0
F67: =SUM(F63:F66) -> 0
C69: Rental Property Income | D69: Gross Annual Income | E69: Monthly Interest Expense (for gearing purposes only) | N69: Gross Annual Income - less haircut | O69: Net Rental Income
C70: SMSF Member 1 - Annual Rental Income(s) | M70: =D49 -> 0 | N70: =D70*RepayCalculator!$B$44 -> 0 | O70: =N70-(E70*12) -> 0
C71: SMSF Member 2 - Annual Rental Income(s) | M71: =D50 -> 0 | N71: =D71*RepayCalculator!$B$44 -> 0 | O71: =N71-(E71*12) -> 0
C72: SMSF Member 3 - Annual Rental Income(s) | M72: =D51 -> 0 | N72: =D72*RepayCalculator!$B$44 -> 0 | O72: =N72-(E72*12) -> 0
C73: SMSF Member 4 - Annual Rental Income(s) | M73: =D52 -> 0 | N73: =D73*RepayCalculator!$B$44 -> 0 | O73: =N73-(E73*12) -> 0
C75: Company Income | D75: Net Profit before tax (NPBT) | E75: Addbacks
C76: Company 1 (Net Profit Before Tax) | F76: ='Tax Scales'!Y83+(E76/12) -> 0 | N76: =D76/12 -> 0
C77: Company 2 (Net Profit Before Tax) | F77: ='Tax Scales'!Y90+(E77/12) -> 0 | N77: =D77/12 -> 0
F78: =SUM(F76:F77) -> 0
C80: Total Income | E80: =SUM(D63:D66)+SUM(E63:E64)+SUM(D76:D77)+SUM(D70:D73) -> 0 | F80: =+F67+F78 -> 0 | N80: =SUM(N63:N70) -> 0
C82: Less Living Allowance
C83: Monthly Living Expenses
C84: Living Expense Used (> of HEM or Actual) | E84: =IF(F59>E83,F59,E83) -> 0
C85: Private Schooling
C86: Health & Personal Insurances
C87: Rent / Board
C88: Child Support / Maintenance
C89: Total Living Expenses | F89: =SUM($E$84:$E$88) -> 0
C91: Total income available for debt & housing servicing | F91: =F80-F89 -> 0
C93: Less Existing Commitments | E93: Debt / Limit | F93: Monthly Pmt
C94: Credit Card (Limit not debt) | F94: =E94*3.83% -> 0 | N94: Loan balance sensitivity
N95: =IFERROR(RATE(360,F95,E95*-1,0,0,0.1)*12,0) -> 0 | O95: =IF(PMT((N95+RepayCalculator!$B$6)/12,360,E95,0,0)<(PMT(RepayCalculator!$B$8/12,360,E95,0,0)),(PMT((N95+RepayCalculator!$B$6)/12,360,E95,0,0)*-1)-F95,(PMT((RepayCalculator!$B$8)/12,360,E95,0,0)*-1)-F95) -> 0
N96: 0 | O96: =IF(PMT((N96+RepayCalculator!$B$6)/12,360,E96,0,0)<(PMT(RepayCalculator!$B$8/12,360,E96,0,0)),(PMT((N96+RepayCalculator!$B$6)/12,360,E96,0,0)*-1)-F96,(PMT((RepayCalculator!$B$8)/12,360,E96,0,0)*-1)-F96) -> 0
N97: 0 | O97: =IF(PMT((N97+RepayCalculator!$B$6)/12,360,E97,0,0)<(PMT(RepayCalculator!$B$8/12,360,E97,0,0)),(PMT((N97+RepayCalculator!$B$6)/12,360,E97,0,0)*-1)-F97,(PMT((RepayCalculator!$B$8)/12,360,E97,0,0)*-1)-F97) -> 0
N98: 0 | O98: =IF(PMT((N98+RepayCalculator!$B$6)/12,360,E98,0,0)<(PMT(RepayCalculator!$B$8/12,360,E98,0,0)),(PMT((N98+RepayCalculator!$B$6)/12,360,E98,0,0)*-1)-F98,(PMT((RepayCalculator!$B$8)/12,360,E98,0,0)*-1)-F98) -> 0
N99: 0 | O99: =IF(PMT((N99+RepayCalculator!$B$6)/12,360,E99,0,0)<(PMT(RepayCalculator!$B$8/12,360,E99,0,0)),(PMT((N99+RepayCalculator!$B$6)/12,360,E99,0,0)*-1)-F99,(PMT((RepayCalculator!$B$8)/12,360,E99,0,0)*-1)-F99) -> 0
N100: 0 | O100: =IF(PMT((N100+RepayCalculator!$B$6)/12,360,E100,0,0)<(PMT(RepayCalculator!$B$8/12,360,E100,0,0)),(PMT((N100+RepayCalculator!$B$6)/12,360,E100,0,0)*-1)-F100,(PMT((RepayCalculator!$B$8)/12,360,E100,0,0)*-1)-F100) -> 0
N101: 0 | O101: =IF(PMT((N101+RepayCalculator!$B$6)/12,360,E101,0,0)<(PMT(RepayCalculator!$B$8/12,360,E101,0,0)),(PMT((N101+RepayCalculator!$B$6)/12,360,E101,0,0)*-1)-F101,(PMT((RepayCalculator!$B$8)/12,360,E101,0,0)*-1)-F101) -> 0
N102: 0 | O102: =IF(PMT((N102+RepayCalculator!$B$6)/12,360,E102,0,0)<(PMT(RepayCalculator!$B$8/12,360,E102,0,0)),(PMT((N102+RepayCalculator!$B$6)/12,360,E102,0,0)*-1)-F102,(PMT((RepayCalculator!$B$8)/12,360,E102,0,0)*-1)-F102) -> 0
N103: 0 | O103: =IF(PMT((N103+RepayCalculator!$B$6)/12,360,E103,0,0)<(PMT(RepayCalculator!$B$8/12,360,E103,0,0)),(PMT((N103+RepayCalculator!$B$6)/12,360,E103,0,0)*-1)-F103,(PMT((RepayCalculator!$B$8)/12,360,E103,0,0)*-1)-F103) -> 0
N104: 0 | O104: =IF(PMT((N104+RepayCalculator!$B$6)/12,360,E104,0,0)<(PMT(RepayCalculator!$B$8/12,360,E104,0,0)),(PMT((N104+RepayCalculator!$B$6)/12,360,E104,0,0)*-1)-F104,(PMT((RepayCalculator!$B$8)/12,360,E104,0,0)*-1)-F104) -> 0
N105: 0 | O105: =IF(PMT((N105+RepayCalculator!$B$6)/12,360,E105,0,0)<(PMT(RepayCalculator!$B$8/12,360,E105,0,0)),(PMT((N105+RepayCalculator!$B$6)/12,360,E105,0,0)*-1)-F105,(PMT((RepayCalculator!$B$8)/12,360,E105,0,0)*-1)-F105) -> 0
E106: =SUM(E94:E105) -> 0 | F106: =SUM(F94:F105) -> 0
E107: Loan Assessment Rate (2.0% stress / minimum 5.75%) | F107: =SUM(SUMIF(C95:C105,{"Mortgage Loan - Investment","Mortgage Loan - Owner Occupied","Personal Loan - Variable","Overdraft","Line of Credit",""},O95:O105)) -> 0
F108: =SUM(F106:F107) -> 0
C110: Net Personal Servicing Position | F110: =F91-F108 -> 0
C114: Result - Must Be Positive | F114: =G37+F91-F108 -> 
C115: Result - Debt to Income Ratio (DTI) | F115: =(D23+G23+D29+G29+D7+SUM(E94:E105))/(SUM(D12:D14)+E80) -> 

Sheet Calculations breakdown (hidden)
C2: Annual | D2: Monthly | E2: Assessed %
B3: Mandatory contributions | C3: =SUM('SMSF Servicing Calculator'!D12*E3) -> 0 | D3: =C3/12 -> 0 | E3: 1
B4: Additional contributions | C4: =SUM('SMSF Servicing Calculator'!D13*E4) -> 0 | D4: =C4/12 -> 0 | E4: 1
B5: Other income | C5: =SUM('SMSF Servicing Calculator'!D17*E5) -> 0 | D5: =C5/12 -> 0 | E5: 0.8
B6: Rental income | C6: =SUM('SMSF Servicing Calculator'!D14*E6) -> 0 | D6: =C6/12 -> 0 | E6: 0.8
B7: Total gross income | C7: =SUM(C3:C6) -> 0 | D7: =C7/12 -> 0
B8: less Other investment loans 1 add back | C8: =('SMSF Servicing Calculator'!D23*D8)+C19 -> 0 | D8: =IF('SMSF Servicing Calculator'!D24<E8,E8,'SMSF Servicing Calculator'!D24) -> 0.03 | E8: 0.03 | F8: Deemed rate
B9: less Other investment loans 2 add back | C9: =('SMSF Servicing Calculator'!G23*D9) -> 0 | D9: =IF('SMSF Servicing Calculator'!G24<E9,E9,'SMSF Servicing Calculator'!G24) -> 0.03 | E9: 0.03
B10: less Other investment loans 3 add back | C10: =('SMSF Servicing Calculator'!D29*D10) -> 0 | D10: =IF('SMSF Servicing Calculator'!D30<E10,E10,'SMSF Servicing Calculator'!D30) -> 0.03 | E10: 0.03
B11: less Other investment loans 4 add back | C11: =('SMSF Servicing Calculator'!G29*D11) -> 0 | D11: =IF('SMSF Servicing Calculator'!G30<E11,E11,'SMSF Servicing Calculator'!G30) -> 0.03 | E11: 0.03
B12: less Investment loan add back (Tax deduction) | C12: ='SMSF Servicing Calculator'!D7*'SMSF Servicing Calculator'!G8 -> 0
B13: less Fund expenses (tax deductible) | C13: =IF('SMSF Servicing Calculator'!D19<2000,2000,'SMSF Servicing Calculator'!D19) -> 2000
B14: Taxable income | C14: =IF(SUM(C7-C8-C9-C10-C11-C12-C13)<0,0,SUM(C7-C8-C9-C10-C11-C12-C13)) -> 0
B15: less Tax (calculated on Taxable income) | C15: =IF(C14>0,C14*E15,0) -> 0 | E15: 0.15 | F15: All income taxed
B16: Net Annual Income | C16: =SUM(C7-C15) -> 0 | D16: =C16/12 -> 0
B17: less all other commitments | C17: =(('SMSF Servicing Calculator'!D25+'SMSF Servicing Calculator'!G25+'SMSF Servicing Calculator'!D31+'SMSF Servicing Calculator'!G31)*12) -> 0 | D17: =C17/12 -> 0
B18: less Fund expenses | C18: =IF('SMSF Servicing Calculator'!D19<2000,2000,'SMSF Servicing Calculator'!D19) -> 2000 | D18: =C18/12 -> 166.6666667
B19: less sensitivity on loan balance | C19: =('SMSF Servicing Calculator'!D23+'SMSF Servicing Calculator'!G23+'SMSF Servicing Calculator'!D29+'SMSF Servicing Calculator'!G29)*E19 -> 0 | D19: =C19/12 -> 0 | E19: 0 | F19: To activate sensitivity on existing loan limits
B20: less sensitivity on loan repayments | C20: =D20*12 -> 0 | D20: =('SMSF Servicing Calculator'!D25+'SMSF Servicing Calculator'!G25+'SMSF Servicing Calculator'!D31+'SMSF Servicing Calculator'!G31)*'Calculations breakdown'!E20 -> 0 | E20: 0.2 | F20: To activate sensitivity on existing loan repayments
B21: Surplus for servicing | C21: =SUM(C16-C17-C18-C19-C20) -> -2000 | D21: =C21/12 -> -166.6666667
B22: Actual repayments for this loan | C22: =D22*12 ->  | D22: =PMT('SMSF Servicing Calculator'!G8/12,'SMSF Servicing Calculator'!G7*12,-'SMSF Servicing Calculator'!D7) ->  | F22: Excludes all sensitivity
B23: Assessed repayments for this loan | C23: =(D23*12) ->  | D23: =PMT('SMSF Servicing Calculator'!G9/12,'SMSF Servicing Calculator'!G7*12,-'SMSF Servicing Calculator'!D7) -> 
B25: DTI | C25: ='SMSF Servicing Calculator'!D7/('SMSF Servicing Calculator'!D12+'SMSF Servicing Calculator'!D13+'SMSF Servicing Calculator'!D17+'SMSF Servicing Calculator'!D14) -> 
B26: Surplus amount per month | C26: =D21-D23 ->  | D26: Must meet $41.67
B27: Surplus amount per annum | C27: =(D21-D23)*12 ->  | D27: Must meet $500 P/A
B28: NDI used for result | C28: =C21/C23 ->  | D28: NDI >1
B29: Actual NDI | C29: =C21/C22 -> 

Sheet Non-Res Serviceability
C2: Non-Res Serviceability Calculator 5.0 | G2: =TODAY() -> 2025-12-04
C4: New Loan Commitment | D4: Loan 1 | E4: Loan 2 | F4: Loan 3
C5: Application No.
C6: Repayment Type | D6: =IF(D8=0,"",IF(D8>D9,"Principal & Interest","Interest Only")) ->  | E6: =IF(E8=0,"",IF(E8>E9,"Principal & Interest","Interest Only")) ->  | F6: =IF(F8=0,"",IF(F8>F9,"Principal & Interest","Interest Only")) -> 
C7: New Loan Amount
C8: New Loan Term (Years)
C9: Interest Only Term (Years)
C10: Interest Rate of New Loan
C11: New Monthly Loan Repayment/s | D11: =IFERROR(IF(D$6="",0,(IF(D$6="Principal & Interest",-PMT(D$10/12,(D$8-D$9)*12,D$7,0,0),((D$7*D$10)/12)))),0) -> 0 | E11: =IFERROR(IF(E$6="",0,(IF(E$6="Principal & Interest",-PMT(E$10/12,(E$8-E$9)*12,E$7,0,0),((E$7*E$10)/12)))),0) -> 0 | F11: =IFERROR(IF(F$6="",0,(IF(F$6="Principal & Interest",-PMT(F$10/12,(F$8-F$9)*12,F$7,0,0),((F$7*F$10)/12)))),0) -> 0 | G11: =SUM(D11:F11) -> 0
C12: Loan Assessment Rate | D12: =MAX(6.29%,D10+2%) -> 0.0629 | E12: =MAX(6.29%,E10+2%) -> 0.0629 | F12: =MAX(6.29%,F10+2%) -> 0.0629 | G12: =G13-G11 -> 0
C13: Stressed Loan Payments | D13: =IFERROR(IF(D$6="",0,(IF(D$6="Principal & Interest",-PMT(D$12/12,(D$8-D$9)*12,D$7,0,0),((D$7*D$12)/12)))),0) -> 0 | E13: =IFERROR(IF(E$6="",0,(IF(E$6="Principal & Interest",-PMT(E$12/12,(E$8-E$9)*12,E$7,0,0),((E$7*E$12)/12)))),0) -> 0 | F13: =IFERROR(IF(F$6="",0,(IF(F$6="Principal & Interest",-PMT(F$12/12,(F$8-F$9)*12,F$7,0,0),((F$7*F$12)/12)))),0) -> 0 | G13: =SUM(D13:F13) -> 0
F14: Additional Currency if required
C15: Country of Residence | D15: China | E15: For USD Exportation Limit
C16: Foreign Currency | D16: =VLOOKUP(D15,'Cost of Living Index'!$A$2:$C$157,3,FALSE) -> CNY | E16: USD | F16: =VLOOKUP(F15,'Cost of Living Index'!$A$2:$C$157,3,FALSE) -> 
C17: Foreign Currency Exchange Rate - www.xe.com | D17: 4.756559836 | E17: 0.673778069 | G17: 2024-10-09T13:24:40
C18: AUD to Currency | D18: =1/D17 -> 0.2102359761 | F18: =IFERROR(1/F17,0) -> 0
C20: Household Status | D20: Applicant Name | E20: Household | F20: Status | G20: Dependents | R20: DSR Status
C21: Applicant 1 | R21: =IF(F21="Single",0.4,0.35) -> 0.35
C22: Applicant 2 | R22: =IF(F22="Single",0.4,0.35) -> 0.35
C23: Applicant 3 | R23: =IF(F23="Single",0.4,0.35) -> 0.35
C24: Applicant 4 | R24: =IF(F24="Single",0.4,0.35) -> 0.35
C26: HEM Status | D26: Status | E26: Long Description | P26: Dependents
C27: Household 1 | D27: =_xlfn.IFNA(VLOOKUP(C27,$E$21:$F$24,2,FALSE),"N/A") -> N/A | E27: =D27&" with "&P27&" children" -> N/A with 0 children | P27: =SUMIF($E$21:$E$24,C27,$G$21:$G$24) -> 0
C28: Household 2 | D28: =_xlfn.IFNA(VLOOKUP(C28,$E$21:$F$24,2,FALSE),"N/A") -> N/A | E28: =D28&" with "&P28&" children" -> N/A with 0 children | P28: =SUMIF($E$21:$E$24,C28,$G$21:$G$24) -> 0
C29: Household 3 | D29: =_xlfn.IFNA(VLOOKUP(C29,$E$21:$F$24,2,FALSE),"N/A") -> N/A | E29: =D29&" with "&P29&" children" -> N/A with 0 children | P29: =SUMIF($E$21:$E$24,C29,$G$21:$G$24) -> 0
C30: Household 4 | D30: =_xlfn.IFNA(VLOOKUP(C30,$E$21:$F$24,2,FALSE),"N/A") -> N/A | E30: =D30&" with "&P30&" children" -> N/A with 0 children | P30: =SUMIF($E$21:$E$24,C30,$G$21:$G$24) -> 0
C31: Total
C33: HEM Status | D33: Income for HEM | E33: Household HEM
C34: Household 1 | D34: =SUMIF($O$41:$O$44,C34,$F$41:$F$44)+SUMIF($O$41:$O$44,C34,$J$56:$J$59)*0.8-(SUMIF($O$56:$O$63,$J34,$K$56:$K$59))+(SUMIF($O$41:$O$44,C34,$E$41:$E$44)*1.2*$F$18)+(SUMIF($O$56:$O$63,C34,$D$56:$D$63)*$D$18)+(SUMIF($O$41:$O$44,C34,$D$41:$D$44)*1.2*$D$18)+(SUMIF($O$56:$O$63,J34,$D$56:$D$63)*$F$18) -> 0 | E34: =_xlfn.IFNA(VLOOKUP(E27,'HEM2'!$B$12:$P$34,P34,FALSE),0)*52/12 -> 0 | J34: Household 1A | P34: =LOOKUP(D34,'HEM2'!$C$9:$P$9,'HEM2'!$C$7:$P$7) -> 2
C35: Household 2 | D35: =SUMIF($O$41:$O$44,C35,$F$41:$F$44)+SUMIF($O$41:$O$44,C35,$J$56:$J$59)*0.8-(SUMIF($O$56:$O$63,$J35,$K$56:$K$59))+(SUMIF($O$41:$O$44,C35,$E$41:$E$44)*1.2*$F$18)+(SUMIF($O$56:$O$63,C35,$D$56:$D$63)*$D$18)+(SUMIF($O$41:$O$44,C35,$D$41:$D$44)*1.2*$D$18)+(SUMIF($O$56:$O$63,J35,$D$56:$D$63)*$F$18) -> 0 | E35: =_xlfn.IFNA(VLOOKUP(E28,'HEM2'!$B$12:$P$34,P35,FALSE),0)*52/12 -> 0 | J35: Household 2A | P35: =LOOKUP(D35,'HEM2'!$C$9:$P$9,'HEM2'!$C$7:$P$7) -> 2
C36: Household 3 | D36: 0 | E36: =_xlfn.IFNA(VLOOKUP(E29,'HEM2'!$B$12:$P$34,P36,FALSE),0)*52/12 -> 0 | J36: Household 3A | P36: =LOOKUP(D36,'HEM2'!$C$9:$P$9,'HEM2'!$C$7:$P$7) -> 2
C37: Household 4 | D37: 0 | E37: =_xlfn.IFNA(VLOOKUP(E30,'HEM2'!$B$12:$P$34,P37,FALSE),0)*52/12 -> 0 | J37: Household 4A | K37: Australia | L37: living compare | P37: =LOOKUP(D37,'HEM2'!$C$9:$P$9,'HEM2'!$C$7:$P$7) -> 2
C38: Total and scale | E38: =SUM(E34:E37) -> 0 | K38: ='Cost of Living Index'!H15 -> 84.14 | L38: =K38/R71 -> 1.97790315
C40: Income - Personal | D40: ="Net Annual "&D16&" Income" -> Net Annual CNY Income | E40: ="Net Annual "&F16&" Income" ->  | F40: Australian Gross Annual Income | G40: Total Net Monthly Income | O40: Household | R40: Australian Gross Income - Taxable | S40: Australian Gross Income - Non Taxable
C41: Applicant 1 - Income | G41: ='Tax Scales'!$AN$14+(S41/12)+(($D41/12)*$D$18*0.8)+((E56/12)*$D$18)+(($E$41/12)*$F$18*0.8)+((E57/12)*$F$18) -> 0 | K41: =D15 -> China | L41: Australia | O41: =E21 -> 0 | R41: =F41+R56-S41 -> 0 | S41: =S56*12 -> 0
C42: Applicant 2 - Income | G42: ='Tax Scales'!$AN$27+(S42/12)+(($D42/12)*$D$18*0.8)+((E58/12)*$D$18)+(($E$42/12)*$F$18*0.8)+((E59/12)*$F$18) -> 0 | K42: 0 | L42: 0 | M42: Applicant 1 | O42: =E22 -> 0 | R42: =F42+R58-S42 -> 0 | S42: =S58*12 -> 0
C43: Applicant 3 - Income | G43: ='Tax Scales'!$AN$40+(S43/12)+(($D43/12)*$D$18*0.8)+((E60/12)*$D$18)+(($E$43/12)*$F$18*0.8)+((E61/12)*$F$18) -> 0 | K43: 0 | L43: 0 | M43: Applicant 2 | O43: =E23 -> 0 | R43: =F43+R60-S43 -> 0 | S43: =S60*12 -> 0
C44: Applicant 4 - Income | G44: ='Tax Scales'!$AN$53+(S44/12)+(($D44/12)*$D$18*0.8)+((E62/12)*$D$18)+(($E$44/12)*$F$18*0.8)+((E63/12)*$F$18) -> 0 | K44: 0 | L44: 0 | M44: Applicant 3 | O44: =E24 -> 0 | R44: =F44+R62-S44 -> 0 | S44: =S62*12 -> 0
G45: =SUM(G41:G44) -> 0 | K45: 0 | L45: 0 | M45: Applicant 4 | S45: =G64*12 -> 0
S46: 0
C47: Applicant 1 Income | D47: 0 | F47: 0 | G47: =R47+(($E47/12)*$D$18*0.9) -> 0 | R47: =F47/12 -> 0 | S47: 0
C48: Applicant 2 Income | D48: 0 | E48: 0 | F48: 0 | G48: =R48+(($E48/12)*$D$18*0.9) -> 0 | R48: =F48/12 -> 0 | S48: 0
G49: =SUM(G47:G48) -> 0 | S49: =G68*12 -> 0
C50: Company Income | D50: ="Net Annual "&D16&" Income" -> Net Annual CNY Income | E50: ="Net Annual "&F16&" Income" ->  | F50: Australian Gross Annual Income | G50: Total Net Monthly Income
C51: Self Employed Income | D51: =SUM(K42:K45) -> 0 | F51: =SUM('Non-Res Serviceability'!L42:L45) -> 0 | G51: ='Tax Scales'!$AN$83+(($D51/12)*$D$18*0.8)+(($E51/12)*$F$18*0.8) -> 0 | R51: =F51/12 -> 0
G52: ='Tax Scales'!$AN$90+(($D52/12)*$D$18*0.8)+(($E52/12)*$F$18*0.8) -> 0 | R52: =F52/12 -> 0
G53: =SUM(G51:G52) -> 0
C55: Income - Rental | D55: Gross Annual Income - Foreign Rentals | E55: Net Annual Income - Foreign Rentals | F55: Gross Annual Income - Australian Rentals | G55: Annual Interest Expense - Australian Rentals (for gearing purposes only) | R55: Gross Annual Income - Australian Rentals (less haircut) | S55: Monthly Interest Expense - Australian Rentals (for gearing purposes only)
C56: Applicant 1 - Annual Rental Income(s) | E56: =D56*RepayCalculator!$B$43 -> 0 | F56: ='Rental & Gearing'!I31 -> 0 | G56: ='Rental & Gearing'!J31 -> 0 | J56: =F56 -> 0 | K56: =G56 -> 0 | O56: =E21 -> 0 | R56: =F56*RepayCalculator!$B$43 -> 0 | S56: =G56/12 -> 0
C57: ="(Applicant 1 - "&F15&")" -> (Applicant 1 - ) | E57: =D57*RepayCalculator!$B$43 -> 0 | J57: =F58 -> 0 | K57: =G58 -> 0 | O57: =O56&"A" -> 0A | S57: =G57/12 -> 0
C58: Applicant 2 - Annual Rental Income(s) | E58: =D58*RepayCalculator!$B$43 -> 0 | F58: ='Rental & Gearing'!I32 -> 0 | G58: ='Rental & Gearing'!J32 -> 0 | J58: =F60 -> 0 | K58: =G60 -> 0 | O58: =E22 -> 0 | R58: =F58*RepayCalculator!$B$43 -> 0 | S58: 0
C59: ="(Applicant 2 - "&F15&")" -> (Applicant 2 - ) | E59: =D59*RepayCalculator!$B$43 -> 0 | J59: =F62 -> 0 | K59: =G62 -> 0 | O59: =O58&"A" -> 0A | S59: 0
C60: Applicant 3 - Annual Rental Income(s) | E60: =D60*RepayCalculator!$B$43 -> 0 | F60: ='Rental & Gearing'!I33 -> 0 | G60: ='Rental & Gearing'!J33 -> 0 | O60: =E23 -> 0 | R60: =F60*RepayCalculator!$B$43 -> 0 | S60: 0
C61: ="(Applicant 3 - "&F15&")" -> (Applicant 3 - ) | E61: =D61*RepayCalculator!$B$43 -> 0 | O61: =O60&"A" -> 0A | S61: 0
C62: Applicant 4 - Annual Rental Income(s) | E62: =D62*RepayCalculator!$B$43 -> 0 | F62: ='Rental & Gearing'!I34 -> 0 | G62: ='Rental & Gearing'!J34 -> 0 | O62: =E24 -> 0 | R62: =F62*RepayCalculator!$B$43 -> 0 | S62: 0
C63: ="(Applicant 4 - "&F15&")" -> (Applicant 4 - ) | E63: =D63*RepayCalculator!$B$43 -> 0 | O63: =O62&"A" -> 0A
C65: Total | E65: =SUM(E41:E44,D51:D52,E56:E63) -> 0 | F65: =SUM(F41:F44,F51:F52,R56:R62) -> 0 | R65: =SUM(R41:R56) -> 0
C66: Total Australia Income | G66: =((D65/12)*D18*0.8)+(SUM(F41:F44,F51:F52,R56:R62)/12) -> 0
C67: Total Net Income | G67: =+G45+G53 -> 0
C69: Less Living Allowance | D69: ="Monthly Living Expenses "&IF(OR(D15="Australia",F15="Australia")," ",D16) -> Monthly Living Expenses CNY | E69: Monthly Living Expenses (AUD) | F69: ="Monthly Living Expenses "&F16 ->  | G69: HEM
C70: Monthly Living Expenses (complete in AUD and/or O/S Currency) | G70: =IF(E70<>0,SUM(E34:E37),0) -> 0 | Q70: =(D70*$D$18*0.8)+(E70*1)+(F70*$F$18*0.8) -> 0 | R70: =(D70*$D$18*0.8)+(G70*1)+(F70*$F$18*0.8) -> 0
R71: =VLOOKUP($D$15,'Cost of Living Index'!$A$1:$B$106,2,FALSE) -> 42.54
C72: Living Expense Used (> of HEM or Actual) | G72: =IF(Q70>R70,Q70,R70) -> 0
C74: Total income available | G74: =G67-G72 -> 0
C76: Less Existing Commitments | D76: Foreign Currency Debt / Limit | E76: Foreign Currency Monthly Pmt | F76: Australian Debt / Limit | G76: Australian Monthly Pmt
C77: Credit Card | E77: =D77*3.83% -> 0 | G77: =(F77*3.83%) -> 0
P78: =IFERROR(RATE(360,E78,D78*-1,0,0,0.1)*12,0) -> 0 | Q78: =IF(PMT((P78+RepayCalculator!$B$6)/12,360,D78,0,0)<PMT(RepayCalculator!$B$8/12,360,'Non-Res Serviceability'!D78,0,0),PMT((P78+RepayCalculator!$B$6)/12,360,D78,0,0)*-1,PMT(RepayCalculator!$B$8/12,360,'Non-Res Serviceability'!D78,0,0)*-1)-E78 -> 0 | R78: =IFERROR(RATE(360,G78,F78*-1,0,0,0.1)*12,0) -> 0 | S78: =IF(PMT((R78+RepayCalculator!$B$6)/12,360,F78,0,0)<PMT(RepayCalculator!$B$8/12,360,'Non-Res Serviceability'!F78,0,0),PMT((R78+RepayCalculator!$B$6)/12,360,F78,0,0)*-1,PMT(RepayCalculator!$B$8/12,360,'Non-Res Serviceability'!F78,0,0)*-1)-G78 -> 0
P79: =IFERROR(RATE(360,E79,D79*-1,0,0,0.1)*12,0) -> 0 | Q79: =IF(PMT((P79+RepayCalculator!$B$6)/12,360,D79,0,0)<PMT(RepayCalculator!$B$8/12,360,'Non-Res Serviceability'!D79,0,0),PMT((P79+RepayCalculator!$B$6)/12,360,D79,0,0)*-1,PMT(RepayCalculator!$B$8/12,360,'Non-Res Serviceability'!D79,0,0)*-1)-E79 -> 0 | R79: =IFERROR(RATE(360,G79,F79*-1,0,0,0.1)*12,0) -> 0 | S79: =IF(PMT((R79+RepayCalculator!$B$6)/12,360,F79,0,0)<PMT(RepayCalculator!$B$8/12,360,'Non-Res Serviceability'!F79,0,0),PMT((R79+RepayCalculator!$B$6)/12,360,F79,0,0)*-1,PMT(RepayCalculator!$B$8/12,360,'Non-Res Serviceability'!F79,0,0)*-1)-G79 -> 0
P80: 0 | Q80: =IF(PMT((P80+RepayCalculator!$B$6)/12,360,D80,0,0)<PMT(RepayCalculator!$B$8/12,360,'Non-Res Serviceability'!D80,0,0),PMT((P80+RepayCalculator!$B$6)/12,360,D80,0,0)*-1,PMT(RepayCalculator!$B$8/12,360,'Non-Res Serviceability'!D80,0,0)*-1)-E80 -> 0 | R80: =IFERROR(RATE(360,G80,F80*-1,0,0,0.1)*12,0) -> 0 | S80: =IF(PMT((R80+RepayCalculator!$B$6)/12,360,F80,0,0)<PMT(RepayCalculator!$B$8/12,360,'Non-Res Serviceability'!F80,0,0),PMT((R80+RepayCalculator!$B$6)/12,360,F80,0,0)*-1,PMT(RepayCalculator!$B$8/12,360,'Non-Res Serviceability'!F80,0,0)*-1)-G80 -> 0
P81: 0 | Q81: =IF(PMT((P81+RepayCalculator!$B$6)/12,360,D81,0,0)<PMT(RepayCalculator!$B$8/12,360,'Non-Res Serviceability'!D81,0,0),PMT((P81+RepayCalculator!$B$6)/12,360,D81,0,0)*-1,PMT(RepayCalculator!$B$8/12,360,'Non-Res Serviceability'!D81,0,0)*-1)-E81 -> 0 | R81: 0 | S81: =IF(PMT((R81+RepayCalculator!$B$6)/12,360,F81,0,0)<PMT(RepayCalculator!$B$8/12,360,'Non-Res Serviceability'!F81,0,0),PMT((R81+RepayCalculator!$B$6)/12,360,F81,0,0)*-1,PMT(RepayCalculator!$B$8/12,360,'Non-Res Serviceability'!F81,0,0)*-1)-G81 -> 0
P82: 0 | Q82: =IF(PMT((P82+RepayCalculator!$B$6)/12,360,D82,0,0)<PMT(RepayCalculator!$B$8/12,360,'Non-Res Serviceability'!D82,0,0),PMT((P82+RepayCalculator!$B$6)/12,360,D82,0,0)*-1,PMT(RepayCalculator!$B$8/12,360,'Non-Res Serviceability'!D82,0,0)*-1)-E82 -> 0 | R82: =IFERROR(RATE(360,G82,F82*-1,0,0,0.1)*12,0) -> 0 | S82: =IF(PMT((R82+RepayCalculator!$B$6)/12,360,F82,0,0)<PMT(RepayCalculator!$B$8/12,360,'Non-Res Serviceability'!F82,0,0),PMT((R82+RepayCalculator!$B$6)/12,360,F82,0,0)*-1,PMT(RepayCalculator!$B$8/12,360,'Non-Res Serviceability'!F82,0,0)*-1)-G82 -> 0
C84: ="Credit Card - "&F15 -> Credit Card - | E84: =D84*3.83% -> 0 | F84: ="Foreign Commitments for "&F15 -> Foreign Commitments for | P84: =IFERROR(RATE(360,E84,D84*-1,0,0,0.1)*12,0) -> 0 | Q84: =IF(PMT((P84+RepayCalculator!$B$6)/12,360,D84,0,0)<PMT(RepayCalculator!$B$8/12,360,'Non-Res Serviceability'!D84,0,0),PMT((P84+RepayCalculator!$B$6)/12,360,D84,0,0)*-1,PMT(RepayCalculator!$B$8/12,360,'Non-Res Serviceability'!D84,0,0)*-1)-E84 -> 0 | R84: =IFERROR(RATE(360,G84,F84*-1,0,0,0.1)*12,0) -> 0
P85: =IFERROR(RATE(360,E85,D85*-1,0,0,0.1)*12,0) -> 0 | Q85: =IF(PMT((P85+RepayCalculator!$B$6)/12,360,D85,0,0)<PMT(RepayCalculator!$B$8/12,360,'Non-Res Serviceability'!D85,0,0),PMT((P85+RepayCalculator!$B$6)/12,360,D85,0,0)*-1,PMT(RepayCalculator!$B$8/12,360,'Non-Res Serviceability'!D85,0,0)*-1)-E85 -> 0 | R85: =IFERROR(RATE(360,G85,F85*-1,0,0,0.1)*12,0) -> 0 | S85: =IF(PMT((R85+RepayCalculator!$B$6)/12,360,F85,0,0)<PMT(RepayCalculator!$B$8/12,360,'Non-Res Serviceability'!F85,0,0),PMT((R85+RepayCalculator!$B$6)/12,360,F85,0,0)*-1,PMT(RepayCalculator!$B$8/12,360,'Non-Res Serviceability'!F85,0,0)*-1)-G85 -> 0
E90: =SUM(E77:E83)*0.8 -> 0 | F90: =SUM(E84:E88) -> 0 | G90: =SUM(G77:G88) -> 0 | P90: =SUM(D80:D82)+D78 -> 0 | R90: =SUM(F80:F82)+F78 -> 0
C92: Total Commitments - AUD | G92: =G90 -> 0 | R92: =R90 -> 0 | S92: =SUM($S$78:$S$85) -> 0
C93: ="Total Commitments - "&D16 -> Total Commitments - CNY | G93: =$E$90*$D$18 -> 0 | R93: =$P$90*D18 -> 0 | S93: =SUM($Q$77:$Q$85)*nrExRate -> 0
C94: ="Total Commitments - "&F16 ->  | G94: =$F$90*$F$18*0.8 -> 0
C95: Total Net Commitments | G95: =SUM(G92:G94) -> 0 | R95: =SUM(R92:R93) -> 0 | S95: =SUM(S92:S93) -> 0
C97: Net Disposable Income | G97: =G74-G95-G13 -> 0
L98: Foreign currency | M98: =SUM(D78:D83)/12*nrExRate*2.25%*0.8 -> 0
C99: Serviceability Stress Test | L99: Foreign currency 2 | M99: =SUM(D85:D88)/12*F18*2.25%*0.8 -> 0
C100: minus Existing Commitment Sensitivity | G100: =M98+M100+M99 -> 0 | L100: AUD | M100: =SUM(F78:F83)/12*2.25% -> 0
C102: Total Liabilities | G102: =#REF!+G100+G11+G95 -> 
G103: Summary
C104: NSI | G104: =G97-G100 -> 0 | P104: =IF(G104>0,"PASS","FAIL") -> FAIL
G105: =G102/G66 ->  | N105: =IF(MAX($R$21:$R$24)=0.4,0.4,0.35) -> 0.35 | O105: =IF(MAX($R$21:$R$24)=0.4,"Test 2 - Must NOT exceed 40%","Test 2 - Must NOT exceed 35%") -> Test 2 - Must NOT exceed 35% | P105: =IF(G105>N105,"FAIL","PASS") -> 
C106: USD Exportation Limit | G106: =IF(M130>0,"FAIL","PASS") -> PASS
C107: DTI | G107: =SUM(M116:M118)/SUM(M113:M115) ->  | P107: =IF(AND(D15<>"China",P104="PASS"),"PASS",IF(P104="PASS",IF(G106="PASS","PASS","FAIL"),"FAIL")) -> FAIL
P109: =IFERROR(IF(AND(M128<M129,D15="China"),"USD "&50000*COUNTA(D21:D24)&" Exportation Limit Not Passed - Over by USD "&TEXT(M130,"0.00")&". Please Recalcualte or Refer to Lender",""),"") -> 
C110: Maximum Loan Available - Principal & Interest loans only | G110: =IF(OR(E7>0,F7>0),"N/A - Multiple loans",IF(D6="Principal & Interest",FLOOR(-PV((D12)/12,(D8-D9)*12,(G74-G90-G100),0,0),100),"N/A")) -> N/A
L112: DTI
K113: Income | L113: Foreign currency | M113: =(SUM(D41:D44)+SUM(D51:D52)+D56+D58+D60+D62)*$D$18 -> 0
K114: Income | L114: Foreign currency 2 | M114: =(SUM(E41:E44)+SUM(E51:E52)+D57+D59+D61+D63)*$F$18 -> 0
K115: Income | L115: AUD | M115: =G66*12 -> 0
K116: Debt | L116: Foreign currency | M116: =SUM(D77:D83)*$D$18 -> 0
K117: Debt | L117: Foreign currency 2 | M117: =SUM(D84:D88)*$F$18 -> 0
K118: Debt | L118: AUD | M118: =SUM(F77:F83)+SUM(D7:F7) -> 0
L125: Yearly Currency Export Test
L126: Aus Income position | M126: =G66 -> 0
L127: New loan repayment | M127: =-G13*12 -> 0
L128: NET position | M128: =(M126+M127)/E17 -> 0
L129: USD 50000 to AUD | M129: =-50000*COUNTA(D21:D24) -> 0
L130: Short | M130: =M129-M128 -> 0

Sheet HEM not in used (hidden)
D4: "HEM Table 1" equivalent: by Income Level and Residency
F5: BASED ON PREDICTED VALUES FROM THE QUANTILE REGRESSIONS | P5: 2024Q2
H6: Smoothed HEM
B7: Column for lookup | C7: 2 | D7: 3 | E7: 4 | F7: 5 | G7: 6 | H7: 7 | I7: 8 | J7: 9 | K7: 10 | L7: 11 | M7: 12 | N7: 13 | O7: 14 | P7: 15
F8: Total current gross HH income from all sources (measured in current dollars)
C9: -9999999999 | D9: 26000 | E9: 39000 | F9: 51000 | G9: 64000 | H9: 77000 | I9: 103000 | J9: 129000 | K9: 154000 | L9: 180000 | M9: 206000 | N9: 257000 | O9: 321000 | P9: 386000
C10: or less | D10: to | E10: to | F10: to | G10: to | H10: to | I10: to | J10: to | K10: to | L10: to | M10: to | N10: to | O10: to | P10: to
D11: 39000 | E11: 51000 | F11: 64000 | G11: 77000 | H11: 103000 | I11: 129000 | J11: 154000 | K11: 180000 | L11: 206000 | M11: 257000 | N11: 321000 | O11: 386000 | P11: 643000
B12: Australia
B13: Couple with 0 children | C13: =D13 -> 586.7481415 | D13: 586.7481415 | E13: 603.3442481 | F13: 627.4646494 | G13: 668.9426667 | H13: 732.4726251 | I13: 811.6525383 | J13: 885.3689981 | K13: 967.6632789 | L13: 1010.480881 | M13: 1073.300208 | N13: 1196.785138 | O13: 1343.338327 | P13: 1380.726345
B14: Couple with 1 children | C14: =E14 -> 693.536498 | D14: =E14 -> 693.536498 | E14: 693.536498 | F14: 717.7759372 | G14: 759.4586165 | H14: 823.3019856 | I14: 902.8726098 | J14: 976.9527683 | K14: 1059.653145 | L14: 1102.681935 | M14: 1165.811306 | N14: 1289.905511 | O14: 1437.181682 | P14: 1474.754285
B15: Couple with 2 children | C15: =D15 -> 765.2476176 | D15: =E15 -> 765.2476176 | E15: 765.2476176 | F15: 789.4258639 | G15: 831.0033436 | H15: 894.6856304 | I15: 974.055468 | J15: 1047.948676 | K15: 1130.440387 | L15: 1173.360599 | M15: 1236.330671 | N15: 1360.11174 | O15: 1507.016278 | P15: 1544.494034
B16: Couple with 3 children | C16: =F16 -> 848.6494055 | D16: =F16 -> 848.6494055 | E16: =F16 -> 848.6494055 | F16: 848.6494055 | G16: 889.8873394 | H16: 953.0495866 | I16: 1031.771154 | J16: 1105.060875 | K16: 1186.878856 | L16: 1229.448538 | M16: 1291.904332 | N16: 1414.674478 | O16: 1560.37928 | P16: 1597.550954
B17: Couple with 4 children | C17: =D17 -> 907.8729471 | D17: =E17 -> 907.8729471 | E17: =F17 -> 907.8729471 | F17: =F16+(F16-F15) -> 907.8729471 | G17: =G16+(G16-G15) -> 948.7713352 | H17: 1011.413543 | I17: 1089.48684 | J17: 1162.173073 | K17: 1243.317324 | L17: 1285.536476 | M17: 1347.477992 | N17: 1469.237215 | O17: 1613.742282 | P17: 1650.607874
B18: Couple with 5 children | C18: =C17+(C17-C16) -> 967.0964887 | D18: 967.0964887 | E18: 967.0964887 | F18: 967.0964887 | G18: 1007.655331 | H18: 1069.777499 | I18: 1147.202526 | J18: 1219.285272 | K18: 1299.755793 | L18: 1341.624414 | M18: 1403.051652 | N18: 1523.799953 | O18: 1667.105284 | P18: 1703.664794
B19: Couple with 6 children | C19: 1026.32003 | D19: 1026.32003 | E19: 1026.32003 | F19: 1026.32003 | G19: 1066.539327 | H19: 1128.141455 | I19: 1204.918212 | J19: 1276.39747 | K19: 1356.194262 | L19: 1397.712353 | M19: 1458.625313 | N19: 1578.362691 | O19: 1720.468285 | P19: =P18+(P18-P17) -> 1756.721714
B20: Couple with 7 children | C20: 1085.543572 | D20: 1085.543572 | E20: 1085.543572 | F20: 1085.543572 | G20: 1125.423322 | H20: 1186.505411 | I20: 1262.633898 | J20: 1333.509669 | K20: 1412.63273 | L20: 1453.800291 | M20: 1514.198973 | N20: 1632.925428 | O20: 1773.831287 | P20: 1809.778635
B21: Couple with 8 children | C21: 1144.767114 | D21: 1144.767114 | E21: 1144.767114 | F21: 1144.767114 | G21: 1184.307318 | H21: 1244.869367 | I21: 1320.349584 | J21: 1390.621867 | K21: 1469.071199 | L21: 1509.888229 | M21: 1569.772633 | N21: 1687.488166 | O21: 1827.194289 | P21: 1862.835555
B22: Couple with 9 children | C22: 1203.990655 | D22: 1203.990655 | E22: 1203.990655 | F22: 1203.990655 | G22: 1243.191314 | H22: 1303.233324 | I22: 1378.06527 | J22: 1447.734066 | K22: 1525.509667 | L22: 1565.976167 | M22: 1625.346294 | N22: 1742.050904 | O22: 1880.557291 | P22: =P21+(P21-P20) -> 1915.892475
B23: Couple with 10 children | C23: 1263.214197 | D23: 1263.214197 | E23: 1263.214197 | F23: 1263.214197 | G23: 1302.07531 | H23: 1361.59728 | I23: 1435.780956 | J23: 1504.846264 | K23: 1581.948136 | L23: 1622.064106 | M23: 1680.919954 | N23: 1796.613642 | O23: 1933.920293 | P23: 1968.949395
B24: Single with 0 children | C24: 302.3152413 | D24: 316.9862343 | E24: 333.4873201 | F24: 357.4696274 | G24: 398.7101559 | H24: 461.876375 | I24: 540.6028859 | J24: 613.8972718 | K24: 695.7203915 | L24: 738.2927749 | M24: 800.7524688 | N24: 923.5303531 | O24: 1069.244376 | P24: 1106.418393
B25: Single with 1 children | C25: =D25 -> 418.7843569 | D25: 418.7843569 | E25: 435.3162851 | F25: 459.3434043 | G25: 500.6610114 | H25: 563.9452771 | I25: 642.8189827 | J25: 716.2503182 | K25: 798.2264115 | L25: 840.8783492 | M25: 903.4547691 | N25: 1026.462121 | O25: 1172.448536 | P25: 1209.691962
B26: Single with 2 children | C26: =D26 -> 530.7080037 | D26: 530.7080037 | E26: 547.3368351 | F26: 571.5047978 | G26: 613.0646028 | H26: 676.7198317 | I26: 756.0558745 | J26: 829.9176909 | K26: 912.3742793 | L26: 955.2762366 | M26: 1018.219507 | N26: 1141.947948 | O26: 1288.790004 | P26: 1326.251856
B27: Single with 3 children | C27: =E27 -> 659.357385 | D27: =E27 -> 659.357385 | E27: 659.357385 | F27: 683.6661913 | G27: 725.4681942 | H27: 789.4943864 | I27: 869.2927663 | J27: 943.5850636 | K27: 1026.522147 | L27: 1069.674124 | M27: 1132.984246 | N27: 1257.433774 | O27: 1405.131471 | P27: 1442.81175
B28: Single with 4 children | C28: =D28 -> 771.377935 | D28: =E28 -> 771.377935 | E28: =E27+(E27-E26) -> 771.377935 | F28: 795.8275848 | G28: 837.8717856 | H28: 902.2689411 | I28: 982.529658 | J28: 1057.252436 | K28: 1140.670015 | L28: 1184.072011 | M28: 1247.748984 | N28: 1372.919601 | O28: =O27+(O27-O26) -> 1521.472938 | P28: =P27+(P27-P26) -> 1559.371643
B29: Single with 5 children | C29: =D29 -> 883.398485 | D29: 883.398485 | E29: 883.398485 | F29: 907.9889783 | G29: 950.275377 | H29: 1015.043496 | I29: 1095.76655 | J29: 1170.919809 | K29: 1254.817883 | L29: 1298.469899 | M29: 1362.513722 | N29: 1488.405428 | O29: 1637.814405 | P29: 1675.931537
B30: Single with 6 children | C30: 995.419035 | D30: 995.419035 | E30: 995.419035 | F30: 1020.150372 | G30: 1062.678968 | H30: 1127.81805 | I30: 1209.003442 | J30: 1284.587182 | K30: 1368.965751 | L30: 1412.867786 | M30: 1477.27846 | N30: 1603.891254 | O30: 1754.155872 | P30: 1792.491431
B31: Single with 7 children | C31: 1107.439585 | D31: 1107.439585 | E31: 1107.439585 | F31: 1132.311765 | G31: 1175.08256 | H31: 1240.592605 | I31: 1322.240333 | J31: 1398.254554 | K31: 1483.113618 | L31: 1527.265673 | M31: 1592.043199 | N31: 1719.377081 | O31: 1870.49734 | P31: 1909.051325
B32: Single with 8 children | C32: 1219.460135 | D32: 1219.460135 | E32: 1219.460135 | F32: 1244.473159 | G32: 1287.486151 | H32: 1353.36716 | I32: 1435.477225 | J32: 1511.921927 | K32: 1597.261486 | L32: 1641.663561 | M32: 1706.807937 | N32: 1834.862908 | O32: 1986.838807 | P32: =P31+(P31-P30) -> 2025.611218
B33: Single with 9 children | C33: 1331.480685 | D33: 1331.480685 | E33: 1331.480685 | F33: 1356.634552 | G33: 1399.889743 | H33: 1466.141714 | I33: 1548.714117 | J33: 1625.5893 | K33: 1711.409354 | L33: 1756.061448 | M33: 1821.572675 | N33: 1950.348734 | O33: 2103.180274 | P33: 2142.171112
B34: Single with 10 children | C34: 1443.501235 | D34: 1443.501235 | E34: 1443.501235 | F34: 1468.795946 | G34: 1512.293334 | H34: 1578.916269 | I34: 1661.951009 | J34: 1739.256672 | K34: 1825.557222 | L34: 1870.459335 | M34: 1936.337414 | N34: 2065.834561 | O34: 2219.521741 | P34: 2258.731006

Sheet Self Employed Calculator (hidden)
C4: Self employed worksheet
C5: ="Self employed - "&'Non-Res Serviceability'!D15 -> Self employed - China
D7: Current year | F7: Previous year | H7: Comments
C8: Tax year ending | H8: =IF(OR(TaxYearPrev=0,TaxYearCur=0),IF(D24<F24,"Please explain lower current year net income:",IF(D24>F24*1.2,"Please explain > 20% increase in net income:","")),IF(ISERROR(VALUE(D8)<>VALUE(F8)+1),IF(D24<F24,"Please explain lower current year net income:",IF(D24>F24*1.2,"Please explain > 20% increase in net income:","")),IF(VALUE(D8)<>VALUE(F8)+1,"Error - Tax years not in consecutive order",IF(D24<F24,"Please explain lower current year net income:",IF(D24>F24*1.2,"Please explain > 20% increase in net income:",""))))) -> 
C10: Profit/loss (after tax) | H10: =IF(AND(ProfitCur<>"",ProfitPrev<>""),"",IF(OR(ProfitCur<>"",ProfitPrev<>""),"Please explain only one year income is being used: ","")) -> 
C11: minus Non-recurring income
C13: Total profit/loss | D13: =ProfitCur-NonRecIncCur -> 0 | F13: =ProfitPrev-NonRecIncPrev -> 0
C14: Allowable add-backs
C15: Director salary/fees (before tax)
C16: Depreciation *
C17: Interest expenses (loans being refinanced)
C18: Superannuation (in excess of compulsory)
C19: Non-recurring expenses (please specify)
C20: Other (please specify)
C22: Total add-backs | D22: =D15+D17+D18+D19+D20+MIN(VALUE(D16),MAX(D13*20%,0)) -> 0 | F22: =F15+F17+F18+F19+F20+MIN(VALUE(F16),MAX(F13*20%,0)) -> 0
C24: Net available income | D24: =D13+D22 -> 0 | F24: =F13+F22 -> 0 | M24: 2
C26: Average net available income | F26: =IF(AND(ProfitCur<>"",ProfitPrev<>""),(F24+D24)/2,IF(OR(ProfitCur<>"",ProfitPrev<>""),MAX(D24,F24),0)) -> 0 | H26: =IF(AND(SE1netAv>0,SE1netAv>SE1netAvAdj,SE1Test=1),"This amount can only be considered on an exception basis","") -> 
C28: Income for serviceability | F28: =IF(AND(ProfitCur<>"",ProfitPrev<>""),IF(D24<F24,MIN(D24,F26),MIN(F26,F24+ABS(F24*0.2))),IF(OR(ProfitCur<>"",ProfitPrev<>""),MAX(D24,F24),0)) -> 0 | H28: (this amount auto populates serviceability worksheet)
C29: (uses lower current year or max 20% increase rule)
D31: Applicant 1 | F31: Applicant 2 | H31: Applicant 3 | J31: Applicant 4 | K31: Total allocation
C32: Income allocation to applicants (%) | K32: =IF(ROUND(D32+F32+H32+J32,3)>100%,"Error - Total >100%",TEXT(ROUND(D32+F32+H32+J32,3),"0.00%")) -> 0.00% | L32: =IF(ROUND(D32+F32+H32+J32,3)>100%,K32,"") ->  | M32: =ROUND(MAX(1-Bus1_App2Distr-Bus1_App3Distr-Bus1_App4Distr,0),8) -> 1 | N32: =ROUND(MAX(1-Bus1_App1Distr-Bus1_App3Distr-Bus1_App4Distr,0),8) -> 1 | O32: =ROUND(MAX(1-Bus1_App2Distr-Bus1_App1Distr-Bus1_App4Distr,0),8) -> 1 | P32: =ROUND(1-Bus1_App2Distr-Bus1_App3Distr-Bus1_App1Distr,8) -> 1
C34: ="Income distribution for "&'Non-Res Serviceability'!D15 -> Income distribution for China | D34: =IFERROR(IF(SE1Test=1,Bus1_App1Distr*SE1netAv,IF(SE1Test=2,Bus1_App1Distr*SE1netAvAdj,0)),"") -> 0 | F34: =IFERROR(IF(SE1Test=1,Bus1_App2Distr*SE1netAv,IF(SE1Test=2,Bus1_App2Distr*SE1netAvAdj,0)),"") -> 0 | H34: =IFERROR(IF(SE1Test=1,Bus1_App3Distr*SE1netAv,IF(SE1Test=2,Bus1_App3Distr*SE1netAvAdj,0)),"") -> 0 | J34: =IFERROR(IF(SE1Test=1,Bus1_App4Distr*SE1netAv,IF(SE1Test=2,Bus1_App4Distr*SE1netAvAdj,0)),"") -> 0
B36: * Depreciation add-back automatically limited to a maximum 20% of profit in the total add-backs.
C37: ="Self employed - Australia" -> Self employed - Australia
D39: Current year | F39: Previous year | H39: Comments
C40: Tax year ending | H40: =IF(OR(TaxYearPrev2=0,TaxYearCur2=0),IF(D56<F56,"Please explain lower current year net income:",IF(D56>F56*1.2,"Please explain > 20% increase in net income:","")),IF(ISERROR(VALUE(D40)<>VALUE(F40)+1),IF(D56<F56,"Please explain lower current year net income:",IF(D56>F56*1.2,"Please explain > 20% increase in net income:","")),IF(VALUE(D40)<>VALUE(F40)+1,"Error - Tax years not in consecutive order",IF(D56<F56,"Please explain lower current year net income:",IF(D56>F56*1.2,"Please explain > 20% increase in net income:",""))))) -> 
C42: Profit/loss (after tax) | H42: =IF(AND(ProfitCur2<>"",ProfitPrev2<>""),"",IF(OR(ProfitCur2<>"",ProfitPrev2<>""),"Please explain only one year income is being used: ","")) -> 
C43: minus Non-recurring income
C45: Total profit/loss | D45: =ProfitCur2-NonRecIncCur2 -> 0 | F45: =ProfitPrev2-NonRecIncPrev2 -> 0
C46: Allowable add-backs
C47: Director salary/fees (before tax)
C48: Depreciation *
C49: Interest expenses (loans being refinanced)
C50: Superannuation (in excess of compulsory)
C51: Non-recurring expenses (please specify)
C52: Other (please specify)
C54: Total add-backs | D54: =D47+D49+D50+D51+D52+MIN(VALUE(D48),MAX(D45*20%,0)) -> 0 | F54: =F47+F49+F50+F51+F52+MIN(VALUE(F48),MAX(F45*20%,0)) -> 0
C56: Net available income | D56: =D45+D54 -> 0 | F56: =F45+F54 -> 0 | M56: 2
C58: Average net available income | F58: =IF(AND(ProfitCur2<>"",ProfitPrev2<>""),(F56+D56)/2,IF(OR(ProfitCur2<>"",ProfitPrev2<>""),MAX(D56,F56),0)) -> 0 | H58: =IF(AND(SE2netAv>0,SE2netAv>SE2netAvAdj,SE2Test=1),"This amount can only be considered on an exception basis","") -> 
C60: Income for serviceability | F60: =IF(AND(ProfitCur2<>"",ProfitPrev2<>""),IF(D56<F56,MIN(D56,F58),MIN(F58,F56+ABS(F56*0.2))),IF(OR(ProfitCur2<>"",ProfitPrev2<>""),MAX(D56,F56),0)) -> 0 | H60: (this amount auto populates serviceability worksheet)
C61: (uses lower current year or max 20% increase rule)
D63: Applicant 1 | F63: Applicant 2 | H63: Applicant 3 | J63: Applicant 4 | K63: Total allocation
C64: Income allocation to applicants (%) | K64: =IF(ROUND(D64+F64+H64+J64,3)>100%,"Error - Total >100%",TEXT(ROUND(D64+F64+H64+J64,3),"0.00%")) -> 0.00% | L64: =IF(ROUND(D64+F64+H64+J64,3)>100%,K64,"") ->  | M64: =ROUND(MAX(1-Bus2_App2Distr-Bus2_App3Distr-Bus2_App4Distr,0),8) -> 1 | N64: =ROUND(MAX(1-Bus2_App1Distr-Bus2_App3Distr-Bus2_App4Distr,0),8) -> 1 | O64: =ROUND(MAX(1-Bus2_App2Distr-Bus2_App1Distr-Bus2_App4Distr,0),8) -> 1 | P64: =ROUND(MAX(1-Bus2_App2Distr-Bus2_App3Distr-Bus2_App1Distr,0),8) -> 1
C66: Income distribution for Australia | D66: =IFERROR(IF(SE2Test=1,Bus2_App1Distr*SE2netAv,IF(SE2Test=2,Bus2_App1Distr*SE2netAvAdj,0)),"") -> 0 | F66: =IFERROR(IF(SE2Test=1,Bus2_App2Distr*SE2netAv,IF(SE2Test=2,Bus2_App2Distr*SE2netAvAdj,0)),"") -> 0 | H66: =IFERROR(IF(SE2Test=1,Bus2_App3Distr*SE2netAv,IF(SE2Test=2,Bus2_App3Distr*SE2netAvAdj,0)),"") -> 0 | J66: =IFERROR(IF(SE2Test=1,Bus2_App4Distr*SE2netAv,IF(SE2Test=2,Bus2_App4Distr*SE2netAvAdj,0)),"") -> 0
B68: * Depreciation add-back automatically limited to a maximum 20% of profit in the total add-backs.

Sheet Rental & Gearing (hidden)
F3: Rental Income | R3: Negative Gearing | Y3: Rental
F4: Property Address | I4: Gross Rental | J4: Frequency | L4: Annual Rental | M4: Verification | N4: App 1 | O4: App 2 | P4: App 3 | Q4: App 4 | R4: Amount Owing | S4: Interest Rate | T4: Annual Gearing | U4: App 1 | V4: App 2 | W4: App 3 | X4: App 4 | Y4: App 1 | Z4: App 2 | AA4: App 3 | AB4: App 4
I5: 0 | K5: =IF(J5="Weekly",52,IF(J5="Fortnightly",26,IF(J5="Monthly",12,IF(J5="Quarterly",4,1)))) -> 1 | L5: =I5*K5 -> 0 | R5: 0 | T5: =R5*S5 -> 0 | U5: =T5*N5 -> 0 | V5: =T5*O5 -> 0 | W5: =T5*P5 -> 0 | X5: =Q5*T5 -> 0 | Y5: =N5*L5 -> 0 | Z5: =O5*L5 -> 0 | AA5: =P5*L5 -> 0 | AB5: =Q5*L5 -> 0
I6: 0 | K6: 1 | L6: 0 | R6: 0 | T6: 0 | U6: 0 | V6: 0 | W6: 0 | X6: 0 | Y6: 0 | Z6: 0 | AA6: 0 | AB6: 0
I7: 0 | K7: 1 | L7: 0 | R7: 0 | T7: 0 | U7: 0 | V7: 0 | W7: 0 | X7: 0 | Y7: 0 | Z7: 0 | AA7: 0 | AB7: 0
I8: 0 | K8: 1 | L8: 0 | R8: 0 | T8: 0 | U8: 0 | V8: 0 | W8: 0 | X8: 0 | Y8: 0 | Z8: 0 | AA8: 0 | AB8: 0
I9: 0 | K9: 1 | L9: 0 | R9: 0 | T9: 0 | U9: 0 | V9: 0 | W9: 0 | X9: 0 | Y9: 0 | Z9: 0 | AA9: 0 | AB9: 0
I10: 0 | K10: 1 | L10: 0 | R10: 0 | T10: 0 | U10: 0 | V10: 0 | W10: 0 | X10: 0 | Y10: 0 | Z10: 0 | AA10: 0 | AB10: 0 | AF10: Weekly | AG10: Valuation
I11: 0 | K11: 1 | L11: 0 | R11: 0 | T11: 0 | U11: 0 | V11: 0 | W11: 0 | X11: 0 | Y11: 0 | Z11: 0 | AA11: 0 | AB11: 0 | AF11: Fortnightly | AG11: Lease Agreement
I12: 0 | K12: 1 | L12: 0 | R12: 0 | T12: 0 | U12: 0 | V12: 0 | W12: 0 | X12: 0 | Y12: 0 | Z12: 0 | AA12: 0 | AB12: 0 | AF12: Monthly | AG12: Rental Statements
I13: 0 | K13: 1 | L13: 0 | R13: 0 | T13: 0 | U13: 0 | V13: 0 | W13: 0 | X13: 0 | Y13: 0 | Z13: 0 | AA13: 0 | AB13: 0 | AF13: Quarterly | AG13: Bank Statements
I14: 0 | K14: 1 | L14: 0 | R14: 0 | T14: 0 | U14: 0 | V14: 0 | W14: 0 | X14: 0 | Y14: 0 | Z14: 0 | AA14: 0 | AB14: 0
I15: 0 | K15: 1 | L15: 0 | R15: 0 | T15: 0 | U15: 0 | V15: 0 | W15: 0 | X15: 0 | Y15: 0 | Z15: 0 | AA15: 0 | AB15: 0
I16: 0 | K16: 1 | L16: 0 | R16: 0 | T16: 0 | U16: 0 | V16: 0 | W16: 0 | X16: 0 | Y16: 0 | Z16: 0 | AA16: 0 | AB16: 0
I17: 0 | K17: 1 | L17: 0 | R17: 0 | T17: 0 | U17: 0 | V17: 0 | W17: 0 | X17: 0 | Y17: 0 | Z17: 0 | AA17: 0 | AB17: 0
I18: 0 | K18: 1 | L18: 0 | R18: 0 | T18: 0 | U18: 0 | V18: 0 | W18: 0 | X18: 0 | Y18: 0 | Z18: 0 | AA18: 0 | AB18: 0
I19: 0 | K19: 1 | L19: 0 | R19: 0 | T19: 0 | U19: 0 | V19: 0 | W19: 0 | X19: 0 | Y19: 0 | Z19: 0 | AA19: 0 | AB19: 0
I20: 0 | K20: 1 | L20: 0 | R20: 0 | T20: 0 | U20: 0 | V20: 0 | W20: 0 | X20: 0 | Y20: 0 | Z20: 0 | AA20: 0 | AB20: 0
I21: 0 | K21: 1 | L21: 0 | R21: 0 | T21: 0 | U21: 0 | V21: 0 | W21: 0 | X21: 0 | Y21: 0 | Z21: 0 | AA21: 0 | AB21: 0
I22: 0 | K22: 1 | L22: 0 | R22: 0 | T22: 0 | U22: 0 | V22: 0 | W22: 0 | X22: 0 | Y22: 0 | Z22: 0 | AA22: 0 | AB22: 0
I23: 0 | K23: 1 | L23: 0 | R23: 0 | T23: 0 | U23: 0 | V23: 0 | W23: 0 | X23: 0 | Y23: 0 | Z23: 0 | AA23: 0 | AB23: 0
I24: 0 | K24: 1 | L24: 0 | R24: 0 | T24: 0 | U24: 0 | V24: 0 | W24: 0 | X24: 0 | Y24: 0 | Z24: 0 | AA24: 0 | AB24: 0
I25: 0 | K25: 1 | L25: 0 | R25: 0 | T25: 0 | U25: 0 | V25: 0 | W25: 0 | X25: 0 | Y25: 0 | Z25: 0 | AA25: 0 | AB25: 0
I26: 0 | K26: 1 | L26: 0 | R26: 0 | T26: 0 | U26: 0 | V26: 0 | W26: 0 | X26: 0 | Y26: 0 | Z26: 0 | AA26: 0 | AB26: 0
I27: 0 | K27: 1 | L27: 0 | R27: 0 | T27: 0 | U27: 0 | V27: 0 | W27: 0 | X27: 0 | Y27: 0 | Z27: 0 | AA27: 0 | AB27: 0
I28: 0 | K28: 1 | L28: 0 | R28: 0 | T28: 0 | U28: 0 | V28: 0 | W28: 0 | X28: 0 | Y28: 0 | Z28: 0 | AA28: 0 | AB28: 0
I29: 0 | K29: 1 | L29: 0 | R29: 0 | T29: 0 | U29: 0 | V29: 0 | W29: 0 | X29: 0 | Y29: 0 | Z29: 0 | AA29: 0 | AB29: 0
F30: Servicing Figure Inputs | I30: Rental | J30: Gearing
F31: Applicant 1 | I31: =SUM(Y5:Y29) -> 0 | J31: =SUM(U5:U29) -> 0 | N31: Ownership must be input as a percentage for each individual. | R31: Full debt must be considered for non parties to the loan.
F32: Applicant 2 | I32: =SUM(Z5:Z29) -> 0 | J32: =SUM(V5:V29) -> 0
F33: Applicant 3 | I33: =SUM(AA5:AA29) -> 0 | J33: =SUM(W5:W29) -> 0
F34: Applicant 4 | I34: =SUM(AB5:AB29) -> 0 | J34: =SUM(X5:X29) -> 0

Sheet China (USD) exportation limit
B2: Customer Name
B3: Application Number
B5: Proposed Loan Facility | E5: 0
B6: China Limit Exportation Calculation | D6: Per annum | E6: AUD Amt Per Mth
B7: Australian PAYG or S/E income | C7: 1 | D7: 0 | E7: =SUM(C7*D7)/12 -> 0
B8: Proposed monthly rental income (weekly x 52 / 12) | C8: 0.8 | D8: 0 | E8: =SUM(C8*D8)/12 -> 0
B9: All existing AUS property rental income | C9: 0.8 | D9: =900*52 -> 46800 | E9: =SUM(C9*D9)/12 -> 3120
B10: Each Applicant - USD50,000 Annual Exportation Limit | C10: 0.66 | D10: 50000 | E10: =SUM(D10/C10)/12 -> 6313.131313
B11: Total Monthly Income | E11: =SUM(E7:E10) -> 9433.131313
B12: Proposed monthly Loan Repayment (actual rate from servicing calculator) | E12: 4956.58
B13: Existing AUS Monthly repayments | C13: Credit Cards | E13: 0
C14: Personal Loan | E14: 0
C15: Home Loans | E15: 0
B16: AUST Monthly Living Expenses | E16: 0
B17: Total Monthly Expenses/Repayments | E17: =SUM(E12:E16) -> 4956.58
B18: Shortfall/Surplus funds AUD per month | E18: =E11-E17 -> 4476.551313
B19: Shortfall / Surplus Funds AUD | C19: 12 | D19: =SUM(E18) -> 4476.551313 | E19: =SUM(C19*D19) -> 53718.61576
B20: Please Note: Converted AUD Exportation Limit should be greater than Shortfall Funds AUD

Sheet Numbeo Living Expense Reference
B1: Type of Applicants | D1: Per Child 50% of Single
A2: Country | B2: Single | C2: Couple(1.92 * Single) | G2: Country | H2: Single | I2: Couple | J2: ratio
A3: Australia | B3: 1599.3 | C3: =B3*1.92 -> 3070.656 | D3: =+B3/2 -> 799.65 | G3: Australia | H3: 1438.44 | I3: 2740.14 | J3: =I3/H3 -> 1.904938684 | K3: As NUMBEO does not release living expense for couple any more, we use the ratio (Couple/Single) from old data. See the left. And since the maximum ratio is 1.92, we use this maximum ratio in a conservative view.
A4: Brazil | B4: 799.6 | C4: =B4*1.92 -> 1535.232 | D4: =+B4/2 -> 399.8 | G4: Brazil | H4: 655.75 | I4: 1238.71 | J4: =I4/H4 -> 1.888997331
A5: Brunei | B5: 1207.7 | C5: 2318.784 | D5: =+B5/2 -> 603.85 | G5: Brunei | H5: 822.12 | I5: 1569.89 | J5: 1.909563081
A6: Canada | B6: 1607.1 | C6: 3085.632 | D6: 803.55 | G6: Canada | H6: 1332.25 | I6: 2549.16 | J6: 1.913424658
A7: China | B7: 834.6 | C7: 1602.432 | D7: 417.3 | G7: China | H7: 830.9 | I7: 1580.92 | J7: 1.902659767
A8: France | B8: 1570.2 | C8: 3014.784 | D8: 785.1 | G8: France | H8: 1578.85 | I8: 2980.97 | J8: 1.888064097
A9: Germany | B9: 1651.4 | C9: 3170.688 | D9: 825.7 | G9: Germany | H9: 1264.91 | I9: 2309.12 | J9: 1.825521183
A10: Hong Kong | B10: 1796.7 | C10: 3449.664 | D10: 898.35 | G10: Hong Kong | H10: 1447.25 | I10: 2714.08 | J10: 1.875335982
A11: India | B11: 528.3 | C11: 1014.336 | D11: 264.15 | G11: India | H11: 517.78 | I11: 958 | J11: 1.850206651
A12: Indonesia | B12: 708.8 | C12: 1360.896 | D12: 354.4 | G12: Indonesia | H12: 802.25 | I12: 1491.63 | J12: 1.859308196
A13: Japan | B13: 1374.9 | C13: 2639.808 | D13: 687.45 | G13: Japan | H13: 1593.53 | I13: 3003.28 | J13: 1.884671139
A14: Macau | B14: 1474.6 | C14: 2831.232 | D14: 737.3 | G14: Macau | H14: 1357.24 | I14: 2595.53 | J14: 1.912358905
A15: Malaysia | B15: 821.2 | C15: 1576.704 | D15: 410.6 | G15: Malaysia | H15: 699.43 | I15: 1324.95 | J15: 1.894328239
A16: Mexico | B16: 978.7 | C16: 1879.104 | D16: 489.35 | G16: Mexico | H16: 679.23 | I16: 1299.78 | J16: 1.913608056
A17: New Zealand | B17: 1507.7 | C17: 2894.784 | D17: 753.85 | G17: New Zealand | H17: 1328.55 | I17: 2535.85 | J17: 1.908735087
A18: Philippines | B18: 867 | C18: 1664.64 | D18: 433.5 | G18: Philippines | H18: 797.21 | I18: 1466.82 | J18: 1.839941797
A19: Qatar | B19: 1398.2 | C19: 2684.544 | D19: 699.1 | G19: Qatar | H19: 1273.38 | I19: 2450 | J19: 1.924013256
A20: Saudi Arabia | B20: 1282.3 | C20: 2462.016 | D20: 641.15 | G20: Saudi Arabia | H20: 978.84 | I20: 1858.23 | J20: 1.898400147
A21: Singapore | B21: 1787.6 | C21: 3432.192 | D21: 893.8 | G21: Singapore | H21: 1306.45 | I21: 2496.64 | J21: 1.911010754
A22: South Africa | B22: 934.8 | C22: 1794.816 | D22: 467.4 | G22: South Africa | H22: 748.16 | I22: 1414.21 | J22: 1.890250749
A23: South Korea | B23: 1602 | C23: 3075.84 | D23: 801 | G23: South Korea | H23: 1486.06 | I23: 2816.68 | J23: 1.895401262
A24: Switzerland | B24: 2592.7 | C24: 4977.984 | D24: 1296.35 | G24: Switzerland | H24: 2264.56 | I24: 4333.75 | J24: 1.91372717
A25: Taiwan | B25: 1196.6 | C25: 2297.472 | D25: 598.3 | G25: Taiwan | H25: 1120.89 | I25: 2149.3 | J25: 1.917494134
A26: UAE | B26: 1602.9 | C26: 3077.568 | D26: 801.45 | G26: UAE | H26: 1224.19 | I26: 2315.67 | J26: 1.891593625
A27: UK | B27: 1633.9 | C27: 3137.088 | D27: 816.95 | G27: UK | H27: 1497.94 | I27: 2801.38 | J27: 1.870155013
A28: USA | B28: 1861 | C28: 3573.12 | D28: 930.5 | G28: USA | H28: 1603 | I28: 3058.86 | J28: 1.908209607
A29: Vietnam | B29: 733.7 | C29: =B29*1.92 -> 1408.704 | D29: 366.85 | G29: Vietnam | H29: 651.36 | I29: 1218.6 | J29: 1.870854827
A30: ***updated on 07/02/2025***

Sheet Log Change (hidden)
A1: Change Log
A2: Calculator | B2: Date | C2: Change
A3: Non-Res Serviceability | B3: 4.1 -> 4.2 | C3: Assessment rate amended floor - 5.29% Assessment rate amended buffer - 2.50%
A4: Non-Res Serviceability | B4: 4.3 25/07/2022 | C4: Assessment rate amended buffer - 3.00% update HEM table Q1 2022 Add Genworth DTI® Add Rental & Gearing Cal
A5: Non-Res Serviceability | B5: 4.4 11/09/2023 | C5: Assessment rate amended buffer - 2.5% update HEM table Q2 2023

Sheet Tax Scales (hidden)
A1: Annual Salary Guide - Standard | P1: Annual Salary Guide - SMSF | AE1: Annual Salary Guide - Non Resident | AT1: Annual Salary Guide - ICR
A2: Tax Scales | P2: Tax Scales | AE2: Tax Scales | AT2: Tax Scales
A3: Applicant 1 | P3: Applicant 1 | AE3: Applicant 1 | AT3: Applicant 1
A4: Gross Taxable Income | D4: Tax Rate | F4: Gross | H4: Tax | J4: Net | P4: Gross Taxable Income | S4: Tax Rate | U4: Gross | W4: Tax | Y4: Net | AA4: Flood Levy Calculations | AE4: Gross Taxable Income | AH4: Tax Rate | AJ4: Gross | AL4: Tax | AN4: Net | AP4: Flood Levy Calculations | AT4: Gross Taxable Income | AW4: Tax Rate | AY4: Gross | BA4: Tax | BC4: Net
A5: 1 | B5: 18200 | C5: =B5-A5+1 -> 18200 | D5: 0 | F5: =IF(#REF!<B5,#REF!,C5) ->  | G5: =F5 ->  | H5: =F5*D5 ->  | J5: =F5-H5 ->  | P5: =A5 -> 1 | Q5: 18200 | R5: 18200 | S5: 0 | U5: =IF('SMSF Servicing Calculator'!N63<Q5,'SMSF Servicing Calculator'!N63,R5) -> 0 | V5: =U5 -> 0 | W5: =U5*S5 -> 0 | Y5: =U5-W5 -> 0 | AE5: 1 | AF5: 18200 | AG5: =AF5-AE5+1 -> 18200 | AH5: 0 | AJ5: =IF('Non-Res Serviceability'!R41<AF5,'Non-Res Serviceability'!R41,AG5) -> 0 | AK5: =AJ5 -> 0 | AL5: =AJ5*AH5 -> 0 | AN5: =AJ5-AL5 -> 0 | AT5: =A5 -> 1 | AU5: 18200 | AV5: 18200 | AW5: 0 | AY5: 0 | AZ5: =AY5 -> 0 | BA5: =AY5*AW5 -> 0 | BC5: =AY5-BA5 -> 0
A6: 18201 | B6: 45000 | C6: =B6-A6+1 -> 26800 | D6: 0.19 | F6: =IF(G5=#REF!,0,IF((#REF!-G5)>C6,C6,(#REF!-G5))) ->  | G6: =G5+F6 ->  | H6: =F6*D6 ->  | J6: =F6-H6 ->  | P6: 18201 | Q6: 45000 | R6: =C6 -> 26800 | S6: 0.19 | U6: =IF(V5='SMSF Servicing Calculator'!$N$63,0,IF(('SMSF Servicing Calculator'!$N$63-V5)>R6,R6,('SMSF Servicing Calculator'!$N$63-V5))) -> 0 | V6: =V5+U6 -> 0 | W6: =U6*S6 -> 0 | Y6: =U6-W6 -> 0 | AE6: 18201 | AF6: 45000 | AG6: =AF6-AE6+1 -> 26800 | AH6: 0.16 | AJ6: =IF(AK5='Non-Res Serviceability'!R41,0,IF(('Non-Res Serviceability'!R41-AK5)>AG6,AG6,('Non-Res Serviceability'!R41-AK5))) -> 0 | AK6: =AK5+AJ6 -> 0 | AL6: =AJ6*AH6 -> 0 | AN6: =AJ6-AL6 -> 0 | AT6: 18201 | AU6: 45000 | AV6: 26800 | AW6: 0.19 | AY6: 0 | AZ6: =AZ5+AY6 -> 0 | BA6: =AY6*AW6 -> 0 | BC6: =AY6-BA6 -> 0
A7: 45001 | B7: 120000 | C7: =B7-A7+1 -> 75000 | D7: 0.325 | F7: =IF(G6=#REF!,0,IF((#REF!-G6)>C7,C7,(#REF!-G6))) ->  | G7: =G6+F7 ->  | H7: =F7*D7 ->  | J7: =F7-H7 ->  | P7: 45001 | Q7: 120000 | R7: 75000 | S7: 0.325 | U7: =IF(V6='SMSF Servicing Calculator'!$N$63,0,IF(('SMSF Servicing Calculator'!$N$63-V6)>R7,R7,('SMSF Servicing Calculator'!$N$63-V6))) -> 0 | V7: =V6+U7 -> 0 | W7: =U7*S7 -> 0 | Y7: =U7-W7 -> 0 | AA7: =IF(U7>13000,(U7-13000)*0.5%,0) -> 0 | AE7: 45001 | AF7: 135000 | AG7: =AF7-AE7+1 -> 90000 | AH7: 0.3 | AJ7: =IF(AK6='Non-Res Serviceability'!R41,0,IF(('Non-Res Serviceability'!R41-AK6)>AG7,AG7,('Non-Res Serviceability'!R41-AK6))) -> 0 | AK7: =AK6+AJ7 -> 0 | AL7: =AJ7*AH7 -> 0 | AN7: =AJ7-AL7 -> 0 | AP7: =IF(AJ7>13000,(AJ7-13000)*0.5%,0) -> 0 | AT7: 45001 | AU7: 120000 | AV7: 75000 | AW7: 0.325 | AY7: 0 | AZ7: =AZ6+AY7 -> 0 | BA7: =AY7*AW7 -> 0 | BC7: =AY7-BA7 -> 0
A8: 120001 | B8: 180000 | C8: =B8-A8+1 -> 60000 | D8: 0.37 | F8: =IF(G7=#REF!,0,IF((#REF!-G7)>C8,C8,(#REF!-G7))) ->  | G8: =G7+F8 ->  | H8: =F8*D8 ->  | J8: =F8-H8 ->  | P8: 120001 | Q8: 180000 | R8: 60000 | S8: 0.37 | U8: =IF(V7='SMSF Servicing Calculator'!$N$63,0,IF(('SMSF Servicing Calculator'!$N$63-V7)>R8,R8,('SMSF Servicing Calculator'!$N$63-V7))) -> 0 | V8: =V7+U8 -> 0 | W8: =U8*S8 -> 0 | Y8: =U8-W8 -> 0 | AA8: =SUM(AB8:AC8) -> 0 | AB8: =IF(U8<=20000,U8*0.5%,0) -> 0 | AC8: =IF(U8>20000,((U8-20000)*1%)+100,0) -> 0 | AE8: 135001 | AF8: 190001 | AG8: =AF8-AE8+1 -> 55001 | AH8: 0.37 | AJ8: =IF(AK7='Non-Res Serviceability'!R41,0,IF(('Non-Res Serviceability'!R41-AK7)>AG8,AG8,('Non-Res Serviceability'!R41-AK7))) -> 0 | AK8: =AK7+AJ8 -> 0 | AL8: =AJ8*AH8 -> 0 | AN8: =AJ8-AL8 -> 0 | AP8: =SUM(AQ8:AR8) -> 0 | AQ8: =IF(AJ8<=20000,AJ8*0.5%,0) -> 0 | AR8: =IF(AJ8>20000,((AJ8-20000)*1%)+100,0) -> 0 | AT8: 120001 | AU8: 180000 | AV8: 60000 | AW8: 0.37 | AY8: 0 | AZ8: =AZ7+AY8 -> 0 | BA8: =AY8*AW8 -> 0 | BC8: =AY8-BA8 -> 0
A9: 180001 | B9: 100000000 | C9: =B9-A9+1 -> 99820000 | D9: 0.45 | F9: =IF(#REF!-G8<=0,0,(#REF!-G8)) ->  | G9: =G8+F9 ->  | H9: =F9*D9 ->  | J9: =F9-H9 ->  | P9: 180001 | Q9: 100000000 | R9: 99820000 | S9: 0.45 | U9: =IF(V8='SMSF Servicing Calculator'!$N$63,0,IF(('SMSF Servicing Calculator'!$N$63-V8)>R9,R9,('SMSF Servicing Calculator'!$N$63-V8))) -> 0 | V9: =V8+U9 -> 0 | W9: =U9*S9 -> 0 | Y9: =U9-W9 -> 0 | AA9: =U9*1% -> 0 | AE9: 190001 | AF9: 100000000 | AG9: =AF9-AE9+1 -> 99810000 | AH9: 0.45 | AJ9: =IF('Non-Res Serviceability'!R41-AK8<=0,0,('Non-Res Serviceability'!R41-AK8)) -> 0 | AK9: =AK8+AJ9 -> 0 | AL9: =AJ9*AH9 -> 0 | AN9: =AJ9-AL9 -> 0 | AP9: =AJ9*1% -> 0 | AT9: 180001 | AU9: 100000000 | AV9: 99820000 | AW9: 0.45 | AY9: 0 | AZ9: =AZ8+AY9 -> 0 | BA9: =AY9*AW9 -> 0 | BC9: =AY9-BA9 -> 0
D10: Totals: | F10: =SUM(F5:F9) ->  | H10: =SUM(H5:H9) ->  | J10: =SUM(J5:J9) ->  | S10: Totals: | U10: =SUM(U5:U9) -> 0 | W10: =SUM(W5:W9) -> 0 | Y10: =SUM(Y5:Y9) -> 0 | AA10: =SUM(AA7:AA9) -> 0 | AH10: Totals: | AJ10: =SUM(AJ5:AJ9) -> 0 | AL10: =SUM(AL5:AL9) -> 0 | AN10: =SUM(AN5:AN9) -> 0 | AP10: =SUM(AP7:AP9) -> 0 | AW10: Totals: | AY10: =SUM(AY5:AY9) -> 0 | BA10: =SUM(BA5:BA9) -> 0 | BC10: =SUM(BC5:BC9) -> 0
A11: Low & middle income tax offset (monthly) | C11: =IF($F$10<=$B$97,$D$97,(IF($F$10<=$B$98,$D$98,IF($F$10<=$B$99,(($F$10-$B$98)*$C$99)+$D$99,IF($F$10<=$B$100,$D$100,IF($F$10<=$B$101,(($F$10-$B$100)*$C$101)+$D$101,IF($F$10<=$B$102,$D$102,0)))))))/12 ->  | D11: Refer table | P11: Low & middle income tax offset (monthly) | R11: =IF($U$10<=$B$97,$D$97,(IF($U$10<=$B$98,$D$98,IF($U$10<=$B$99,(($U$10-$B$98)*$C$99)+$D$99,IF($U$10<=$B$100,$D$100,IF($U$10<=$B$101,(($U$10-$B$100)*$C$101)+$D$101,IF($U$10<=$B$102,$D$102,0)))))))/12 -> 0 | S11: Refer table | AE11: Budget Repair Levy (monthly) | AG11: 0 | AH11: N/A | AT11: Low & middle income tax offset (monthly) | AV11: =IF($AY$10<=$B$97,$D$97,(IF($AY$10<=$B$98,$D$98,IF($AY$10<=$B$99,(($AY$10-$B$98)*$C$99)+$D$99,IF($AY$10<=$B$100,$D$100,IF($AY$10<=$B$101,(($AY$10-$B$100)*$C$101)+$D$101,IF($AY$10<=$B$102,$D$102,0)))))))/12 -> 0 | AW11: Refer table
A12: Low income tax offset (monthly) | C12: =IF($F$10<=$B$109,$D$109,IF($F$10<=$B$110,$D$110,IF($F$10<=$B$111,(($F$10-$B$110)*$C$111)+$D$111,IF($F$10<=$B$112,$D$112,0))))/12 ->  | D12: Refer table | P12: Low income tax offset (monthly) | R12: =IF($U$10<=$B$109,$D$109,IF($U$10<=$B$110,$D$110,IF($U$10<=$B$111,(($U$10-$B$110)*$C$111)+$D$111,IF($U$10<=$B$112,$D$112,0))))/12 -> 0 | S12: Refer table | AT12: Low income tax offset (monthly) | AV12: =IF($AY$10<=$B$109,$D$109,IF($AY$10<=$B$110,$D$110,IF($AY$10<=$B$111,(($AY$10-$B$110)*$C$111)+$D$111,IF($AY$10<=$B$112,$D$112,0))))/12 -> 0 | AW12: Refer table
A13: Medicare Levy (monthly) | C13: =F10*(2/100)/12 ->  | D13: 0.02 | P13: Medicare Levy (monthly) | R13: =U10*(2/100)/12 -> 0 | S13: 0.02 | AE13: Medicare Levy (monthly) | AG13: =AJ10*(2/100)/12 -> 0 | AH13: N/A | AT13: Medicare Levy (monthly) | AV13: =AY10*(2/100)/12 -> 0 | AW13: 0.02
C14: =SUM(C11:C13) ->  | H14: Monthly | J14: =(J10/12)-C14 ->  | R14: =SUM(R11:R13) -> 0 | W14: Monthly | Y14: =(Y10/12)-R14 -> 0 | AG14: =SUM(AG11:AG13) -> 0 | AL14: Monthly | AN14: =(AN10/12)-AG14 -> 0 | AV14: =SUM(AV11:AV13) -> 0 | BA14: Monthly | BC14: =(BC10/12)-AV14 -> 0
A16: Applicant 2 | P16: Applicant 2 | AE16: Applicant 2 | AT16: Applicant 2
A17: Gross Taxable Income | D17: Tax Rate | F17: Gross | H17: Tax | J17: Net | P17: Gross Taxable Income | S17: Tax Rate | U17: Gross | W17: Tax | Y17: Net | AE17: Gross Taxable Income | AH17: Tax Rate | AJ17: Gross | AL17: Tax | AN17: Net | AT17: Gross Taxable Income | AW17: Tax Rate | AY17: Gross | BA17: Tax | BC17: Net
A18: =A5 -> 1 | B18: 18200 | C18: 18200 | D18: 0 | F18: =IF(#REF!<B18,#REF!,C18) ->  | G18: =F18 ->  | H18: =F18*D18 ->  | J18: =F18-H18 ->  | P18: =A18 -> 1 | Q18: 18200 | R18: 18200 | S18: 0 | U18: =IF('SMSF Servicing Calculator'!N64<Q18,'SMSF Servicing Calculator'!N64,R18) -> 0 | V18: =U18 -> 0 | W18: =U18*S18 -> 0 | Y18: =U18-W18 -> 0 | AE18: =AE5 -> 1 | AF18: 18200 | AG18: 18200 | AH18: 0 | AJ18: =IF('Non-Res Serviceability'!R42<AF18,'Non-Res Serviceability'!R42,AG18) -> 0 | AK18: =AJ18 -> 0 | AL18: =AJ18*AH18 -> 0 | AN18: =AJ18-AL18 -> 0 | AT18: =AT5 -> 1 | AU18: 18200 | AV18: 18200 | AW18: 0 | AY18: 0 | AZ18: =AY18 -> 0 | BA18: =AY18*AW18 -> 0 | BC18: =AY18-BA18 -> 0
A19: 18201 | B19: 45000 | C19: 26800 | D19: 0.19 | F19: =IF(G18=#REF!,0,IF((#REF!-G18)>C19,C19,(#REF!-G18))) ->  | G19: =G18+F19 ->  | H19: =F19*D19 ->  | J19: =F19-H19 ->  | P19: 18201 | Q19: 45000 | R19: 26800 | S19: 0.19 | U19: =IF(V18='SMSF Servicing Calculator'!$N$64,0,IF(('SMSF Servicing Calculator'!$N$64-V18)>R19,R19,('SMSF Servicing Calculator'!$N$64-V18))) -> 0 | V19: =V18+U19 -> 0 | W19: =U19*S19 -> 0 | Y19: =U19-W19 -> 0 | AE19: 18201 | AF19: 45000 | AG19: 26800 | AH19: 0.16 | AJ19: =IF(AK18='Non-Res Serviceability'!R42,0,IF(('Non-Res Serviceability'!R42-AK18)>AG19,AG19,('Non-Res Serviceability'!R42-AK18))) -> 0 | AK19: =AK18+AJ19 -> 0 | AL19: =AJ19*AH19 -> 0 | AN19: =AJ19-AL19 -> 0 | AT19: 18201 | AU19: 45000 | AV19: 26800 | AW19: 0.19 | AY19: 0 | AZ19: =AZ18+AY19 -> 0 | BA19: =AY19*AW19 -> 0 | BC19: =AY19-BA19 -> 0
A20: 45001 | B20: 120000 | C20: 75000 | D20: 0.325 | F20: =IF(G19=#REF!,0,IF((#REF!-G19)>C20,C20,(#REF!-G19))) ->  | G20: =G19+F20 ->  | H20: =F20*D20 ->  | J20: =F20-H20 ->  | P20: 45001 | Q20: 120000 | R20: 75000 | S20: 0.325 | U20: =IF(V19='SMSF Servicing Calculator'!$N$64,0,IF(('SMSF Servicing Calculator'!$N$64-V19)>R20,R20,('SMSF Servicing Calculator'!$N$64-V19))) -> 0 | V20: =V19+U20 -> 0 | W20: =U20*S20 -> 0 | Y20: =U20-W20 -> 0 | AA20: =IF(U20>13000,(U20-13000)*0.5%,0) -> 0 | AE20: 45001 | AF20: 135000 | AG20: 90000 | AH20: 0.3 | AJ20: =IF(AK19='Non-Res Serviceability'!R42,0,IF(('Non-Res Serviceability'!R42-AK19)>AG20,AG20,('Non-Res Serviceability'!R42-AK19))) -> 0 | AK20: =AK19+AJ20 -> 0 | AL20: =AJ20*AH20 -> 0 | AN20: =AJ20-AL20 -> 0 | AP20: =IF(AJ20>13000,(AJ20-13000)*0.5%,0) -> 0 | AT20: 45001 | AU20: 120000 | AV20: 75000 | AW20: 0.325 | AY20: 0 | AZ20: =AZ19+AY20 -> 0 | BA20: =AY20*AW20 -> 0 | BC20: =AY20-BA20 -> 0
A21: 120001 | B21: 180000 | C21: 60000 | D21: 0.37 | F21: =IF(G20=#REF!,0,IF((#REF!-G20)>C21,C21,(#REF!-G20))) ->  | G21: =G20+F21 ->  | H21: =F21*D21 ->  | J21: =F21-H21 ->  | P21: 120001 | Q21: 180000 | R21: 60000 | S21: 0.37 | U21: =IF(V20='SMSF Servicing Calculator'!$N$64,0,IF(('SMSF Servicing Calculator'!$N$64-V20)>R21,R21,('SMSF Servicing Calculator'!$N$64-V20))) -> 0 | V21: =V20+U21 -> 0 | W21: =U21*S21 -> 0 | Y21: =U21-W21 -> 0 | AA21: =SUM(AB21:AC21) -> 0 | AB21: =IF(U21<=20000,U21*0.5%,0) -> 0 | AC21: =IF(U21>20000,((U21-20000)*1%)+100,0) -> 0 | AE21: 135001 | AF21: 190001 | AG21: 55001 | AH21: 0.37 | AJ21: =IF(AK20='Non-Res Serviceability'!R42,0,IF(('Non-Res Serviceability'!R42-AK20)>AG21,AG21,('Non-Res Serviceability'!R42-AK20))) -> 0 | AK21: =AK20+AJ21 -> 0 | AL21: =AJ21*AH21 -> 0 | AN21: =AJ21-AL21 -> 0 | AP21: =SUM(AQ21:AR21) -> 0 | AQ21: =IF(AJ21<=20000,AJ21*0.5%,0) -> 0 | AR21: =IF(AJ21>20000,((AJ21-20000)*1%)+100,0) -> 0 | AT21: 120001 | AU21: 180000 | AV21: 60000 | AW21: 0.37 | AY21: 0 | AZ21: =AZ20+AY21 -> 0 | BA21: =AY21*AW21 -> 0 | BC21: =AY21-BA21 -> 0
A22: 180001 | B22: 100000000 | C22: 99820000 | D22: 0.45 | F22: =IF(#REF!-G21<=0,0,(#REF!-G21)) ->  | G22: =G21+F22 ->  | H22: =F22*D22 ->  | J22: =F22-H22 ->  | P22: 180001 | Q22: 100000000 | R22: 99820000 | S22: 0.45 | U22: =IF(V21='SMSF Servicing Calculator'!$N$64,0,IF(('SMSF Servicing Calculator'!$N$64-V21)>R22,R22,('SMSF Servicing Calculator'!$N$64-V21))) -> 0 | V22: =V21+U22 -> 0 | W22: =U22*S22 -> 0 | Y22: =U22-W22 -> 0 | AA22: =U22*1% -> 0 | AE22: 190001 | AF22: 100000000 | AG22: 99810000 | AH22: 0.45 | AJ22: =IF('Non-Res Serviceability'!R42-AK21<=0,0,('Non-Res Serviceability'!R42-AK21)) -> 0 | AK22: =AK21+AJ22 -> 0 | AL22: =AJ22*AH22 -> 0 | AN22: =AJ22-AL22 -> 0 | AP22: =AJ22*1% -> 0 | AT22: 180001 | AU22: 100000000 | AV22: 99820000 | AW22: 0.45 | AY22: 0 | AZ22: =AZ21+AY22 -> 0 | BA22: =AY22*AW22 -> 0 | BC22: =AY22-BA22 -> 0
D23: Totals: | F23: =SUM(F18:F22) ->  | H23: =SUM(H18:H22) ->  | J23: =SUM(J18:J22) ->  | S23: Totals: | U23: =SUM(U18:U22) -> 0 | W23: =SUM(W18:W22) -> 0 | Y23: =SUM(Y18:Y22) -> 0 | AA23: =SUM(AA20:AA22) -> 0 | AH23: Totals: | AJ23: =SUM(AJ18:AJ22) -> 0 | AL23: =SUM(AL18:AL22) -> 0 | AN23: =SUM(AN18:AN22) -> 0 | AP23: =SUM(AP20:AP22) -> 0 | AW23: Totals: | AY23: =SUM(AY18:AY22) -> 0 | BA23: =SUM(BA18:BA22) -> 0 | BC23: =SUM(BC18:BC22) -> 0
A24: Low & middle income tax offset (monthly) | C24: =IF($F$23<=$B$97,$D$97,(IF($F$23<=$B$98,$D$98,IF($F$23<=$B$99,(($F$23-$B$98)*$C$99)+$D$99,IF($F$23<=$B$100,$D$100,IF($F$23<=$B$101,(($F$23-$B$100)*$C$101)+$D$101,IF($F$23<=$B$102,$D$102,0)))))))/12 ->  | D24: Refer table | P24: Low & middle income tax offset (monthly) | R24: =IF($U$23<=$B$97,$D$97,(IF($U$23<=$B$98,$D$98,IF($U$23<=$B$99,(($U$23-$B$98)*$C$99)+$D$99,IF($U$23<=$B$100,$D$100,IF($U$23<=$B$101,(($U$23-$B$100)*$C$101)+$D$101,IF($U$23<=$B$102,$D$102,0)))))))/12 -> 0 | S24: Refer table | AE24: Budget Repair Levy (monthly) | AG24: 0 | AH24: N/A | AT24: Low & middle income tax offset (monthly) | AV24: =IF($AY$23<=$B$97,$D$97,(IF($AY$23<=$B$98,$D$98,IF($AY$23<=$B$99,(($AY$23-$B$98)*$C$99)+$D$99,IF($AY$23<=$B$100,$D$100,IF($AY$23<=$B$101,(($AY$23-$B$100)*$C$101)+$D$101,IF($AY$23<=$B$102,$D$102,0)))))))/12 -> 0 | AW24: Refer table
A25: Low income tax offset (monthly) | C25: =IF($F$23<=$B$109,$D$109,IF($F$23<=$B$110,$D$110,IF($F$23<=$B$111,(($F$23-$B$110)*$C$111)+$D$111,IF($F$23<=$B$112,$D$112,0))))/12 ->  | D25: Refer table | P25: Low income tax offset (monthly) | R25: =IF($U$23<=$B$109,$D$109,IF($U$23<=$B$110,$D$110,IF($U$23<=$B$111,(($U$23-$B$110)*$C$111)+$D$111,IF($U$23<=$B$112,$D$112,0))))/12 -> 0 | S25: Refer table | AT25: Low income tax offset (monthly) | AV25: =IF($AY$23<=$B$109,$D$109,IF($AY$23<=$B$110,$D$110,IF($AY$23<=$B$111,(($AY$23-$B$110)*$C$111)+$D$111,IF($AY$23<=$B$112,$D$112,0))))/12 -> 0 | AW25: Refer table
A26: Medicare Levy (monthly) | C26: =F23*(2/100)/12 ->  | D26: 0.02 | P26: Medicare Levy (monthly) | R26: =U23*(2/100)/12 -> 0 | S26: 0.02 | AE26: Medicare Levy (monthly) | AG26: =AJ23*(2/100)/12 -> 0 | AH26: N/A | AT26: Medicare Levy (monthly) | AV26: =AY23*(2/100)/12 -> 0 | AW26: 0.02
C27: =SUM(C24:C26) ->  | H27: Monthly | J27: =(J23/12)-C27 ->  | R27: =SUM(R24:R26) -> 0 | W27: Monthly | Y27: =(Y23/12)-R27 -> 0 | AG27: =SUM(AG24:AG26) -> 0 | AL27: Monthly | AN27: =(AN23/12)-AG27 -> 0 | AV27: =SUM(AV24:AV26) -> 0 | BA27: Monthly | BC27: =(BC23/12)-AV27 -> 0
A29: Applicant 3 | P29: Applicant 3 | AE29: Applicant 3 | AT29: Applicant 3
A30: Gross Taxable Income | D30: Tax Rate | F30: Gross | H30: Tax | J30: Net | P30: Gross Taxable Income | S30: Tax Rate | U30: Gross | W30: Tax | Y30: Net | AE30: Gross Taxable Income | AH30: Tax Rate | AJ30: Gross | AL30: Tax | AN30: Net | AT30: Gross Taxable Income | AW30: Tax Rate | AY30: Gross | BA30: Tax | BC30: Net
A31: =A18 -> 1 | B31: 18200 | C31: 18200 | D31: 0 | F31: =IF(#REF!<B31,#REF!,C31) ->  | G31: =F31 ->  | H31: =F31*D31 ->  | J31: =F31-H31 ->  | P31: =A31 -> 1 | Q31: 18200 | R31: 18200 | S31: 0 | U31: =IF('SMSF Servicing Calculator'!N65<Q31,'SMSF Servicing Calculator'!N65,R31) -> 0 | V31: =U31 -> 0 | W31: =U31*S31 -> 0 | Y31: =U31-W31 -> 0 | AE31: =AE18 -> 1 | AF31: 18200 | AG31: 18200 | AH31: 0 | AJ31: =IF('Non-Res Serviceability'!R43<AF31,'Non-Res Serviceability'!R43,AG31) -> 0 | AK31: =AJ31 -> 0 | AL31: =AJ31*AH31 -> 0 | AN31: =AJ31-AL31 -> 0 | AT31: =AT5 -> 1 | AU31: 18200 | AV31: 18200 | AW31: 0 | AY31: 0 | AZ31: =AY31 -> 0 | BA31: =AY31*AW31 -> 0 | BC31: =AY31-BA31 -> 0
A32: 18201 | B32: 45000 | C32: 26800 | D32: 0.19 | F32: =IF(G31=#REF!,0,IF((#REF!-G31)>C32,C32,(#REF!-G31))) ->  | G32: =G31+F32 ->  | H32: =F32*D32 ->  | J32: =F32-H32 ->  | P32: 18201 | Q32: 45000 | R32: 26800 | S32: 0.19 | U32: =IF(V31='SMSF Servicing Calculator'!$N$65,0,IF(('SMSF Servicing Calculator'!$N$65-V31)>R32,R32,('SMSF Servicing Calculator'!$N$65-V31))) -> 0 | V32: =V31+U32 -> 0 | W32: =U32*S32 -> 0 | Y32: =U32-W32 -> 0 | AE32: 18201 | AF32: 45000 | AG32: 26800 | AH32: 0.16 | AJ32: =IF(AK31='Non-Res Serviceability'!R43,0,IF(('Non-Res Serviceability'!R43-AK31)>AG32,AG32,('Non-Res Serviceability'!R43-AK31))) -> 0 | AK32: =AK31+AJ32 -> 0 | AL32: =AJ32*AH32 -> 0 | AN32: =AJ32-AL32 -> 0 | AT32: 18201 | AU32: 45000 | AV32: 26800 | AW32: 0.19 | AY32: 0 | AZ32: =AZ31+AY32 -> 0 | BA32: =AY32*AW32 -> 0 | BC32: =AY32-BA32 -> 0
A33: 45001 | B33: 120000 | C33: 75000 | D33: 0.325 | F33: =IF(G32=#REF!,0,IF((#REF!-G32)>C33,C33,(#REF!-G32))) ->  | G33: =G32+F33 ->  | H33: =F33*D33 ->  | J33: =F33-H33 ->  | P33: 45001 | Q33: 120000 | R33: 75000 | S33: 0.325 | U33: =IF(V32='SMSF Servicing Calculator'!$N$65,0,IF(('SMSF Servicing Calculator'!$N$65-V32)>R33,R33,('SMSF Servicing Calculator'!$N$65-V32))) -> 0 | V33: =V32+U33 -> 0 | W33: =U33*S33 -> 0 | Y33: =U33-W33 -> 0 | AA33: =IF(U33>13000,(U33-13000)*0.5%,0) -> 0 | AE33: 45001 | AF33: 135000 | AG33: 90000 | AH33: 0.3 | AJ33: =IF(AK32='Non-Res Serviceability'!R43,0,IF(('Non-Res Serviceability'!R43-AK32)>AG33,AG33,('Non-Res Serviceability'!R43-AK32))) -> 0 | AK33: =AK32+AJ33 -> 0 | AL33: =AJ33*AH33 -> 0 | AN33: =AJ33-AL33 -> 0 | AP33: =IF(AJ33>13000,(AJ33-13000)*0.5%,0) -> 0 | AT33: 45001 | AU33: 120000 | AV33: 75000 | AW33: 0.325 | AY33: 0 | AZ33: =AZ32+AY33 -> 0 | BA33: =AY33*AW33 -> 0 | BC33: =AY33-BA33 -> 0
A34: 120001 | B34: 180000 | C34: 60000 | D34: 0.37 | F34: =IF(G33=#REF!,0,IF((#REF!-G33)>C34,C34,(#REF!-G33))) ->  | G34: =G33+F34 ->  | H34: =F34*D34 ->  | J34: =F34-H34 ->  | P34: 120001 | Q34: 180000 | R34: 60000 | S34: 0.37 | U34: =IF(V33='SMSF Servicing Calculator'!$N$65,0,IF(('SMSF Servicing Calculator'!$N$65-V33)>R34,R34,('SMSF Servicing Calculator'!$N$65-V33))) -> 0 | V34: =V33+U34 -> 0 | W34: =U34*S34 -> 0 | Y34: =U34-W34 -> 0 | AA34: =SUM(AB34:AC34) -> 0 | AB34: =IF(U34<=20000,U34*0.5%,0) -> 0 | AC34: =IF(U34>20000,((U34-20000)*1%)+100,0) -> 0 | AE34: 135001 | AF34: 190001 | AG34: 55001 | AH34: 0.37 | AJ34: =IF(AK33='Non-Res Serviceability'!R43,0,IF(('Non-Res Serviceability'!R43-AK33)>AG34,AG34,('Non-Res Serviceability'!R43-AK33))) -> 0 | AK34: =AK33+AJ34 -> 0 | AL34: =AJ34*AH34 -> 0 | AN34: =AJ34-AL34 -> 0 | AP34: =SUM(AQ34:AR34) -> 0 | AQ34: =IF(AJ34<=20000,AJ34*0.5%,0) -> 0 | AR34: =IF(AJ34>20000,((AJ34-20000)*1%)+100,0) -> 0 | AT34: 120001 | AU34: 180000 | AV34: 60000 | AW34: 0.37 | AY34: 0 | AZ34: =AZ33+AY34 -> 0 | BA34: =AY34*AW34 -> 0 | BC34: =AY34-BA34 -> 0
A35: 180001 | B35: 100000000 | C35: 99820000 | D35: 0.45 | F35: =IF(#REF!-G34<=0,0,(#REF!-G34)) ->  | G35: =G34+F35 ->  | H35: =F35*D35 ->  | J35: =F35-H35 ->  | P35: 180001 | Q35: 100000000 | R35: 99820000 | S35: 0.45 | U35: =IF(V34='SMSF Servicing Calculator'!$N$65,0,IF(('SMSF Servicing Calculator'!$N$65-V34)>R35,R35,('SMSF Servicing Calculator'!$N$65-V34))) -> 0 | V35: =V34+U35 -> 0 | W35: =U35*S35 -> 0 | Y35: =U35-W35 -> 0 | AA35: =U35*1% -> 0 | AE35: 190001 | AF35: 100000000 | AG35: 99810000 | AH35: 0.45 | AJ35: =IF('Non-Res Serviceability'!R43-AK34<=0,0,('Non-Res Serviceability'!R43-AK34)) -> 0 | AK35: =AK34+AJ35 -> 0 | AL35: =AJ35*AH35 -> 0 | AN35: =AJ35-AL35 -> 0 | AP35: =AJ35*1% -> 0 | AT35: 180001 | AU35: 100000000 | AV35: 99820000 | AW35: 0.45 | AY35: 0 | AZ35: =AZ34+AY35 -> 0 | BA35: =AY35*AW35 -> 0 | BC35: =AY35-BA35 -> 0
D36: Totals: | F36: =SUM(F31:F35) ->  | H36: =SUM(H31:H35) ->  | J36: =SUM(J31:J35) ->  | S36: Totals: | U36: =SUM(U31:U35) -> 0 | W36: =SUM(W31:W35) -> 0 | Y36: =SUM(Y31:Y35) -> 0 | AA36: =SUM(AA33:AA35) -> 0 | AH36: Totals: | AJ36: =SUM(AJ31:AJ35) -> 0 | AL36: =SUM(AL31:AL35) -> 0 | AN36: =SUM(AN31:AN35) -> 0 | AP36: =SUM(AP33:AP35) -> 0 | AW36: Totals: | AY36: =SUM(AY31:AY35) -> 0 | BA36: =SUM(BA31:BA35) -> 0 | BC36: =SUM(BC31:BC35) -> 0
A37: Low & middle income tax offset (monthly) | C37: =IF($F$36<=$B$97,$D$97,(IF($F$36<=$B$98,$D$98,IF($F$36<=$B$99,(($F$36-$B$98)*$C$99)+$D$99,IF($F$36<=$B$100,$D$100,IF($F$36<=$B$101,(($F$36-$B$100)*$C$101)+$D$101,IF($F$36<=$B$102,$D$102,0)))))))/12 ->  | D37: Refer table | P37: Low & middle income tax offset (monthly) | R37: =IF($U$36<=$B$97,$D$97,(IF($U$36<=$B$98,$D$98,IF($U$36<=$B$99,(($U$36-$B$98)*$C$99)+$D$99,IF($U$36<=$B$100,$D$100,IF($U$36<=$B$101,(($U$36-$B$100)*$C$101)+$D$101,IF($U$36<=$B$102,$D$102,0)))))))/12 -> 0 | S37: Refer table | AE37: Budget Repair Levy (monthly) | AG37: 0 | AH37: N/A | AT37: Low & middle income tax offset (monthly) | AV37: =IF($AY$36<=$B$97,$D$97,(IF($AY$36<=$B$98,$D$98,IF($AY$36<=$B$99,(($AY$36-$B$98)*$C$99)+$D$99,IF($AY$36<=$B$100,$D$100,IF($AY$36<=$B$101,(($AY$36-$B$100)*$C$101)+$D$101,IF($AY$36<=$B$102,$D$102,0)))))))/12 -> 0 | AW37: Refer table
A38: Low income tax offset (monthly) | C38: =IF($F$36<=$B$109,$D$109,IF($F$36<=$B$110,$D$110,IF($F$36<=$B$111,(($F$36-$B$110)*$C$111)+$D$111,IF($F$36<=$B$112,$D$112,0))))/12 ->  | D38: Refer table | P38: Low income tax offset (monthly) | R38: =IF($U$36<=$B$109,$D$109,IF($U$36<=$B$110,$D$110,IF($U$36<=$B$111,(($U$36-$B$110)*$C$111)+$D$111,IF($U$36<=$B$112,$D$112,0))))/12 -> 0 | S38: Refer table | AT38: Low income tax offset (monthly) | AV38: =IF($AY$36<=$B$109,$D$109,IF($AY$36<=$B$110,$D$110,IF($AY$36<=$B$111,(($AY$36-$B$110)*$C$111)+$D$111,IF($AY$36<=$B$112,$D$112,0))))/12 -> 0 | AW38: Refer table
A39: Medicare Levy (monthly) | C39: =F36*(2/100)/12 ->  | D39: 0.02 | P39: Medicare Levy (monthly) | R39: =U36*(2/100)/12 -> 0 | S39: 0.02 | AE39: Medicare Levy (monthly) | AG39: =AJ36*(2/100)/12 -> 0 | AH39: N/A | AT39: Medicare Levy (monthly) | AV39: =AY36*(2/100)/12 -> 0 | AW39: 0.02
C40: =SUM(C37:C39) ->  | H40: Monthly | J40: =(J36/12)-C40 ->  | R40: =SUM(R37:R39) -> 0 | W40: Monthly | Y40: =(Y36/12)-R40 -> 0 | AG40: =SUM(AG37:AG39) -> 0 | AL40: Monthly | AN40: =(AN36/12)-AG40 -> 0 | AV40: =SUM(AV37:AV39) -> 0 | BA40: Monthly | BC40: =(BC36/12)-AV40 -> 0
A42: Applicant 4 | P42: Applicant 4 | AE42: Applicant 4 | AT42: Applicant 4
A43: Gross Taxable Income | D43: Tax Rate | F43: Gross | H43: Tax | J43: Net | P43: Gross Taxable Income | S43: Tax Rate | U43: Gross | W43: Tax | Y43: Net | AE43: Gross Taxable Income | AH43: Tax Rate | AJ43: Gross | AL43: Tax | AN43: Net | AT43: Gross Taxable Income | AW43: Tax Rate | AY43: Gross | BA43: Tax | BC43: Net
A44: =A31 -> 1 | B44: 18200 | C44: 18200 | D44: 0 | F44: =IF(#REF!<B44,#REF!,C44) ->  | G44: =F44 ->  | H44: =F44*D44 ->  | J44: =F44-H44 ->  | P44: =A44 -> 1 | Q44: 18200 | R44: 18200 | S44: 0 | U44: =IF('SMSF Servicing Calculator'!N66<Q44,'SMSF Servicing Calculator'!N66,R44) -> 0 | V44: =U44 -> 0 | W44: =U44*S44 -> 0 | Y44: =U44-W44 -> 0 | AE44: =AE31 -> 1 | AF44: 18200 | AG44: 18200 | AH44: 0 | AJ44: =IF('Non-Res Serviceability'!R44<AF44,'Non-Res Serviceability'!R44,AG44) -> 0 | AK44: =AJ44 -> 0 | AL44: =AJ44*AH44 -> 0 | AN44: =AJ44-AL44 -> 0 | AT44: =AT5 -> 1 | AU44: 18200 | AV44: 18200 | AW44: 0 | AY44: 0 | AZ44: =AY44 -> 0 | BA44: =AY44*AW44 -> 0 | BC44: =AY44-BA44 -> 0
A45: 18201 | B45: 45000 | C45: 26800 | D45: 0.19 | F45: =IF(G44=#REF!,0,IF((#REF!-G44)>C45,C45,(#REF!-G44))) ->  | G45: =G44+F45 ->  | H45: =F45*D45 ->  | J45: =F45-H45 ->  | P45: 18201 | Q45: 45000 | R45: 26800 | S45: 0.19 | U45: =IF(V44='SMSF Servicing Calculator'!$N$66,0,IF(('SMSF Servicing Calculator'!$N$66-V44)>R45,R45,('SMSF Servicing Calculator'!$N$66-V44))) -> 0 | V45: =V44+U45 -> 0 | W45: =U45*S45 -> 0 | Y45: =U45-W45 -> 0 | AE45: 18201 | AF45: 45000 | AG45: 26800 | AH45: 0.16 | AJ45: =IF(AK44='Non-Res Serviceability'!R44,0,IF(('Non-Res Serviceability'!R44-AK44)>AG45,AG45,('Non-Res Serviceability'!R44-AK44))) -> 0 | AK45: =AK44+AJ45 -> 0 | AL45: =AJ45*AH45 -> 0 | AN45: =AJ45-AL45 -> 0 | AT45: 18201 | AU45: 45000 | AV45: 26800 | AW45: 0.19 | AY45: 0 | AZ45: =AZ44+AY45 -> 0 | BA45: =AY45*AW45 -> 0 | BC45: =AY45-BA45 -> 0
A46: 45001 | B46: 120000 | C46: 75000 | D46: 0.325 | F46: =IF(G45=#REF!,0,IF((#REF!-G45)>C46,C46,(#REF!-G45))) ->  | G46: =G45+F46 ->  | H46: =F46*D46 ->  | J46: =F46-H46 ->  | P46: 45001 | Q46: 120000 | R46: 75000 | S46: 0.325 | U46: =IF(V45='SMSF Servicing Calculator'!$N$66,0,IF(('SMSF Servicing Calculator'!$N$66-V45)>R46,R46,('SMSF Servicing Calculator'!$N$66-V45))) -> 0 | V46: =V45+U46 -> 0 | W46: =U46*S46 -> 0 | Y46: =U46-W46 -> 0 | AA46: =IF(U46>13000,(U46-13000)*0.5%,0) -> 0 | AE46: 45001 | AF46: 135000 | AG46: 90000 | AH46: 0.3 | AJ46: =IF(AK45='Non-Res Serviceability'!R44,0,IF(('Non-Res Serviceability'!R44-AK45)>AG46,AG46,('Non-Res Serviceability'!R44-AK45))) -> 0 | AK46: =AK45+AJ46 -> 0 | AL46: =AJ46*AH46 -> 0 | AN46: =AJ46-AL46 -> 0 | AP46: =IF(AJ46>13000,(AJ46-13000)*0.5%,0) -> 0 | AT46: 45001 | AU46: 120000 | AV46: 75000 | AW46: 0.325 | AY46: 0 | AZ46: =AZ45+AY46 -> 0 | BA46: =AY46*AW46 -> 0 | BC46: =AY46-BA46 -> 0
A47: 120001 | B47: 180000 | C47: 60000 | D47: 0.37 | F47: =IF(G46=#REF!,0,IF((#REF!-G46)>C47,C47,(#REF!-G46))) ->  | G47: =G46+F47 ->  | H47: =F47*D47 ->  | J47: =F47-H47 ->  | P47: 120001 | Q47: 180000 | R47: 60000 | S47: 0.37 | U47: =IF(V46='SMSF Servicing Calculator'!$N$66,0,IF(('SMSF Servicing Calculator'!$N$66-V46)>R47,R47,('SMSF Servicing Calculator'!$N$66-V46))) -> 0 | V47: =V46+U47 -> 0 | W47: =U47*S47 -> 0 | Y47: =U47-W47 -> 0 | AA47: =SUM(AB47:AC47) -> 0 | AB47: =IF(U47<=20000,U47*0.5%,0) -> 0 | AC47: =IF(U47>20000,((U47-20000)*1%)+100,0) -> 0 | AE47: 135001 | AF47: 190001 | AG47: 55001 | AH47: 0.37 | AJ47: =IF(AK46='Non-Res Serviceability'!R44,0,IF(('Non-Res Serviceability'!R44-AK46)>AG47,AG47,('Non-Res Serviceability'!R44-AK46))) -> 0 | AK47: =AK46+AJ47 -> 0 | AL47: =AJ47*AH47 -> 0 | AN47: =AJ47-AL47 -> 0 | AP47: =SUM(AQ47:AR47) -> 0 | AQ47: =IF(AJ47<=20000,AJ47*0.5%,0) -> 0 | AR47: =IF(AJ47>20000,((AJ47-20000)*1%)+100,0) -> 0 | AT47: 120001 | AU47: 180000 | AV47: 60000 | AW47: 0.37 | AY47: 0 | AZ47: =AZ46+AY47 -> 0 | BA47: =AY47*AW47 -> 0 | BC47: =AY47-BA47 -> 0
A48: 180001 | B48: 100000000 | C48: 99820000 | D48: 0.45 | F48: =IF(#REF!-G47<=0,0,(#REF!-G47)) ->  | G48: =G47+F48 ->  | H48: =F48*D48 ->  | J48: =F48-H48 ->  | P48: 180001 | Q48: 100000000 | R48: 99820000 | S48: 0.45 | U48: =IF(V47='SMSF Servicing Calculator'!$N$66,0,IF(('SMSF Servicing Calculator'!$N$66-V47)>R48,R48,('SMSF Servicing Calculator'!$N$66-V47))) -> 0 | V48: =V47+U48 -> 0 | W48: =U48*S48 -> 0 | Y48: =U48-W48 -> 0 | AA48: =U48*1% -> 0 | AE48: 190001 | AF48: 100000000 | AG48: 99810000 | AH48: 0.45 | AJ48: =IF('Non-Res Serviceability'!R44-AK47<=0,0,('Non-Res Serviceability'!R44-AK47)) -> 0 | AK48: =AK47+AJ48 -> 0 | AL48: =AJ48*AH48 -> 0 | AN48: =AJ48-AL48 -> 0 | AP48: =AJ48*1% -> 0 | AT48: 180001 | AU48: 100000000 | AV48: 99820000 | AW48: 0.45 | AY48: 0 | AZ48: =AZ47+AY48 -> 0 | BA48: =AY48*AW48 -> 0 | BC48: =AY48-BA48 -> 0
D49: Totals: | F49: =SUM(F44:F48) ->  | H49: =SUM(H44:H48) ->  | J49: =SUM(J44:J48) ->  | S49: Totals: | U49: =SUM(U44:U48) -> 0 | W49: =SUM(W44:W48) -> 0 | Y49: =SUM(Y44:Y48) -> 0 | AA49: =SUM(AA46:AA48) -> 0 | AH49: Totals: | AJ49: =SUM(AJ44:AJ48) -> 0 | AL49: =SUM(AL44:AL48) -> 0 | AN49: =SUM(AN44:AN48) -> 0 | AP49: =SUM(AP46:AP48) -> 0 | AW49: Totals: | AY49: =SUM(AY44:AY48) -> 0 | BA49: =SUM(BA44:BA48) -> 0 | BC49: =SUM(BC44:BC48) -> 0
A50: Low & middle income tax offset (monthly) | C50: =IF($F$49<=$B$97,$D$97,(IF($F$49<=$B$98,$D$98,IF($F$49<=$B$99,(($F$49-$B$98)*$C$99)+$D$99,IF($F$49<=$B$100,$D$100,IF($F$49<=$B$101,(($F$49-$B$100)*$C$101)+$D$101,IF($F$49<=$B$102,$D$102,0)))))))/12 ->  | D50: Refer table | P50: Low & middle income tax offset (monthly) | R50: =IF($U$49<=$B$97,$D$97,(IF($U$49<=$B$98,$D$98,IF($U$49<=$B$99,(($U$49-$B$98)*$C$99)+$D$99,IF($U$49<=$B$100,$D$100,IF($U$49<=$B$101,(($U$49-$B$100)*$C$101)+$D$101,IF($U$49<=$B$102,$D$102,0)))))))/12 -> 0 | S50: Refer table | AE50: Budget Repair Levy (monthly) | AG50: 0 | AH50: N/A | AT50: Low & middle income tax offset (monthly) | AV50: =IF($AY$49<=$B$97,$D$97,(IF($AY$49<=$B$98,$D$98,IF($AY$49<=$B$99,(($AY$49-$B$98)*$C$99)+$D$99,IF($AY$49<=$B$100,$D$100,IF($AY$49<=$B$101,(($AY$49-$B$100)*$C$101)+$D$101,IF($AY$49<=$B$102,$D$102,0)))))))/12 -> 0 | AW50: Refer table
A51: Low income tax offset (monthly) | C51: =IF($F$49<=$B$109,$D$109,IF($F$49<=$B$110,$D$110,IF($F$49<=$B$111,(($F$49-$B$110)*$C$111)+$D$111,IF($F$49<=$B$112,$D$112,0))))/12 ->  | D51: Refer table | P51: Low income tax offset (monthly) | R51: =IF($U$49<=$B$109,$D$109,IF($U$49<=$B$110,$D$110,IF($U$49<=$B$111,(($U$49-$B$110)*$C$111)+$D$111,IF($U$49<=$B$112,$D$112,0))))/12 -> 0 | S51: Refer table | AT51: Low income tax offset (monthly) | AV51: =IF($AY$49<=$B$109,$D$109,IF($AY$49<=$B$110,$D$110,IF($AY$49<=$B$111,(($AY$49-$B$110)*$C$111)+$D$111,IF($AY$49<=$B$112,$D$112,0))))/12 -> 0 | AW51: Refer table
A52: Medicare Levy (monthly) | C52: =F49*(2/100)/12 ->  | D52: 0.02 | P52: Medicare Levy (monthly) | R52: =U49*(2/100)/12 -> 0 | S52: 0.02 | AE52: Medicare Levy (monthly) | AG52: =AJ49*(2/100)/12 -> 0 | AH52: N/A | AT52: Medicare Levy (monthly) | AV52: =AY49*(2/100)/12 -> 0 | AW52: 0.02
C53: =SUM(C50:C52) ->  | H53: Monthly | J53: =(J49/12)-C53 ->  | R53: =SUM(R50:R52) -> 0 | W53: Monthly | Y53: =(Y49/12)-R53 -> 0 | AG53: =SUM(AG50:AG52) -> 0 | AL53: Monthly | AN53: =(AN49/12)-AG53 -> 0 | AV53: =SUM(AV50:AV52) -> 0 | BA53: Monthly | BC53: =(BC49/12)-AV53 -> 0
A55: Applicant 5 | P55: Applicant 5 | AE55: Applicant 5 | AT55: Applicant 5
A56: Gross Taxable Income | D56: Tax Rate | F56: Gross | H56: Tax | J56: Net | P56: Gross Taxable Income | S56: Tax Rate | U56: Gross | W56: Tax | Y56: Net | AE56: Gross Taxable Income | AH56: Tax Rate | AJ56: Gross | AL56: Tax | AN56: Net | AT56: Gross Taxable Income | AW56: Tax Rate | AY56: Gross | BA56: Tax | BC56: Net
A57: 1 | B57: 6000 | C57: =B57-A57+1 -> 6000 | D57: 0 | F57: =IF(#REF!<B57,#REF!,C57) ->  | G57: =F57 ->  | H57: =F57*D57 ->  | J57: =F57-H57 ->  | P57: 1 | Q57: 6000 | R57: =Q57-P57+1 -> 6000 | S57: 0 | U57: =IF(#REF!<Q57,#REF!,R57) ->  | V57: =U57 ->  | W57: =U57*S57 ->  | Y57: =U57-W57 ->  | AE57: 1 | AF57: 6000 | AG57: =AF57-AE57+1 -> 6000 | AH57: 0 | AJ57: =IF('Non-Res Serviceability'!#REF!<AF57,'Non-Res Serviceability'!#REF!,AG57) ->  | AK57: =AJ57 ->  | AL57: =AJ57*AH57 ->  | AN57: =AJ57-AL57 ->  | AT57: 1 | AU57: 6000 | AV57: =AU57-AT57+1 -> 6000 | AW57: 0 | AY57: =IF(#REF!<AU57,#REF!,AV57) ->  | AZ57: =AY57 ->  | BA57: =AY57*AW57 ->  | BC57: =AY57-BA57 -> 
A58: 6001 | B58: 35000 | C58: =B58-A58+1 -> 29000 | D58: 0.15 | F58: =IF(G57=#REF!,0,IF((#REF!-G57)>C58,C58,(#REF!-G57))) ->  | G58: =G57+F58 ->  | H58: =F58*D58 ->  | J58: =F58-H58 ->  | P58: 6001 | Q58: 35000 | R58: =Q58-P58+1 -> 29000 | S58: 0.15 | U58: =IF(V57=#REF!,0,IF((#REF!-V57)>R58,R58,(#REF!-V57))) ->  | V58: =V57+U58 ->  | W58: =U58*S58 ->  | Y58: =U58-W58 ->  | AE58: 6001 | AF58: 35000 | AG58: =AF58-AE58+1 -> 29000 | AH58: 0.15 | AJ58: =IF(AK57='Non-Res Serviceability'!#REF!,0,IF(('Non-Res Serviceability'!#REF!-AK57)>AG58,AG58,('Non-Res Serviceability'!#REF!-AK57))) ->  | AK58: =AK57+AJ58 ->  | AL58: =AJ58*AH58 ->  | AN58: =AJ58-AL58 ->  | AT58: 6001 | AU58: 35000 | AV58: =AU58-AT58+1 -> 29000 | AW58: 0.15 | AY58: =IF(AZ57=#REF!,0,IF((#REF!-AZ57)>AV58,AV58,(#REF!-AZ57))) ->  | AZ58: =AZ57+AY58 ->  | BA58: =AY58*AW58 ->  | BC58: =AY58-BA58 -> 
A59: 35001 | B59: 80000 | C59: =B59-A59+1 -> 45000 | D59: 0.3 | F59: =IF(G58=#REF!,0,IF((#REF!-G58)>C59,C59,(#REF!-G58))) ->  | G59: =G58+F59 ->  | H59: =F59*D59 ->  | J59: =F59-H59 ->  | P59: 35001 | Q59: 80000 | R59: =Q59-P59+1 -> 45000 | S59: 0.3 | U59: =IF(V58=#REF!,0,IF((#REF!-V58)>R59,R59,(#REF!-V58))) ->  | V59: =V58+U59 ->  | W59: =U59*S59 ->  | Y59: =U59-W59 ->  | AE59: 35001 | AF59: 80000 | AG59: =AF59-AE59+1 -> 45000 | AH59: 0.3 | AJ59: =IF(AK58='Non-Res Serviceability'!#REF!,0,IF(('Non-Res Serviceability'!#REF!-AK58)>AG59,AG59,('Non-Res Serviceability'!#REF!-AK58))) ->  | AK59: =AK58+AJ59 ->  | AL59: =AJ59*AH59 ->  | AN59: =AJ59-AL59 ->  | AT59: 35001 | AU59: 80000 | AV59: =AU59-AT59+1 -> 45000 | AW59: 0.3 | AY59: =IF(AZ58=#REF!,0,IF((#REF!-AZ58)>AV59,AV59,(#REF!-AZ58))) ->  | AZ59: =AZ58+AY59 ->  | BA59: =AY59*AW59 ->  | BC59: =AY59-BA59 -> 
A60: 80001 | B60: 180000 | C60: =B60-A60+1 -> 100000 | D60: 0.38 | F60: =IF(G59=#REF!,0,IF((#REF!-G59)>C60,C60,(#REF!-G59))) ->  | G60: =G59+F60 ->  | H60: =F60*D60 ->  | J60: =F60-H60 ->  | P60: 80001 | Q60: 180000 | R60: =Q60-P60+1 -> 100000 | S60: 0.38 | U60: =IF(V59=#REF!,0,IF((#REF!-V59)>R60,R60,(#REF!-V59))) ->  | V60: =V59+U60 ->  | W60: =U60*S60 ->  | Y60: =U60-W60 ->  | AE60: 80001 | AF60: 180000 | AG60: =AF60-AE60+1 -> 100000 | AH60: 0.38 | AJ60: =IF(AK59='Non-Res Serviceability'!#REF!,0,IF(('Non-Res Serviceability'!#REF!-AK59)>AG60,AG60,('Non-Res Serviceability'!#REF!-AK59))) ->  | AK60: =AK59+AJ60 ->  | AL60: =AJ60*AH60 ->  | AN60: =AJ60-AL60 ->  | AT60: 80001 | AU60: 180000 | AV60: =AU60-AT60+1 -> 100000 | AW60: 0.38 | AY60: =IF(AZ59=#REF!,0,IF((#REF!-AZ59)>AV60,AV60,(#REF!-AZ59))) ->  | AZ60: =AZ59+AY60 ->  | BA60: =AY60*AW60 ->  | BC60: =AY60-BA60 -> 
A61: 180001 | B61: 1000000 | C61: =B61-A61+1 -> 820000 | D61: 0.45 | F61: =IF(#REF!-G60<=0,0,(#REF!-G60)) ->  | G61: =G60+F61 ->  | H61: =F61*D61 ->  | J61: =F61-H61 ->  | P61: 180001 | Q61: 1000000 | R61: =Q61-P61+1 -> 820000 | S61: 0.45 | U61: =IF(#REF!-V60<=0,0,(#REF!-V60)) ->  | V61: =V60+U61 ->  | W61: =U61*S61 ->  | Y61: =U61-W61 ->  | AE61: 180001 | AF61: 1000000 | AG61: =AF61-AE61+1 -> 820000 | AH61: 0.45 | AJ61: =IF('Non-Res Serviceability'!#REF!-AK60<=0,0,('Non-Res Serviceability'!#REF!-AK60)) ->  | AK61: =AK60+AJ61 ->  | AL61: =AJ61*AH61 ->  | AN61: =AJ61-AL61 ->  | AT61: 180001 | AU61: 1000000 | AV61: =AU61-AT61+1 -> 820000 | AW61: 0.45 | AY61: =IF(#REF!-AZ60<=0,0,(#REF!-AZ60)) ->  | AZ61: =AZ60+AY61 ->  | BA61: =AY61*AW61 ->  | BC61: =AY61-BA61 -> 
D62: Totals: | F62: =SUM(F57:F61) ->  | H62: =SUM(H57:H61) ->  | J62: =SUM(J57:J61) ->  | S62: Totals: | U62: =SUM(U57:U61) ->  | W62: =SUM(W57:W61) ->  | Y62: =SUM(Y57:Y61) ->  | AH62: Totals: | AJ62: =SUM(AJ57:AJ61) ->  | AL62: =SUM(AL57:AL61) ->  | AN62: =SUM(AN57:AN61) ->  | AW62: Totals: | AY62: =SUM(AY57:AY61) ->  | BA62: =SUM(BA57:BA61) ->  | BC62: =SUM(BC57:BC61) -> 
A63: =F62*(1.5/100)/12 ->  | B63: Medicare Levy (Monthly) | P63: =U62*(1.5/100)/12 ->  | Q63: Medicare Levy (Monthly) | AE63: =AJ62*(1.5/100)/12 ->  | AF63: Medicare Levy (Monthly) | AT63: =AY62*(1.5/100)/12 ->  | AU63: Medicare Levy (Monthly)
H64: Monthly | J64: =(J62/12)-A63 ->  | W64: Monthly | Y64: =(Y62/12)-P63 ->  | AL64: Monthly | AN64: =(AN62/12)-AE63 ->  | BA64: Monthly | BC64: =(BC62/12)-AT63 -> 
A66: Applicant 6 | P66: Applicant 6 | AE66: Applicant 6 | AT66: Applicant 6
A67: Gross Taxable Income | D67: Tax Rate | F67: Gross | H67: Tax | J67: Net | P67: Gross Taxable Income | S67: Tax Rate | U67: Gross | W67: Tax | Y67: Net | AE67: Gross Taxable Income | AH67: Tax Rate | AJ67: Gross | AL67: Tax | AN67: Net | AT67: Gross Taxable Income | AW67: Tax Rate | AY67: Gross | BA67: Tax | BC67: Net
A68: 1 | B68: 6000 | C68: =B68-A68+1 -> 6000 | D68: 0 | F68: =IF(#REF!<B68,#REF!,C68) ->  | G68: =F68 ->  | H68: =F68*D68 ->  | J68: =F68-H68 ->  | P68: 1 | Q68: 6000 | R68: =Q68-P68+1 -> 6000 | S68: 0 | U68: =IF(#REF!<Q68,#REF!,R68) ->  | V68: =U68 ->  | W68: =U68*S68 ->  | Y68: =U68-W68 ->  | AE68: 1 | AF68: 6000 | AG68: =AF68-AE68+1 -> 6000 | AH68: 0 | AJ68: =IF('Non-Res Serviceability'!#REF!<AF68,'Non-Res Serviceability'!#REF!,AG68) ->  | AK68: =AJ68 ->  | AL68: =AJ68*AH68 ->  | AN68: =AJ68-AL68 ->  | AT68: 1 | AU68: 6000 | AV68: =AU68-AT68+1 -> 6000 | AW68: 0 | AY68: =IF(#REF!<AU68,#REF!,AV68) ->  | AZ68: =AY68 ->  | BA68: =AY68*AW68 ->  | BC68: =AY68-BA68 -> 
A69: 6001 | B69: 35000 | C69: =B69-A69+1 -> 29000 | D69: 0.15 | F69: =IF(G68=#REF!,0,IF((#REF!-G68)>C69,C69,(#REF!-G68))) ->  | G69: =G68+F69 ->  | H69: =F69*D69 ->  | J69: =F69-H69 ->  | P69: 6001 | Q69: 35000 | R69: =Q69-P69+1 -> 29000 | S69: 0.15 | U69: =IF(V68=#REF!,0,IF((#REF!-V68)>R69,R69,(#REF!-V68))) ->  | V69: =V68+U69 ->  | W69: =U69*S69 ->  | Y69: =U69-W69 ->  | AE69: 6001 | AF69: 35000 | AG69: =AF69-AE69+1 -> 29000 | AH69: 0.15 | AJ69: =IF(AK68='Non-Res Serviceability'!#REF!,0,IF(('Non-Res Serviceability'!#REF!-AK68)>AG69,AG69,('Non-Res Serviceability'!#REF!-AK68))) ->  | AK69: =AK68+AJ69 ->  | AL69: =AJ69*AH69 ->  | AN69: =AJ69-AL69 ->  | AT69: 6001 | AU69: 35000 | AV69: =AU69-AT69+1 -> 29000 | AW69: 0.15 | AY69: =IF(AZ68=#REF!,0,IF((#REF!-AZ68)>AV69,AV69,(#REF!-AZ68))) ->  | AZ69: =AZ68+AY69 ->  | BA69: =AY69*AW69 ->  | BC69: =AY69-BA69 -> 
A70: 35001 | B70: 80000 | C70: =B70-A70+1 -> 45000 | D70: 0.3 | F70: =IF(G69=#REF!,0,IF((#REF!-G69)>C70,C70,(#REF!-G69))) ->  | G70: =G69+F70 ->  | H70: =F70*D70 ->  | J70: =F70-H70 ->  | P70: 35001 | Q70: 80000 | R70: =Q70-P70+1 -> 45000 | S70: 0.3 | U70: =IF(V69=#REF!,0,IF((#REF!-V69)>R70,R70,(#REF!-V69))) ->  | V70: =V69+U70 ->  | W70: =U70*S70 ->  | Y70: =U70-W70 ->  | AE70: 35001 | AF70: 80000 | AG70: =AF70-AE70+1 -> 45000 | AH70: 0.3 | AJ70: =IF(AK69='Non-Res Serviceability'!#REF!,0,IF(('Non-Res Serviceability'!#REF!-AK69)>AG70,AG70,('Non-Res Serviceability'!#REF!-AK69))) ->  | AK70: =AK69+AJ70 ->  | AL70: =AJ70*AH70 ->  | AN70: =AJ70-AL70 ->  | AT70: 35001 | AU70: 80000 | AV70: =AU70-AT70+1 -> 45000 | AW70: 0.3 | AY70: =IF(AZ69=#REF!,0,IF((#REF!-AZ69)>AV70,AV70,(#REF!-AZ69))) ->  | AZ70: =AZ69+AY70 ->  | BA70: =AY70*AW70 ->  | BC70: =AY70-BA70 -> 
A71: 80001 | B71: 180000 | C71: =B71-A71+1 -> 100000 | D71: 0.38 | F71: =IF(G70=#REF!,0,IF((#REF!-G70)>C71,C71,(#REF!-G70))) ->  | G71: =G70+F71 ->  | H71: =F71*D71 ->  | J71: =F71-H71 ->  | P71: 80001 | Q71: 180000 | R71: =Q71-P71+1 -> 100000 | S71: 0.38 | U71: =IF(V70=#REF!,0,IF((#REF!-V70)>R71,R71,(#REF!-V70))) ->  | V71: =V70+U71 ->  | W71: =U71*S71 ->  | Y71: =U71-W71 ->  | AE71: 80001 | AF71: 180000 | AG71: =AF71-AE71+1 -> 100000 | AH71: 0.38 | AJ71: =IF(AK70='Non-Res Serviceability'!#REF!,0,IF(('Non-Res Serviceability'!#REF!-AK70)>AG71,AG71,('Non-Res Serviceability'!#REF!-AK70))) ->  | AK71: =AK70+AJ71 ->  | AL71: =AJ71*AH71 ->  | AN71: =AJ71-AL71 ->  | AT71: 80001 | AU71: 180000 | AV71: =AU71-AT71+1 -> 100000 | AW71: 0.38 | AY71: =IF(AZ70=#REF!,0,IF((#REF!-AZ70)>AV71,AV71,(#REF!-AZ70))) ->  | AZ71: =AZ70+AY71 ->  | BA71: =AY71*AW71 ->  | BC71: =AY71-BA71 -> 
A72: 180001 | B72: 1000000 | C72: =B72-A72+1 -> 820000 | D72: 0.45 | F72: =IF(#REF!-G71<=0,0,(#REF!-G71)) ->  | G72: =G71+F72 ->  | H72: =F72*D72 ->  | J72: =F72-H72 ->  | P72: 180001 | Q72: 1000000 | R72: =Q72-P72+1 -> 820000 | S72: 0.45 | U72: =IF(#REF!-V71<=0,0,(#REF!-V71)) ->  | V72: =V71+U72 ->  | W72: =U72*S72 ->  | Y72: =U72-W72 ->  | AE72: 180001 | AF72: 1000000 | AG72: =AF72-AE72+1 -> 820000 | AH72: 0.45 | AJ72: =IF('Non-Res Serviceability'!#REF!-AK71<=0,0,('Non-Res Serviceability'!#REF!-AK71)) ->  | AK72: =AK71+AJ72 ->  | AL72: =AJ72*AH72 ->  | AN72: =AJ72-AL72 ->  | AT72: 180001 | AU72: 1000000 | AV72: =AU72-AT72+1 -> 820000 | AW72: 0.45 | AY72: =IF(#REF!-AZ71<=0,0,(#REF!-AZ71)) ->  | AZ72: =AZ71+AY72 ->  | BA72: =AY72*AW72 ->  | BC72: =AY72-BA72 -> 
D73: Totals: | F73: =SUM(F68:F72) ->  | H73: =SUM(H68:H72) ->  | J73: =SUM(J68:J72) ->  | S73: Totals: | U73: =SUM(U68:U72) ->  | W73: =SUM(W68:W72) ->  | Y73: =SUM(Y68:Y72) ->  | AH73: Totals: | AJ73: =SUM(AJ68:AJ72) ->  | AL73: =SUM(AL68:AL72) ->  | AN73: =SUM(AN68:AN72) ->  | AW73: Totals: | AY73: =SUM(AY68:AY72) ->  | BA73: =SUM(BA68:BA72) ->  | BC73: =SUM(BC68:BC72) -> 
A74: =F73*(1.5/100)/12 ->  | B74: Medicare Levy (Monthly) | P74: =U73*(1.5/100)/12 ->  | Q74: Medicare Levy (Monthly) | AE74: =AJ73*(1.5/100)/12 ->  | AF74: Medicare Levy (Monthly) | AT74: =AY73*(1.5/100)/12 ->  | AU74: Medicare Levy (Monthly)
H75: Monthly | J75: =(J73/12)-A74 ->  | W75: Monthly | Y75: =(Y73/12)-P74 ->  | AL75: Monthly | AN75: =(AN73/12)-AE74 ->  | BA75: Monthly | BC75: =(BC73/12)-AT74 -> 
A78: Company 1 | P78: Company 1 | AE78: Company 1
A79: Gross Taxable Income | D79: Tax Rate | F79: Gross | H79: Tax | J79: Net | P79: Gross Taxable Income | S79: Tax Rate | U79: Gross | W79: Tax | Y79: Net | AE79: Gross Taxable Income | AH79: Tax Rate | AJ79: Gross | AL79: Tax | AN79: Net
D80: 0.25 | F80: =#REF! ->  | G80: =F80 ->  | H80: =F80*D80 ->  | J80: =F80-H80 ->  | S80: =D80 -> 0.25 | U80: ='SMSF Servicing Calculator'!D76 -> 0 | V80: =U80 -> 0 | W80: =U80*S80 -> 0 | Y80: =U80-W80 -> 0 | AH80: 0.25 | AJ80: ='Non-Res Serviceability'!F51 -> 0 | AK80: =AJ80 -> 0 | AL80: =AJ80*AH80 -> 0 | AN80: =AJ80-AL80 -> 0
D81: Totals: | F81: =SUM(F80:F80) ->  | H81: =SUM(H80:H80) ->  | J81: =SUM(J80:J80) ->  | S81: Totals: | U81: =SUM(U80:U80) -> 0 | W81: =SUM(W80:W80) -> 0 | Y81: =SUM(Y80:Y80) -> 0 | AH81: Totals: | AJ81: =SUM(AJ80:AJ80) -> 0 | AL81: =SUM(AL80:AL80) -> 0 | AN81: =SUM(AN80:AN80) -> 0
A82: N/A | B82: Medicare Levy (Monthly) | P82: N/A | Q82: Medicare Levy (Monthly) | AE82: N/A | AF82: Medicare Levy (Monthly)
H83: Monthly | J83: =(J81/12) ->  | W83: Monthly | Y83: =(Y81/12) -> 0 | AL83: Monthly | AN83: =(AN81/12) -> 0
A85: Company 2 | P85: Company 2 | AE85: Company 2
A86: Gross Taxable Income | D86: Tax Rate | F86: Gross | H86: Tax | J86: Net | P86: Gross Taxable Income | S86: Tax Rate | U86: Gross | W86: Tax | Y86: Net | AE86: Gross Taxable Income | AH86: Tax Rate | AJ86: Gross | AL86: Tax | AN86: Net
D87: =D80 -> 0.25 | F87: =#REF! ->  | G87: =F87 ->  | H87: =F87*D87 ->  | J87: =F87-H87 ->  | S87: =D87 -> 0.25 | U87: ='SMSF Servicing Calculator'!D77 -> 0 | V87: =U87 -> 0 | W87: =U87*S87 -> 0 | Y87: =U87-W87 -> 0 | AH87: =AH80 -> 0.25 | AJ87: ='Non-Res Serviceability'!F52 -> 0 | AK87: =AJ87 -> 0 | AL87: =AJ87*AH87 -> 0 | AN87: =AJ87-AL87 -> 0
D88: Totals: | F88: =SUM(F87:F87) ->  | H88: =SUM(H87:H87) ->  | J88: =SUM(J87:J87) ->  | S88: Totals: | U88: =SUM(U87:U87) -> 0 | W88: =SUM(W87:W87) -> 0 | Y88: =SUM(Y87:Y87) -> 0 | AH88: Totals: | AJ88: =SUM(AJ87:AJ87) -> 0 | AL88: =SUM(AL87:AL87) -> 0 | AN88: =SUM(AN87:AN87) -> 0
A89: N/A | B89: Medicare Levy (Monthly) | P89: N/A | Q89: Medicare Levy (Monthly) | AE89: N/A | AF89: Medicare Levy (Monthly)
H90: Monthly | J90: =(J88/12) ->  | W90: Monthly | Y90: =(Y88/12) -> 0 | AL90: Monthly | AN90: =(AN88/12) -> 0
P92: SMSF Assets
P93: Gross Taxable Income | S93: Tax Rate | U93: Assets | V93: Income | W93: Tax | Y93: Net
S94: 0.15 | U94: ='SMSF Servicing Calculator'!D9 ->  | V94: =U94*3.9% ->  | W94: =V94*S94 ->  | Y94: =V94-W94 -> 
A95: Low & Middle Income Tax Offset table | S95: Totals: | U95: =SUM(U94:U94) ->  | W95: =SUM(W94:W94) ->  | Y95: =SUM(Y94:Y94) -> 
A96: Low Band | B96: High Band | C96: % Cacl | D96: $ Calc | P96: N/A | Q96: Medicare Levy (Monthly)
A97: 0 | B97: 19543 | D97: 0
A98: 19543 | B98: 37000 | D98: -255 | W98: Monthly | Y98: =(Y95/12) -> 
A99: 37001 | B99: 48000 | C99: -0.075 | D99: -255
A100: 48001 | B100: 90000 | D100: -1080 | P100: SMSF Contributions - Applicant 1
A101: 90001 | B101: 126000 | C101: 0.03 | D101: -1080 | P101: Gross Taxable Income | S101: Tax Rate | U101: Gross | W101: Tax | Y101: Net
A102: 126001 | B102: 10000000 | D102: 0 | P102: 1 | Q102: 25000 | R102: =Q102-P102+1 -> 25000 | S102: 0.15 | U102: =IF('SMSF Servicing Calculator'!D12<Q102,'SMSF Servicing Calculator'!D12,R102) -> 0 | V102: =U102 -> 0 | W102: =U102*S102 -> 0 | Y102: =V102-W102 -> 0
P103: 25001 | Q103: 10000000 | R103: =Q103-P103+1 -> 9975000 | S103: 0.47 | U103: =IF(V102='SMSF Servicing Calculator'!$D$12,0,IF(('SMSF Servicing Calculator'!$D$12-V102)>R103,R103,('SMSF Servicing Calculator'!$D$12-V102))) -> 0 | V103: =V102+U103 -> 0 | W103: =U103*S103 -> 0 | Y103: =U103-W103 -> 0
S104: Totals: | U104: =SUM(U102:U103) -> 0 | W104: =SUM(W102:W103) -> 0 | Y104: =SUM(Y102:Y103) -> 0
A106: =IF(F10<=B97,D97,IF($F$23<=$B$98,$D$98,IF($F$23<=$B$99,(($F$23-$B$98)*$C$99)+$D$99,IF($F$23<=$B$100,$D$100,IF($F$23<=$B$101,(($F$23-$B$100)*$C$101)+$D$101,IF($F$23<=$B$102,$D$102,0)))))) ->  | W106: Monthly | Y106: =(Y104/12) -> 0
A108: Low Income Tax Offset | P108: SMSF Contributions - Applicant 2
A109: 0 | B109: 20593 | D109: 0 | P109: Gross Taxable Income | S109: Tax Rate | U109: Gross | W109: Tax | Y109: Net
A110: 20596 | B110: 37000 | D110: -445 | P110: 1 | Q110: 25000 | R110: =Q110-P110+1 -> 25000 | S110: =S102 -> 0.15 | U110: =IF('SMSF Servicing Calculator'!D13<Q110,'SMSF Servicing Calculator'!D13,R110) -> 0 | V110: =U110 -> 0 | W110: =U110*S110 -> 0 | Y110: =V110-W110 -> 0
A111: 37001 | B111: 66666 | C111: 0.015 | D111: -445 | P111: 25001 | Q111: 10000000 | R111: =Q111-P111+1 -> 9975000 | S111: =S103 -> 0.47 | U111: =IF(V110='SMSF Servicing Calculator'!$D$13,0,IF(('SMSF Servicing Calculator'!$D$13-V110)>R111,R111,('SMSF Servicing Calculator'!$D$13-V110))) -> 0 | V111: =V110+U111 -> 0 | W111: =U111*S111 -> 0 | Y111: =U111-W111 -> 0
A112: 66667 | B112: 10000000 | D112: 0 | S112: Totals: | U112: =SUM(U110:U111) -> 0 | W112: =SUM(W110:W111) -> 0 | Y112: =SUM(Y110:Y111) -> 0
W114: Monthly | Y114: =(Y112/12) -> 0
A115: =IF($F$10<=$B$109,$D$109,IF($F$10<=$B$110,$D$110,IF($F$10<=$B$111,(($F$10-$B$110)*$C$111)+$D$111,IF($F$10<=$B$112,$D$112,0)))) -> 
P116: SMSF Contributions - Applicant 3
P117: Gross Taxable Income | S117: Tax Rate | U117: Gross | W117: Tax | Y117: Net
P118: 1 | Q118: 25000 | R118: =Q118-P118+1 -> 25000 | S118: =S102 -> 0.15 | U118: =IF('SMSF Servicing Calculator'!D14<Q118,'SMSF Servicing Calculator'!D14,R118) -> 0 | V118: =U118 -> 0 | W118: =U118*S118 -> 0 | Y118: =V118-W118 -> 0
P119: 25001 | Q119: 10000000 | R119: =Q119-P119+1 -> 9975000 | S119: =S103 -> 0.47 | U119: =IF(V118='SMSF Servicing Calculator'!$D$14,0,IF(('SMSF Servicing Calculator'!$D$14-V118)>R119,R119,('SMSF Servicing Calculator'!$D$14-V118))) -> 0 | V119: =V118+U119 -> 0 | W119: =U119*S119 -> 0 | Y119: =U119-W119 -> 0
S120: Totals: | U120: =SUM(U118:U119) -> 0 | W120: =SUM(W118:W119) -> 0 | Y120: =SUM(Y118:Y119) -> 0
W122: Monthly | Y122: =(Y120/12) -> 0
P124: SMSF Contributions - Applicant 4
P125: Gross Taxable Income | S125: Tax Rate | U125: Gross | W125: Tax | Y125: Net
P126: 1 | Q126: 25000 | R126: =Q126-P126+1 -> 25000 | S126: =S102 -> 0.15 | U126: =IF('SMSF Servicing Calculator'!D15<Q126,'SMSF Servicing Calculator'!D15,R126) -> 0 | V126: =U126 -> 0 | W126: =U126*S126 -> 0 | Y126: =V126-W126 -> 0
P127: 25001 | Q127: 10000000 | R127: =Q127-P127+1 -> 9975000 | S127: =S103 -> 0.47 | U127: =IF(V126='SMSF Servicing Calculator'!$D$15,0,IF(('SMSF Servicing Calculator'!$D$15-V126)>R127,R127,('SMSF Servicing Calculator'!$D$15-V126))) -> 0 | V127: =V126+U127 -> 0 | W127: =U127*S127 -> 0 | Y127: =U127-W127 -> 0
S128: Totals: | U128: =SUM(U126:U127) -> 0 | W128: =SUM(W126:W127) -> 0 | Y128: =SUM(Y126:Y127) -> 0
W130: Monthly | Y130: =(Y128/12) -> 0

Sheet HEM2 (hidden)
D4: "HEM Table 1" equivalent: by Income Level and Residency | P4: Q3 2025
F5: BASED ON PREDICTED VALUES FROM THE QUANTILE REGRESSIONS
H6: Smoothed HEM
B7: Column for lookup | C7: 2 | D7: 3 | E7: 4 | F7: 5 | G7: 6 | H7: 7 | I7: 8 | J7: 9 | K7: 10 | L7: 11 | M7: 12 | N7: 13 | O7: 14 | P7: 15
F8: Total current gross HH income from all sources (measured in current dollars)
C9: -9999999999 | D9: 27000 | E9: 40000 | F9: 53000 | G9: 66000 | H9: 80000 | I9: 106000 | J9: 133000 | K9: 160000 | L9: 186000 | M9: 213000 | N9: 266000 | O9: 332000 | P9: 399000
C10: or less | D10: to | E10: to | F10: to | G10: to | H10: to | I10: to | J10: to | K10: to | L10: to | M10: to | N10: to | O10: to | P10: to
D11: 40000 | E11: 53000 | F11: 66000 | G11: 80000 | H11: 106000 | I11: 133000 | J11: 160000 | K11: 186000 | L11: 213000 | M11: 266000 | N11: 332000 | O11: 399000 | P11: 665000
B12: Australia
B13: Couple with 0 children | C13: 607.032201 | D13: 607.032201 | E13: 621.2558709 | F13: 644.6483946 | G13: 688.9552094 | H13: 748.2747349 | I13: 836.188492 | J13: 912.0616145 | K13: 992.8160417 | L13: 1045.904396 | M13: 1106.954555 | N13: 1230.684373 | O13: 1397.045429 | P13: 1418.565649
B14: Couple with 1 children | C14: 711.6057496 | D14: 711.6057496 | E14: 711.6057496 | F14: 734.9426398 | G14: 779.1440827 | H14: 838.3225297 | I14: 926.0272056 | J14: 1001.719884 | K14: 1082.282259 | L14: 1135.244356 | M14: 1196.149323 | N14: 1319.58488 | O14: 1485.550288 | P14: 1507.019328
B15: Couple with 2 children | C15: 784.6985268 | D15: 784.6985268 | E15: 784.6985268 | F15: 808.0527174 | G15: 852.2869263 | H15: 911.5092434 | I15: 999.278935 | J15: 1075.027724 | K15: 1155.64982 | L15: 1208.651177 | M15: 1269.601294 | N15: 1393.128353 | O15: 1559.216794 | P15: 1580.701749
B16: Couple with 3 children | C16: 861.8989344 | D16: 861.8989344 | E16: 861.8989344 | F16: 861.8989344 | G16: 905.8447956 | H16: 964.6810637 | I16: 1051.878613 | J16: 1127.133621 | K16: 1207.230168 | L16: 1259.886025 | M16: 1320.43883 | N16: 1443.160657 | O16: 1608.166422 | P16: 1629.511323
B17: Couple with 4 children | C17: =D17 -> 915.7451513 | D17: =E17 -> 915.7451513 | E17: =F17 -> 915.7451513 | F17: =F16+(F16-F15) -> 915.7451513 | G17: =G16+(G16-G15) -> 959.4026649 | H17: 1017.852884 | I17: 1104.478292 | J17: 1179.239518 | K17: 1258.810516 | L17: 1311.120872 | M17: 1371.276366 | N17: 1493.192961 | O17: 1657.116051 | P17: 1678.320897
B18: Couple with 5 children | C18: =C17+(C17-C16) -> 969.5913682 | D18: 969.5913682 | E18: 969.5913682 | F18: 969.5913682 | G18: 1012.960534 | H18: 1071.024704 | I18: 1157.07797 | J18: 1231.345414 | K18: 1310.390864 | L18: 1362.35572 | M18: 1422.113902 | N18: 1543.225265 | O18: 1706.065679 | P18: 1727.130471
B19: Couple with 6 children | C19: 1023.437585 | D19: 1023.437585 | E19: 1023.437585 | F19: 1023.437585 | G19: 1066.518403 | H19: 1124.196525 | I19: 1209.677648 | J19: 1283.451311 | K19: 1361.971212 | L19: 1413.590568 | M19: 1472.951438 | N19: 1593.257569 | O19: 1755.015307 | P19: =P18+(P18-P17) -> 1775.940045
B20: Couple with 7 children | C20: 1077.283802 | D20: 1077.283802 | E20: 1077.283802 | F20: 1077.283802 | G20: 1120.076273 | H20: 1177.368345 | I20: 1262.277326 | J20: 1335.557207 | K20: 1413.55156 | L20: 1464.825415 | M20: 1523.788974 | N20: 1643.289873 | O20: 1803.964936 | P20: 1824.749619
B21: Couple with 8 children | C21: 1131.130019 | D21: 1131.130019 | E21: 1131.130019 | F21: 1131.130019 | G21: 1173.634142 | H21: 1230.540165 | I21: 1314.877005 | J21: 1387.663104 | K21: 1465.131908 | L21: 1516.060263 | M21: 1574.62651 | N21: 1693.322177 | O21: 1852.914564 | P21: 1873.559193
B22: Couple with 9 children | C22: 1184.976236 | D22: 1184.976236 | E22: 1184.976236 | F22: 1184.976236 | G22: 1227.192011 | H22: 1283.711985 | I22: 1367.476683 | J22: 1439.769 | K22: 1516.712256 | L22: 1567.29511 | M22: 1625.464046 | N22: 1743.354481 | O22: 1901.864193 | P22: =P21+(P21-P20) -> 1922.368767
B23: Couple with 10 children | C23: 1238.822453 | D23: 1238.822453 | E23: 1238.822453 | F23: 1238.822453 | G23: 1280.749881 | H23: 1336.883806 | I23: 1420.076361 | J23: 1491.874897 | K23: 1568.292604 | L23: 1618.529958 | M23: 1676.301582 | N23: 1793.386785 | O23: 1950.813821 | P23: 1971.17834
B24: Single with 0 children | C24: 315.1476633 | D24: 331.8969906 | E24: 346.1173941 | F24: 369.5045454 | G24: 413.8011837 | H24: 473.107086 | I24: 561.0006517 | J24: 636.8563492 | K24: 717.5922303 | L24: 770.6683923 | M24: 831.70453 | N24: 955.4059311 | O24: 1121.728781 | P24: 1143.244058
B25: Single with 1 children | C25: 434.5845759 | D25: 434.5845759 | E25: 448.7683425 | F25: 472.0952355 | G25: 516.2777474 | H25: 575.4308489 | I25: 663.0979598 | J25: 738.7582174 | K25: 819.2860884 | L25: 872.2254998 | M25: 933.1043801 | N25: 1056.487068 | O25: 1222.381393 | P25: 1243.841235
B26: Single with 2 children | C26: 550.4643669 | D26: 550.4643669 | E26: 564.6882632 | F26: 588.0811544 | G26: 632.3886696 | H26: 691.7091351 | I26: 779.6242798 | J26: 855.4986008 | K26: 936.2543045 | L26: 989.3435015 | M26: 1050.394622 | N26: 1174.126398 | O26: 1340.490085 | P26: 1362.010643
B27: Single with 3 children | C27: 680.608184 | D27: 680.608184 | E27: 680.608184 | F27: 704.0670733 | G27: 748.4995918 | H27: 807.9874213 | I27: 896.1505998 | J27: 972.2389843 | K27: 1053.222521 | L27: 1106.461503 | M27: 1167.684864 | N27: 1291.765728 | O27: 1458.598778 | P27: 1480.18005
B28: Single with 4 children | C28: =D28 -> 796.5281047 | D28: =E28 -> 796.5281047 | E28: =E27+(E27-E26) -> 796.5281047 | F28: 820.0529921 | G28: 864.610514 | H28: 924.2657075 | I28: 1012.67692 | J28: 1088.979368 | K28: 1170.190737 | L28: 1223.579505 | M28: 1284.975106 | N28: 1409.405058 | O28: =O27+(O27-O26) -> 1576.707471 | P28: =P27+(P27-P26) -> 1598.349457
B29: Single with 5 children | C29: =D29 -> 912.4480254 | D29: 912.4480254 | E29: 912.4480254 | F29: 936.038911 | G29: 980.7214362 | H29: 1040.543994 | I29: 1129.20324 | J29: 1205.719751 | K29: 1287.158953 | L29: 1340.697506 | M29: 1402.265348 | N29: 1527.044387 | O29: 1694.816164 | P29: 1716.518865
B30: Single with 6 children | C30: 1028.367946 | D30: 1028.367946 | E30: 1028.367946 | F30: 1052.02483 | G30: 1096.832358 | H30: 1156.82228 | I30: 1245.72956 | J30: 1322.460135 | K30: 1404.127169 | L30: 1457.815508 | M30: 1519.55559 | N30: 1644.683717 | O30: 1812.924857 | P30: 1834.688272
B31: Single with 7 children | C31: 1144.287867 | D31: 1144.287867 | E31: 1144.287867 | F31: 1168.010749 | G31: 1212.943281 | H31: 1273.100566 | I31: 1362.25588 | J31: 1439.200518 | K31: 1521.095385 | L31: 1574.93351 | M31: 1636.845832 | N31: 1762.323047 | O31: 1931.033549 | P31: 1952.85768
B32: Single with 8 children | C32: 1260.207787 | D32: 1260.207787 | E32: 1260.207787 | F32: 1283.996668 | G32: 1329.054203 | H32: 1389.378852 | I32: 1478.7822 | J32: 1555.940902 | K32: 1638.063601 | L32: 1692.051511 | M32: 1754.136074 | N32: 1879.962377 | O32: 2049.142242 | P32: =P31+(P31-P30) -> 2071.027087
B33: Single with 9 children | C33: 1376.127708 | D33: 1376.127708 | E33: 1376.127708 | F33: 1399.982586 | G33: 1445.165125 | H33: 1505.657139 | I33: 1595.30852 | J33: 1672.681285 | K33: 1755.031817 | L33: 1809.169513 | M33: 1871.426316 | N33: 1997.601707 | O33: 2167.250935 | P33: 2189.196494
B34: Single with 10 children | C34: 1492.047629 | D34: 1492.047629 | E34: 1492.047629 | F34: 1515.968505 | G34: 1561.276047 | H34: 1621.935425 | I34: 1711.83484 | J34: 1789.421668 | K34: 1872.000033 | L34: 1926.287515 | M34: 1988.716557 | N34: 2115.241037 | O34: 2285.359628 | P34: 2307.365902
B45: "HEM Table 1" equivalent
B46: BASED ON RAW DATA
B47: Smoothed HEM
B48: WORKFORCE STATUS HEAD NOT USED | C48: Including Housing $ per week | D48: Other than Housing S per week
B49: Couple | C49: - | D49: 649.86875
B50: Couple with 1 child | C50: - | D50: 858.9402404
B51: Couple with 2 children | C51: - | D51: 911.1290865 | I51: $ per Week | J51: $ per Month
B52: Couple with 3 children | C52: - | D52: 989.2208333 | H52: Single | I52: 301 | J52: =I52*52/12 -> 1304.333333
H53: Couples | I53: 650 | J53: =I53*52/12 -> 2816.666667
B54: Single person | C54: - | D54: 301.1258173 | H54: Children | I54: 409 | J54: =(I54-I52)*52/12 -> 468
B55: Single parent with 1 child | C55: - | D55: 409.0383173
B56: Single parent with 2 children | C56: - | D56: 493.369375
B57: Single parent with 3 children | C57: - | D57: 577.7004327
B68: Monthly HEM
B71: Column for lookup | C71: 2 | D71: 3 | E71: 4 | F71: 5 | G71: 6 | H71: 7 | I71: 8 | J71: 9 | K71: 10
F72: Total current gross HH income from all sources (measured in current dollars)
C73: 0 | D73: 22000 | E73: 32000 | F73: 43000 | G73: 54000 | H73: 65000 | I73: 86000 | J73: 108000 | K73: 129000
C74: or less | D74: to | E74: to | F74: to | G74: to | H74: to | I74: to | J74: to | K74: to
D75: 32000 | E75: 43000 | F75: 54000 | G75: 65000 | H75: 86000 | I75: 108000 | J75: 129000 | K75: 151000
B76: Australia
B77: Couple with 0 children | C77: =C13*52/12 -> 2630.472871 | D77: 2630.472871 | E77: 2692.108774 | F77: 2793.476377 | G77: 2985.472574 | H77: 3242.523851 | I77: 3623.483465 | J77: 3952.266996 | K77: 4302.202848
B78: Couple with 1 children | C78: =C14*52/12 -> 3083.624915 | D78: 3083.624915 | E78: 3083.624915 | F78: 3184.751439 | G78: 3376.291025 | H78: 3632.730962 | I78: 4012.784558 | J78: 4340.786163 | K78: 4689.889789
B79: Couple with 2 children | C79: =C15*52/12 -> 3400.360283 | D79: 3400.360283 | E79: 3400.360283 | F79: 3501.561776 | G79: 3693.243347 | H79: 3949.873388 | I79: 4330.208718 | J79: 4658.453472 | K79: 5007.815888
B80: Couple with 3 children | C80: =C16*52/12 -> 3734.895382 | D80: 3734.895382 | E80: 3734.895382 | F80: 3734.895382 | G80: 3925.327448 | H80: 4180.284609 | I80: 4558.140658 | J80: 4884.245691 | K80: 5231.330729
B81: Couple with 4 children | C81: =C17*52/12 -> 3968.228989 | D81: 3968.228989 | E81: 3968.228989 | F81: 3968.228989 | G81: 4157.411548 | H81: 4410.695831 | I81: 4786.072597 | J81: 5110.03791 | K81: 5454.84557
B82: Couple with 5 children | C82: =C18*52/12 -> 4201.562595 | D82: 4201.562595 | E82: 4201.562595 | F82: 4201.562595 | G82: 4389.495648 | H82: 4641.107052 | I82: 5014.004536 | J82: 5335.830128 | K82: 5678.360411
B83: Couple with 6 children | C83: =C19*52/12 -> 4434.896202 | D83: 4434.896202 | E83: 4434.896202 | F83: 4434.896202 | G83: 4621.579748 | H83: 4871.518273 | I83: 5241.936475 | J83: 5561.622347 | K83: 5901.875253
B84: Couple with 7 children | C84: =C20*52/12 -> 4668.229809 | D84: 4668.229809 | E84: 4668.229809 | F84: 4668.229809 | G84: 4853.663848 | H84: 5101.929494 | I84: 5469.868414 | J84: 5787.414565 | K84: 6125.390094
B85: Couple with 8 children | C85: =C21*52/12 -> 4901.563415 | D85: 4901.563415 | E85: 4901.563415 | F85: 4901.563415 | G85: 5085.747949 | H85: 5332.340715 | I85: 5697.800353 | J85: 6013.206784 | K85: 6348.904935
B86: Couple with 9 children | C86: =C22*52/12 -> 5134.897022 | D86: 5134.897022 | E86: 5134.897022 | F86: 5134.897022 | G86: 5317.832049 | H86: 5562.751937 | I86: 5925.732293 | J86: 6238.999002 | K86: 6572.419776
B87: Couple with 10 children | C87: =C23*52/12 -> 5368.230629 | D87: 5368.230629 | E87: 5368.230629 | F87: 5368.230629 | G87: 5549.916149 | H87: 5793.163158 | I87: 6153.664232 | J87: 6464.791221 | K87: 6795.934617
B89: Single with 0 children | C89: =C24*52/12 -> 1365.639874 | D89: 1438.220293 | E89: 1499.842041 | F89: 1601.186364 | G89: 1793.138463 | H89: 2050.130706 | I89: 2431.002824 | J89: 2759.710846 | K89: 3109.566331
B90: Single with 1 children | C90: =C25*52/12 -> 1883.199829 | D90: 1883.199829 | E90: 1944.662818 | F90: 2045.746021 | G90: 2237.203572 | H90: 2493.533678 | I90: 2873.424492 | J90: 3201.285609 | K90: 3550.239716
B91: Single with 2 children | C91: =C26*52/12 -> 2385.34559 | D91: 2385.34559 | E91: 2446.982474 | F91: 2548.351669 | G91: 2740.350902 | H91: 2997.406252 | I91: 3378.371879 | J91: 3707.160604 | K91: 4057.101986
B92: Single with 3 children | C92: =C27*52/12 -> 2949.30213 | D92: 2949.30213 | E92: 2949.30213 | F92: 3050.957317 | G92: 3243.498231 | H92: 3501.278826 | I92: 3883.319266 | J92: 4213.035599 | K92: 4563.964256
B93: Single with 4 children | C93: =C28*52/12 -> 3451.621787 | D93: 3451.621787 | E93: 3451.621787 | F93: 3553.562966 | G93: 3746.645561 | H93: 4005.151399 | I93: 4388.266652 | J93: 4718.910594 | K93: 5070.826526
B94: Single with 5 children | C94: =C29*52/12 -> 3953.941443 | D94: 3953.941443 | E94: 3953.941443 | F94: 4056.168614 | G94: 4249.79289 | H94: 4509.023973 | I94: 4893.214039 | J94: 5224.785589 | K94: 5577.688795
B95: Single with 6 children | C95: =C30*52/12 -> 4456.2611 | D95: 4456.2611 | E95: 4456.2611 | F95: 4558.774263 | G95: 4752.94022 | H95: 5012.896547 | I95: 5398.161425 | J95: 5730.660583 | K95: 6084.551065
B96: Single with 7 children | C96: =C31*52/12 -> 4958.580756 | D96: 4958.580756 | E96: 4958.580756 | F96: 5061.379911 | G96: 5256.087549 | H96: 5516.76912 | I96: 5903.108812 | J96: 6236.535578 | K96: 6591.413335
B97: Single with 8 children | C97: =C32*52/12 -> 5460.900412 | D97: 5460.900412 | E97: 5460.900412 | F97: 5563.985559 | G97: 5759.234879 | H97: 6020.641694 | I97: 6408.056199 | J97: 6742.410573 | K97: 7098.275605
B98: Single with 9 children | C98: =C33*52/12 -> 5963.220069 | D98: 5963.220069 | E98: 5963.220069 | F98: 6066.591208 | G98: 6262.382209 | H98: 6524.514268 | I98: 6913.003585 | J98: 7248.285568 | K98: 7605.137874
B99: Single with 10 children | C99: =C34*52/12 -> 6465.539725 | D99: 6465.539725 | E99: 6465.539725 | F99: 6569.196856 | G99: 6765.529538 | H99: 7028.386841 | I99: 7417.950972 | J99: 7754.160563 | K99: 8112.000144

Sheet RepayCalculator (hidden)
A1: Dropdown box data
A2: Principal & Interest
A3: Interest Only
A6: Serviceability Sensitivity | B6: 0.02
A8: Interest Rate Floor | B8: 0.0575
A10: Interest Only Period | B10: Loan Term | C10: LoanType | D10: Stressed | E10: Status | F10: Household | G10: Dependents | J10: Non Res Commitment
A11: 0 | B11: 30
A12: 1 | B12: 29 | C12: Mortgage Loan - Investment | D12: Mortgage Loan - Investment | E12: Single | F12: Household 1 | G12: 0 | J12: Personal Loan (fixed)
A13: 2 | B13: 28 | C13: Mortgage Loan - Owner Occupied | D13: Mortgage Loan - Owner Occupied | E13: Couple | F13: Household 2 | G13: 1 | J13: Overdraft
A14: 3 | B14: 27 | C14: Lease / Hire Purchase | D14: Overdraft | F14: Household 3 | G14: 2 | J14: Housing Loan Variable - Owner Occupied
A15: 4 | B15: 26 | C15: Line of Credit | D15: Personal Loan - Variable | F15: Household 4 | G15: 3 | J15: Housing Loan Variable - Investment
A16: 5 | B16: 25 | C16: Overdraft | D16: Line of Credit | G16: 4 | J16: Lease / HP
B17: 24 | C17: Personal Loan - Fixed | G17: 5 | J17: Annual Fee
B18: 23 | C18: Personal Loan - Variable | G18: 6 | J18: Child Support
B19: 22 | C19: Private Loan | G19: 7 | J19: Rent / Board
B20: 21 | C20: Other | G20: 8
B21: 20 | G21: 9
B22: 19 | G22: 10 | J22: ="Personal Loan (fixed) - "&'Non-Res Serviceability'!F15 -> Personal Loan (fixed) -
B23: 18 | J23: ="Overdraft - "&'Non-Res Serviceability'!F15 -> Overdraft -
B24: 17 | J24: ="Housing Loan Variable - OO - "&'Non-Res Serviceability'!F15 -> Housing Loan Variable - OO -
B25: 16 | J25: ="Housing Loan Variable - Investment - "&'Non-Res Serviceability'!F15 -> Housing Loan Variable - Investment -
B26: 15 | J26: ="Lease / HP - "&'Non-Res Serviceability'!F15 -> Lease / HP -
B27: 14 | J27: ="Other - "&'Non-Res Serviceability'!F15 -> Other -
B28: 13 | J28: ="Child Support - "&'Non-Res Serviceability'!F15 -> Child Support -
B29: 12 | J29: ="Rent / Board - "&'Non-Res Serviceability'!F15 -> Rent / Board -
B30: 11
B31: 10
B32: 9
B33: 8
B34: 7
B35: 6
B36: 5
B37: 4
B38: 3
B39: 2
B40: 1
B41: 0
A43: Rental Income - Standard | B43: 0.8
A44: Rental Income - SMSF | B44: 0.8
A45: Rental Income - ICR | B45: 0.8
A47: Serviceability Sensitivity - ICR | B47: 0.02
D50: =IF(#REF!="No",IF(B42+RepayCalculator!B6<RepayCalculator!B8,RepayCalculator!#REF!,RepayCalculator!#REF!)) -> 

Sheet Cost of Living Index (hidden)
A1: Country | B1: Cost of Living Index | C1: Currency Code | E1: =_xlfn._xlws.SORT(_xlfn._xlws.FILTER(A:A,ISNUMBER(SEARCH('Non-Res Serviceability'!D15,A:A)),"not found")) -> China | F1: =_xlfn._xlws.SORT(_xlfn._xlws.FILTER(A:A,ISNUMBER(SEARCH('Non-Res Serviceability'!F15,A:A)),"not found")) -> Afghanistan | G1: Living Allowance Calculation
A2: Afghanistan | B2: 26.33 | C2: AFN | F2: Albania
A3: Albania | B3: 40.25 | C3: ALL | F3: Algeria | H3: $ per Week | I3: $ per Month
A4: Algeria | B4: 28.31 | C4: DZD | F4: Argentina | G4: Single | H4: 343 | I4: =H4*52/12 -> 1486.333333
A5: Argentina | B5: 37.87 | C5: ARS | F5: Armenia | G5: Couples | H5: 526 | I5: =H5*52/12 -> 2279.333333
A6: Armenia | B6: 31.68 | C6: AMD | F6: Australia | G6: Children | H6: 489.48 | I6: =(H6-H4)*52/12 -> 634.7466667
A7: Australia | B7: 84.14 | C7: AUD | F7: Austria
A8: Austria | B8: 75.49 | C8: EUR | F8: Azerbaijan
A9: Azerbaijan | B9: 30.9 | C9: AZN | F9: Bahamas | G9: Version Date: 1 March 2020
A10: Bahamas | B10: 85.85 | C10: BSD | F10: Bahrain
A11: Bahrain | B11: 57.7 | C11: BHD | F11: Bangladesh
A12: Bangladesh | B12: 33.31 | C12: BDT | F12: Barbados | G12: HEM Data Date - 2021
A13: Barbados | B13: 81.49 | C13: BBD | F13: Belarus | G13: Cost of Living Data Date - 2021
A14: Belarus | B14: 30.69 | C14: BYN | F14: Belgium
A15: Belgium | B15: 78.52 | C15: EUR | F15: Belize | G15: Australia | H15: 84.14
A16: Belize | B16: 52.45 | C16: BZD | F16: Bermuda
A17: Bermuda | B17: 145.07 | C17: BMD | F17: Bolivia
A18: Bolivia | B18: 36.11 | C18: BOB | F18: Bosnia And Herzegovina
A19: Bosnia And Herzegovina | B19: 38.56 | C19: BAM | F19: Botswana
A20: Botswana | B20: 40.41 | C20: BWP | F20: Brazil
A21: Brazil | B21: 31.82 | C21: BRL | F21: Brunei
A22: Brunei | B22: 49.35 | C22: BND | F22: Bulgaria
A23: Bulgaria | B23: 40.92 | C23: BGN | F23: Cambodia
A24: Cambodia | B24: 47.91 | C24: KHR | F24: Cameroon
A25: Cameroon | B25: 42.57 | C25: XAF | F25: Canada
A26: Canada | B26: 70.08 | C26: CAD | F26: Chile
A27: Chile | B27: 49.33 | C27: CLP | F27: China
A28: China | B28: 42.54 | C28: CNY | F28: Colombia
A29: Colombia | B29: 31 | C29: COP | F29: Costa Rica
A30: Costa Rica | B30: 50.64 | C30: CRC | F30: Country
A31: Croatia | B31: 56.36 | C31: HRK | F31: Croatia
A32: Cuba | B32: 55.54 | C32: CUP | F32: Cuba
A33: Cyprus | B33: 64.05 | C33: EUR | F33: Cyprus
A34: Czech Republic | B34: 49.18 | C34: CZK | F34: Czech Republic
A35: Denmark | B35: 91.67 | C35: DKK | F35: Denmark
A36: Dominican Republic | B36: 41.54 | C36: DOP | F36: Dominican Republic
A37: Ecuador | B37: 40.08 | C37: USD | F37: Ecuador
A38: Egypt | B38: 30.1 | C38: EGP | F38: Egypt
A39: El Salvador | B39: 44.57 | C39: SVC | F39: El Salvador
A40: Estonia | B40: 56.45 | C40: EUR | F40: Estonia
A41: Ethiopia | B41: 54.3 | C41: ETB | F41: Ethiopia
A42: Fiji | B42: 48.54 | C42: FJD | F42: Fiji
A43: Finland | B43: 77.46 | C43: EUR | F43: Finland
A44: France | B44: 80.62 | C44: EUR | F44: France
A45: Georgia | B45: 28.05 | C45: GEL | F45: Georgia
A46: Germany | B46: 70.62 | C46: EUR | F46: Germany
A47: Ghana | B47: 40.63 | C47: GHS | F47: Ghana
A48: Greece | B48: 60.96 | C48: EUR | F48: Greece
A49: Guatemala | B49: 44.76 | C49: GTQ | F49: Guatemala
A50: Honduras | B50: 42.2 | C50: HNL | F50: Honduras
A51: Hong Kong | B51: 79.94 | C51: HKD | F51: Hong Kong
A52: Hungary | B52: 42.75 | C52: HUF | F52: Hungary
A53: Iceland | B53: 96.77 | C53: ISK | F53: Iceland
A54: India | B54: 25.16 | C54: INR | F54: India
A55: Indonesia | B55: 37.44 | C55: IDR | F55: Indonesia
A56: Iran | B56: 41.34 | C56: IRR | F56: Iran
A57: Iraq | B57: 32.72 | C57: IQD | F57: Iraq
A58: Ireland | B58: 83.11 | C58: EUR | F58: Ireland
A59: Israel | B59: 86.63 | C59: ILS | F59: Israel
A60: Italy | B60: 73.11 | C60: EUR | F60: Italy
A61: Ivory Coast | B61: 54.61 | C61: XOF | F61: Ivory Coast
A62: Jamaica | B62: 53.16 | C62: JMD | F62: Jamaica
A63: Japan | B63: 87.77 | C63: JPY | F63: Japan
A64: Jordan | B64: 52.17 | C64: JOD | F64: Jordan
A65: Kazakhstan | B65: 29.76 | C65: KZT | F65: Kazakhstan
A66: Kenya | B66: 36.3 | C66: KES | F66: Kenya
A67: Kosovo (Disputed Territory) | B67: 29.4 | C67: EUR | F67: Kosovo (Disputed Territory)
A68: Kuwait | B68: 49.4 | C68: KWD | F68: Kuwait
A69: Kyrgyzstan | B69: 22.98 | C69: KGS | F69: Kyrgyzstan
A70: Latvia | B70: 52.87 | C70: EUR | F70: Latvia
A71: Lebanon | B71: 75.88 | C71: LBP | F71: Lebanon
A72: Libya | B72: 22.32 | C72: LYD | F72: Libya
A73: Lithuania | B73: 47.66 | C73: EUR | F73: Lithuania
A74: Luxembourg | B74: 88.28 | C74: EUR | F74: Luxembourg
A75: Macao | B75: 69.6 | C75: MOP | F75: Macao
A76: Malaysia | B76: 39.51 | C76: MYR | F76: Malaysia
A77: Malta | B77: 73.61 | C77: EUR | F77: Malta
A78: Mauritius | B78: 52.57 | C78: MUR | F78: Mauritius
A79: Mexico | B79: 35.05 | C79: MXN | F79: Mexico
A80: Moldova | B80: 32.68 | C80: MDL | F80: Moldova
A81: Mongolia | B81: 33.17 | C81: MNT | F81: Mongolia
A82: Montenegro | B82: 41.43 | C82: EUR | F82: Montenegro
A83: Morocco | B83: 36.85 | C83: MAD | F83: Morocco
A84: Mozambique | B84: 35.89 | C84: MZN | F84: Mozambique
A85: Myanmar | B85: 38.06 | C85: MMK | F85: Myanmar
A86: Namibia | B86: 41.02 | C86: NAD | F86: Namibia
A87: Nepal | B87: 28.86 | C87: NPR | F87: Nepal
A88: Netherlands | B88: 78.64 | C88: EUR | F88: Netherlands
A89: New Zealand | B89: 79.14 | C89: NZD | F89: New Zealand
A90: Nicaragua | B90: 42.77 | C90: NIO | F90: Nicaragua
A91: Nigeria | B91: 29.74 | C91: NGN | F91: Nigeria
A92: North Macedonia | B92: 34.15 | C92: MKD | F92: North Macedonia
A93: Norway | B93: 106.09 | C93: NOK | F93: Norway
A94: Oman | B94: 50.18 | C94: OMR | F94: Oman
A95: Pakistan | B95: 21.59 | C95: PKR | F95: Pakistan
A96: Palestine | B96: 55.88 | F96: Palestine
A97: Panama | B97: 54.07 | C97: PAB | F97: Panama
A98: Paraguay | B98: 30.72 | C98: PYG | F98: Paraguay
A99: Peru | B99: 36.26 | C99: PEN | F99: Peru
A100: Philippines | B100: 40.65 | C100: PHP | F100: Philippines
A101: Poland | B101: 42.04 | C101: PLN | F101: Poland
A102: Portugal | B102: 52.88 | C102: EUR | F102: Portugal
A103: Puerto Rico | B103: 69.51 | C103: USD | F103: Puerto Rico
A104: Qatar | B104: 64.23 | C104: QAR | F104: Qatar
A105: Romania | B105: 38.5 | C105: RON | F105: Romania
A106: Russia | B106: 33.17 | C106: RUB | F106: Russia
A107: Rwanda | B107: 34.07 | C107: RWF | F107: Rwanda
A108: Saudi Arabia | B108: 49.95 | C108: SAR | F108: Saudi Arabia
A109: Serbia | B109: 39.19 | C109: RSD | F109: Serbia
A110: Seychelles | B110: 78.92 | C110: SCR | F110: Seychelles
A111: Singapore | B111: 85.59 | C111: SGD | F111: Singapore
A112: Slovakia | B112: 49.08 | C112: EUR | F112: Slovakia
A113: Slovenia | B113: 59.38 | C113: EUR | F113: Slovenia
A114: Somalia | B114: 37.42 | C114: SOS | F114: Somalia
A115: South Africa | B115: 41.69 | C115: ZAR | F115: South Africa
A116: South Korea | B116: 81.2 | C116: KRW | F116: South Korea
A117: Spain | B117: 59.09 | C117: EUR | F117: Spain
A118: Sri Lanka | B118: 31.28 | C118: LKR | F118: Sri Lanka
A119: Suriname | B119: 51.86 | C119: SRD | F119: Suriname
A120: Sweden | B120: 79.17 | C120: SEK | F120: Sweden
A121: Switzerland | B121: 131.75 | C121: CHF | F121: Switzerland
A122: Syria | B122: 29.03 | C122: SYP | F122: Syria
A123: Taiwan | B123: 65.25 | C123: TWD | F123: Taiwan
A124: Tanzania | B124: 34.6 | C124: TZS | F124: Tanzania
A125: Thailand | B125: 49.32 | C125: THB | F125: Thailand
A126: Trinidad And Tobago | B126: 55.48 | C126: TTD | F126: Trinidad And Tobago
A127: Tunisia | B127: 29.5 | C127: TND | F127: Tunisia
A128: Turkey | B128: 31.48 | C128: TRY | F128: Turkey
A129: Uganda | B129: 32.18 | C129: UGX | F129: Uganda
A130: Ukraine | B130: 29.21 | C130: UAH | F130: Ukraine
A131: United Arab Emirates | B131: 61.67 | C131: AED | F131: United Arab Emirates
A132: United Kingdom | B132: 71.03 | C132: GBP | F132: United Kingdom
A133: United States | B133: 71.92 | C133: USD | F133: United States
A134: Uruguay | B134: 51.09 | C134: UYU | F134: Uruguay
A135: Uzbekistan | B135: 27.12 | C135: UZS | F135: Uzbekistan
A136: Vietnam | B136: 38.05 | C136: VND | F136: Vietnam
A137: Yemen | B137: 51.46 | C137: YER | F137: Yemen
A138: Zambia | B138: 28.06 | C138: ZMW | F138: Zambia
A139: Zimbabwe | B139: 51.52 | C139: ZWL | F139: Zimbabwe

Sheet Live Currency Rates (hidden)
A1: Currency | B1: Name | C1: Units per AUD | D1: AUD per unit | G1: ex rate 1 | H1: =VLOOKUP('Non-Res Serviceability'!D16,'Live Currency Rates'!A:F,3,FALSE) -> 4.756559836
A2: USD | B2: US Dollar | C2: 0.673778069 | D2: 1.484168224 | G2: ex rate 2 | H2: =VLOOKUP('Non-Res Serviceability'!F16,'Live Currency Rates'!A:F,3,FALSE) -> 
A3: EUR | B3: Euro | C3: 0.6141738258 | D3: 1.628203544
A4: GBP | B4: British Pound | C4: 0.5146205308 | D4: 1.943179372
A5: INR | B5: Indian Rupee | C5: 56.57598832 | D5: 0.01767534302
A6: AUD | B6: Australian Dollar | C6: 1 | D6: 1
A7: CAD | B7: Canadian Dollar | C7: 0.9205829477 | D7: 1.08626822
A8: SGD | B8: Singapore Dollar | C8: 0.8785754436 | D8: 1.138206181
A9: CHF | B9: Swiss Franc | C9: 0.5779273056 | D9: 1.730321427
A10: MYR | B10: Malaysian Ringgit | C10: 2.888339131 | D10: 0.346219732
A11: JPY | B11: Japanese Yen | C11: 99.87023545 | D11: 0.01001299332
A12: CNY | B12: Chinese Yuan Renminbi | C12: 4.756559836 | D12: 0.2102359761
A13: NZD | B13: New Zealand Dollar | C13: 1.100824335 | D13: 0.9084101504
A14: THB | B14: Thai Baht | C14: 22.61317287 | D14: 0.04422201191
A15: HUF | B15: Hungarian Forint | C15: 245.2958022 | D15: 0.004076710613
A16: AED | B16: Emirati Dirham | C16: 2.474449959 | D16: 0.4041302175
A17: HKD | B17: Hong Kong Dollar | C17: 5.238299865 | D17: 0.1909016333
A18: MXN | B18: Mexican Peso | C18: 13.06027669 | D18: 0.07656805623
A19: ZAR | B19: South African Rand | C19: 11.83483842 | D19: 0.08449629514
A20: PHP | B20: Philippine Peso | C20: 38.31206564 | D20: 0.02610143784
A21: SEK | B21: Swedish Krona | C21: 6.980168094 | D21: 0.1432630256
A22: IDR | B22: Indonesian Rupiah | C22: 10549.62788 | D22: 9.479007328e-05
A23: BRL | B23: Brazilian Real | C23: 3.726171006 | D23: 0.2683720093
A24: SAR | B24: Saudi Arabian Riyal | C24: 2.526667759 | D24: 0.395778193
A25: TRY | B25: Turkish Lira | C25: 23.08755054 | D25: 0.0433133865
A26: KES | B26: Kenyan Shilling | C26: 86.9167703 | D26: 0.01150525953
A27: KRW | B27: South Korean Won | C27: 907.5539158 | D27: 0.001101862911
A28: EGP | B28: Egyptian Pound | C28: 32.74388617 | D28: 0.03054005242
A29: IQD | B29: Iraqi Dinar | C29: 883.0208778 | D29: 0.001132476055
A30: NOK | B30: Norwegian Krone | C30: 7.227579707 | D30: 0.1383589031
A31: KWD | B31: Kuwaiti Dinar | C31: 0.2065703729 | D31: 4.840965265
A32: RUB | B32: Russian Ruble | C32: 65.27356401 | D32: 0.01532013787
A33: DKK | B33: Danish Krone | C33: 4.581294423 | D33: 0.2182789202
A34: PKR | B34: Pakistani Rupee | C34: 187.14415 | D34: 0.005343474535
A35: ILS | B35: Israeli Shekel | C35: 2.532624627 | D35: 0.3948473016
A36: PLN | B36: Polish Zloty | C36: 2.645912116 | D36: 0.3779415022
A37: QAR | B37: Qatari Riyal | C37: 2.452552171 | D37: 0.407738523
A38: XAU | B38: Gold Ounce | C38: 0.0002578200155 | D38: 3878.674812
A39: OMR | B39: Omani Rial | C39: 0.2594188601 | D39: 3.854769848
A40: COP | B40: Colombian Peso | C40: 2851.342846 | D40: 0.0003507119467
A41: CLP | B41: Chilean Peso | C41: 629.2878847 | D41: 0.001589097811
A42: TWD | B42: Taiwan New Dollar | C42: 21.72308774 | D42: 0.04603397142
A43: ARS | B43: Argentine Peso | C43: 656.7696702 | D43: 0.001522603807
A44: CZK | B44: Czech Koruna | C44: 15.54979865 | D44: 0.06430951437
A45: VND | B45: Vietnamese Dong | C45: 16745.66702 | D45: 5.971694044e-05
A46: MAD | B46: Moroccan Dirham | C46: 6.609815786 | D46: 0.1512901467
A47: JOD | B47: Jordanian Dinar | C47: 0.477708651 | D47: 2.093326127
A48: BHD | B48: Bahraini Dinar | C48: 0.253340554 | D48: 3.947255914
A49: XOF | B49: CFA Franc | C49: 402.8716203 | D49: 0.002482180302
A50: LKR | B50: Sri Lankan Rupee | C50: 198.0602844 | D50: 0.005048967808
A51: UAH | B51: Ukrainian Hryvnia | C51: 27.80538167 | D51: 0.03596426088
A52: NGN | B52: Nigerian Naira | C52: 1092.020861 | D52: 0.0009157334221
A53: TND | B53: Tunisian Dinar | C53: 2.069655897 | D53: 0.4831721067
A54: UGX | B54: Ugandan Shilling | C54: 2477.429447 | D54: 0.0004036441889
A55: RON | B55: Romanian Leu | C55: 3.056986907 | D55: 0.3271194906
A56: BDT | B56: Bangladeshi Taka | C56: 80.64575141 | D56: 0.01239990926
A57: PEN | B57: Peruvian Sol | C57: 2.512287072 | D57: 0.3980436834
A58: GEL | B58: Georgian Lari | C58: 1.839360285 | D58: 0.5436672783
A59: XAF | B59: Central African CFA Franc BEAC | C59: 402.8716203 | D59: 0.002482180302
A60: FJD | B60: Fijian Dollar | C60: 1.496082454 | D60: 0.6684123573
A61: VEF | B61: Venezuelan Bolívar | C61: 2492466.323 | D61: 4.012090316e-07
A62: VES | B62: Venezuelan Bolívar | C62: 24.92466323 | D62: 0.04012090316
A63: BYN | B63: Belarusian Ruble | C63: 2.203464624 | D63: 0.4538307487
A64: UZS | B64: Uzbekistani Som | C64: 8620.38669 | D64: 0.0001160040768
A65: BGN | B65: Bulgarian Lev | C65: 1.201219594 | D65: 0.8324872531
A66: DZD | B66: Algerian Dinar | C66: 89.62670448 | D66: 0.01115738893
A67: IRR | B67: Iranian Rial | C67: 28445.7753 | D67: 3.515460519e-05
A68: DOP | B68: Dominican Peso | C68: 40.65507966 | D68: 0.02459717232
A69: ISK | B69: Icelandic Krona | C69: 91.33163486 | D69: 0.01094910872
A70: CRC | B70: Costa Rican Colon | C70: 350.0634022 | D70: 0.002856625382
A71: XAG | B71: Silver Ounce | C71: 0.02218137797 | D71: 45.0828619
A72: SYP | B72: Syrian Pound | C72: 8762.117198 | D72: 0.0001141276677
A73: JMD | B73: Jamaican Dollar | C73: 106.6936504 | D73: 0.009372628981
A74: LYD | B74: Libyan Dinar | C74: 3.218045606 | D74: 0.3107476159
A75: GHS | B75: Ghanaian Cedi | C75: 10.70650829 | D75: 0.09340113253
A76: MUR | B76: Mauritian Rupee | C76: 31.2418044 | D76: 0.0320083945
A77: AOA | B77: Angolan Kwanza | C77: 616.9019088 | D77: 0.001621003252
A78: UYU | B78: Uruguayan Peso | C78: 27.74445455 | D78: 0.03604323878
A79: AFN | B79: Afghan Afghani | C79: 45.72279434 | D79: 0.02187092925
A80: LBP | B80: Lebanese Pound | C80: 60497.06772 | D80: 1.652972677e-05
A81: XPF | B81: CFP Franc | C81: 73.29043268 | D81: 0.0136443457
A82: TTD | B82: Trinidadian Dollar | C82: 4.575768548 | D82: 0.2185425223
A83: TZS | B83: Tanzanian Shilling | C83: 1831.799271 | D83: 0.0005459113429
A84: ALL | B84: Albanian Lek | C84: 60.6036887 | D84: 0.01650064578
A85: XCD | B85: East Caribbean Dollar | C85: 1.820454829 | D85: 0.5493132728
A86: GTQ | B86: Guatemalan Quetzal | C86: 5.220044673 | D86: 0.1915692418
A87: NPR | B87: Nepalese Rupee | C87: 90.5640133 | D87: 0.01104191349
A88: BOB | B88: Bolivian Bolíviano | C88: 4.667756969 | D88: 0.2142356611
A89: ZWD | B89: Zimbabwean Dollar | C89: 243.8402832 | D89: 0.004101045106
A90: BBD | B90: Barbadian or Bajan Dollar | C90: 1.347556138 | D90: 0.7420841119
A91: CUC | B91: Cuban Convertible Peso | C91: 0.673778069 | D91: 1.484168224
A92: LAK | B92: Lao Kip | C92: 14879.84296 | D92: 6.720501032e-05
A93: BND | B93: Bruneian Dollar | C93: 0.8785754436 | D93: 1.138206181
A94: BWP | B94: Botswana Pula | C94: 8.924028258 | D94: 0.1120570185
A95: HNL | B95: Honduran Lempira | C95: 16.78022292 | D95: 0.05959396398
A96: PYG | B96: Paraguayan Guarani | C96: 5268.025296 | D96: 0.0001898244492
A97: ETB | B97: Ethiopian Birr | C97: 80.73863139 | D97: 0.01238564468
A98: NAD | B98: Namibian Dollar | C98: 11.83483842 | D98: 0.08449629514
A99: PGK | B99: Papua New Guinean Kina | C99: 2.668916012 | D99: 0.3746839524
A100: SDG | B100: Sudanese Pound | C100: 405.1375011 | D100: 0.002468297793
A101: MOP | B101: Macau Pataca | C101: 5.395448861 | D101: 0.1853413915
A102: BMD | B102: Bermudian Dollar | C102: 0.673778069 | D102: 1.484168224
A103: NIO | B103: Nicaraguan Cordoba | C103: 24.8054661 | D103: 0.04031369521
A104: BAM | B104: Bosnian Convertible Mark | C104: 1.201219594 | D104: 0.8324872531
A105: KZT | B105: Kazakhstani Tenge | C105: 327.2858176 | D105: 0.003055433344
A106: PAB | B106: Panamanian Balboa | C106: 0.673778069 | D106: 1.484168224
A107: GYD | B107: Guyanese Dollar | C107: 140.9920957 | D107: 0.007092596183
A108: YER | B108: Yemeni Rial | C108: 168.6204911 | D108: 0.005930477331
A109: MGA | B109: Malagasy Ariary | C109: 3091.55347 | D109: 0.0003234619778
A110: KYD | B110: Caymanian Dollar | C110: 0.5538786446 | D110: 1.805449641
A111: MZN | B111: Mozambican Metical | C111: 43.05456363 | D111: 0.02322634155
A112: RSD | B112: Serbian Dinar | C112: 71.88624858 | D112: 0.0139108664
A113: SCR | B113: Seychellois Rupee | C113: 9.269109619 | D113: 0.1078852275
A114: AMD | B114: Armenian Dram | C114: 259.8304295 | D114: 0.003848663922
A115: AZN | B115: Azerbaijan Manat | C115: 1.145395372 | D115: 0.8730609745
A116: SBD | B116: Solomon Islander Dollar | C116: 5.656677543 | D116: 0.1767822176
A117: SLL | B117: Sierra Leonean Leone | C117: 15237.44211 | D117: 6.562781292e-05
A118: TOP | B118: Tongan Pa'anga | C118: 1.581624849 | D118: 0.6322611842
A119: BZD | B119: Belizean Dollar | C119: 1.362131825 | D119: 0.7341433346
A120: GMD | B120: Gambian Dalasi | C120: 46.63605985 | D120: 0.0214426348
A121: MWK | B121: Malawian Kwacha | C121: 1169.16043 | D121: 0.0008553146127
A122: BIF | B122: Burundian Franc | C122: 1952.835125 | D122: 0.0005120760003
A123: HTG | B123: Haitian Gourde | C123: 89.12116234 | D123: 0.01122067951
A124: SOS | B124: Somali Shilling | C124: 384.8918582 | D124: 0.002598132381
A125: GNF | B125: Guinean Franc | C125: 5813.342615 | D125: 0.000172018074
A126: MNT | B126: Mongolian Tughrik | C126: 2280.138996 | D126: 0.0004385697547
A127: MVR | B127: Maldivian Rufiyaa | C127: 10.39085105 | D127: 0.09623850783
A128: CDF | B128: Congolese Franc | C128: 1919.457356 | D128: 0.0005209805764
A129: STN | B129: Sao Tomean Dobra | C129: 15.06761203 | D129: 0.06636751717
A130: TJS | B130: Tajikistani Somoni | C130: 7.170832181 | D130: 0.1394538283
A131: KPW | B131: North Korean Won | C131: 606.4140754 | D131: 0.001649038241
A132: KGS | B132: Kyrgyzstani Som | C132: 57.31229057 | D132: 0.01744826441
A133: LRD | B133: Liberian Dollar | C133: 130.1235286 | D133: 0.007685005248
A134: LSL | B134: Basotho Loti | C134: 11.83483842 | D134: 0.08449629514
A135: MMK | B135: Burmese Kyat | C135: 1413.98474 | D135: 0.0007072212109
A136: GIP | B136: Gibraltar Pound | C136: 0.5146205308 | D136: 1.943179372
A137: XPT | B137: Platinum Ounce | C137: 0.000705403007 | D137: 1417.629341
A138: MDL | B138: Moldovan Leu | C138: 11.85089889 | D138: 0.08438178481
A139: CUP | B139: Cuban Peso | C139: 16.20294149 | D139: 0.06171718886
A140: KHR | B140: Cambodian Riel | C140: 2740.535185 | D140: 0.0003648922318
A141: MKD | B141: Macedonian Denar | C141: 37.7855447 | D141: 0.02646514714
A142: VUV | B142: Ni-Vanuatu Vatu | C142: 80.00157296 | D142: 0.01249975423
A143: ANG | B143: Dutch Guilder | C143: 1.212620636 | D143: 0.82466022
A144: MRU | B144: Mauritanian Ouguiya | C144: 26.67446138 | D144: 0.03748904189
A145: SZL | B145: Swazi Lilangeni | C145: 11.83483842 | D145: 0.08449629514
A146: CVE | B146: Cape Verdean Escudo | C146: 67.72494778 | D146: 0.01476560755
A147: SRD | B147: Surinamese Dollar | C147: 21.42028348 | D147: 0.04668472296
A148: SVC | B148: Salvadoran Colon | C148: 5.895558104 | D148: 0.1696192256
A149: XPD | B149: Palladium Ounce | C149: 0.0006683689114 | D149: 1496.179704
A150: BSD | B150: Bahamian Dollar | C150: 0.673778069 | D150: 1.484168224
A151: XDR | B151: IMF Special Drawing Rights | C151: 0.502598511 | D151: 1.989659695
A152: RWF | B152: Rwandan Franc | C152: 911.8517381 | D152: 0.001096669511
A153: AWG | B153: Aruban or Dutch Guilder | C153: 1.206062744 | D153: 0.8291442591
A154: BTN | B154: Bhutanese Ngultrum | C154: 56.57598832 | D154: 0.01767534302
A155: DJF | B155: Djiboutian Franc | C155: 119.8335291 | D155: 0.008344909872
A156: KMF | B156: Comorian Franc | C156: 302.1537152 | D156: 0.003309573736
A157: ERN | B157: Eritrean Nakfa | C157: 10.10667104 | D157: 0.09894454826
A158: FKP | B158: Falkland Island Pound | C158: 0.5146205308 | D158: 1.943179372
A159: SHP | B159: Saint Helenian Pound | C159: 0.5146205308 | D159: 1.943179372
A160: SPL | B160: Seborgan Luigino | C160: 0.1122963444 | D160: 8.905009379
A161: WST | B161: Samoan Tala | C161: 1.835507431 | D161: 0.5448084725
A162: JEP | B162: Jersey Pound | C162: 0.5146205308 | D162: 1.943179372
A163: TMT | B163: Turkmenistani Manat | C163: 2.364345229 | D163: 0.4229500785
A164: GGP | B164: Guernsey Pound | C164: 0.5146205308 | D164: 1.943179372
A165: IMP | B165: Isle of Man Pound | C165: 0.5146205308 | D165: 1.943179372
A166: TVD | B166: Tuvaluan Dollar | C166: 1 | D166: 1
A167: ZMW | B167: Zambian Kwacha | C167: 17.84912719 | D167: 0.05602514841
A168: ADA | B168: Cardano | C168: 1.957157945 | D168: 0.5109449662
A169: BCH | B169: Bitcoin Cash | C169: 0.002041746327 | D169: 489.7768085
A170: BTC | B170: Bitcoin | C170: 1.081425472e-05 | D170: 92470.54245
A171: CLF | B171: CLF | C171: 0.01659921879 | D171: 60.24379899
A172: CNH | B172: Chinese Yuan Renminbi Offshore | C172: 4.762014693 | D172: 0.2099951522
A173: DOGE | B173: Dogecoin | C173: 6.216154136 | D173: 0.1608711718
A174: DOT | B174: Polkadot | C174: 0.1638467832 | D174: 6.10326294
A175: ETH | B175: Ethereum | C175: 0.0002784782718 | D175: 3590.944434
A176: LINK | B176: Chainlink | C176: 0.06155171874 | D176: 16.24650003
A177: LTC | B177: Litecoin | C177: 0.01028021455 | D177: 97.27423439
A178: LUNA | B178: Terra | C178: 1.84696238 | D178: 0.5414295444
A179: MXV | B179: MXV | C179: 1.575997012 | D179: 0.6345189694
A180: SLE | B180: Sierra Leonean Leone | C180: 15.23744211 | D180: 0.06562781292
A181: UNI | B181: Uniswap | C181: 0.09534965742 | D181: 10.48771466
A182: VED | B182: VED | C182: 24.92466323 | D182: 0.04012090316
A183: XBT | B183: XBT | C183: 1.081425472e-05 | D183: 92470.54245
A184: XLM | B184: Stellar Lumen | C184: 7.447160821 | D184: 0.1342793615
A185: XRP | B185: Ripple | C185: 1.284090883 | D185: 0.7787610778
A186: ZWG | B186: ZWG | C186: 9.496085281 | D186: 0.1053065522
